Workbook

Sheet Key
B2: LTC4162
B3: NTC Calculator
B6: KEY: | C6: EDITABLE | F6: RESULT | I6: CONSTANT
B10: Introduction:
B11: The LTC4162 datasheets give temperature values based on a recommended thermistor with a β value of 3490K.
B12: This document is intended to help customers that decide to use alternate thermistors, or it can just be used as a tool to speed up calculations.
B15: Instructions:
B16: To use this document, first input NTC characteristics and external network values into the NTC Input sheet.
B17: NTC characteristics can be entered in terms of Steinhart-Hart coefficients or a β value. The β value is less precise across the full temperature range.
B18: Then, refer to the sheet that is relevant to your chosen LTC4162 chemistry (Li-Ion, LiFePO4, or Lead-Acid).
B19: For Li-Ion and LiFePO4, you can enter register values for JEITA charging.
B20: Then, plots will demonstrate how the charging characteristics will change over temperature.
B23: Contents:
B24: 1. NTC Input
B26: 2. JEITA (Li-Ion)
B27: → | C27: LTC4162-L Datasheet
B29: 3. JEITA (LiFePO4)
B30: → | C30: LTC4162-F Datasheet
B32: 4. Temperature Compensation (Lead-Acid)
B33: → | C33: LTC4162-S Datasheet
B36: Notes:
B37: This document is locked such that only cells formatted as: | G37: EDITABLE | H37: can be selected and changed.
B38: To view formulas, the document can be unlocked without a password.
B39: Enable macros in this docment for proper operation.

Sheet NTC Input
B2: LTC4162
B3: NTC Characteristics and Network Input
B7: 1. Specify NTC Characteristics | P7: Simple Calculators & Data Summary
Q9: NTC Resistance at Temperature Calculator: | Y9: Temperature (°C) | AA9: Resistance (kΩ)
Z10: =T38 -> -20 | AB10: =IF(Hidden!$D$4=1,$F$21*EXP($D$12 + $D$13/(Z10+273.15) + $D$14/POWER(Z10+273.15,2) + $D$15/POWER(Z10+273.15,3)),$F$21 * EXP($K$11 * (1/(Z10 + 273.15) - 1/298.15))) -> 73.00330444
D11: T-to-R Coefficients | G11: R-to-T Coefficients | I11: OR | J11: β = | K11: 3490 | L11: K | R11: NTC Alone (without resistor network): | Z11: =Z10+$I$37 -> -18.8 | AB11: =IF(Hidden!$D$4=1,$F$21*EXP($D$12 + $D$13/(Z11+273.15) + $D$14/POWER(Z11+273.15,2) + $D$15/POWER(Z11+273.15,3)),$F$21 * EXP($K$11 * (1/(Z11 + 273.15) - 1/298.15))) -> 68.72469774
C12: A = | D12: -12.07136342 | F12: A1 = | G12: 0.003354016435 | R12: At | S12: 25 | T12: °C, resistance = | V12: =IF(Hidden!$D$4=1,$F$21*EXP($D$12 + $D$13/(S12+273.15) + $D$14/POWER(S12+273.15,2) + $D$15/POWER(S12+273.15,3)),$F$21 * EXP($K$11 * (1/(S12 + 273.15) - 1/298.15))) -> 10 | W12: kΩ | Z12: -17.6 | AB12: =IF(Hidden!$D$4=1,$F$21*EXP($D$12 + $D$13/(Z12+273.15) + $D$14/POWER(Z12+273.15,2) + $D$15/POWER(Z12+273.15,3)),$F$21 * EXP($K$11 * (1/(Z12 + 273.15) - 1/298.15))) -> 64.72577944
C13: B = | D13: 3503.902235 | F13: B1 = | G13: 0.0002924251251 | R13: With Resistor Network: | Z13: -16.4 | AB13: =IF(Hidden!$D$4=1,$F$21*EXP($D$12 + $D$13/(Z13+273.15) + $D$14/POWER(Z13+273.15,2) + $D$15/POWER(Z13+273.15,3)),$F$21 * EXP($K$11 * (1/(Z13 + 273.15) - 1/298.15))) -> 60.98657827
C14: C = | D14: 109390.7954 | F14: C1 = | G14: 3.45753058e-06 | R14: At | S14: =S12 -> 25 | T14: °C, resistance = | V14: =((V12+$D$29)*$D$30)/((V12+$D$29)+$D$30) -> 10 | W14: kΩ | Z14: -15.2 | AB14: =IF(Hidden!$D$4=1,$F$21*EXP($D$12 + $D$13/(Z14+273.15) + $D$14/POWER(Z14+273.15,2) + $D$15/POWER(Z14+273.15,3)),$F$21 * EXP($K$11 * (1/(Z14 + 273.15) - 1/298.15))) -> 57.48865827
C15: D = | D15: -24154454.74 | F15: D1 = | G15: 2.335258775e-07 | Z15: -14 | AB15: =IF(Hidden!$D$4=1,$F$21*EXP($D$12 + $D$13/(Z15+273.15) + $D$14/POWER(Z15+273.15,2) + $D$15/POWER(Z15+273.15,3)),$F$21 * EXP($K$11 * (1/(Z15 + 273.15) - 1/298.15))) -> 54.21499307
Z16: -12.8 | AB16: =IF(Hidden!$D$4=1,$F$21*EXP($D$12 + $D$13/(Z16+273.15) + $D$14/POWER(Z16+273.15,2) + $D$15/POWER(Z16+273.15,3)),$F$21 * EXP($K$11 * (1/(Z16 + 273.15) - 1/298.15))) -> 51.14985114
C17: Coefficient values for Vishay NTC thermistors can be found at: | R17: NTC Alone (without resistor network): | Z17: -11.6 | AB17: =IF(Hidden!$D$4=1,$F$21*EXP($D$12 + $D$13/(Z17+273.15) + $D$14/POWER(Z17+273.15,2) + $D$15/POWER(Z17+273.15,3)),$F$21 * EXP($K$11 * (1/(Z17 + 273.15) - 1/298.15))) -> 48.27869078
C18: www.vishay.com/thermistors/curve-computation-list | R18: At | S18: 10 | T18: kΩ, temperature = | V18: =IF(Hidden!$D$4=1,1 / ($G$12 + $G$13*LN(S18/$F$21) + $G$14*POWER(LN(S18/$F$21),2) + $G$15*POWER(LN(S18/$F$21),3)) -273.15,$K$11 / (LN(S18 / ($F$21 * EXP(-$K$11 / 298.15)))) - 273.15) -> 25 | W18: °C | Z18: -10.4 | AB18: =IF(Hidden!$D$4=1,$F$21*EXP($D$12 + $D$13/(Z18+273.15) + $D$14/POWER(Z18+273.15,2) + $D$15/POWER(Z18+273.15,3)),$F$21 * EXP($K$11 * (1/(Z18 + 273.15) - 1/298.15))) -> 45.5880642
Z19: -9.2 | AB19: =IF(Hidden!$D$4=1,$F$21*EXP($D$12 + $D$13/(Z19+273.15) + $D$14/POWER(Z19+273.15,2) + $D$15/POWER(Z19+273.15,3)),$F$21 * EXP($K$11 * (1/(Z19 + 273.15) - 1/298.15))) -> 43.06552972
Z20: -8 | AB20: =IF(Hidden!$D$4=1,$F$21*EXP($D$12 + $D$13/(Z20+273.15) + $D$14/POWER(Z20+273.15,2) + $D$15/POWER(Z20+273.15,3)),$F$21 * EXP($K$11 * (1/(Z20 + 273.15) - 1/298.15))) -> 40.69957147
E21: NTC Resistance at 25°C = | F21: 10 | G21: kΩ | Z21: -6.8 | AB21: =IF(Hidden!$D$4=1,$F$21*EXP($D$12 + $D$13/(Z21+273.15) + $D$14/POWER(Z21+273.15,2) + $D$15/POWER(Z21+273.15,3)),$F$21 * EXP($K$11 * (1/(Z21 + 273.15) - 1/298.15))) -> 38.47952577
Z22: -5.6 | AB22: =IF(Hidden!$D$4=1,$F$21*EXP($D$12 + $D$13/(Z22+273.15) + $D$14/POWER(Z22+273.15,2) + $D$15/POWER(Z22+273.15,3)),$F$21 * EXP($K$11 * (1/(Z22 + 273.15) - 1/298.15))) -> 36.39551385
Z23: -4.4 | AB23: =IF(Hidden!$D$4=1,$F$21*EXP($D$12 + $D$13/(Z23+273.15) + $D$14/POWER(Z23+273.15,2) + $D$15/POWER(Z23+273.15,3)),$F$21 * EXP($K$11 * (1/(Z23 + 273.15) - 1/298.15))) -> 34.43838007
Z24: -3.2 | AB24: =IF(Hidden!$D$4=1,$F$21*EXP($D$12 + $D$13/(Z24+273.15) + $D$14/POWER(Z24+273.15,2) + $D$15/POWER(Z24+273.15,3)),$F$21 * EXP($K$11 * (1/(Z24 + 273.15) - 1/298.15))) -> 32.59963534
B25: 2. Specify External Network Characteristics | Z25: -2 | AB25: =IF(Hidden!$D$4=1,$F$21*EXP($D$12 + $D$13/(Z25+273.15) + $D$14/POWER(Z25+273.15,2) + $D$15/POWER(Z25+273.15,3)),$F$21 * EXP($K$11 * (1/(Z25 + 273.15) - 1/298.15))) -> 30.87140521
Z26: -0.8 | AB26: =IF(Hidden!$D$4=1,$F$21*EXP($D$12 + $D$13/(Z26+273.15) + $D$14/POWER(Z26+273.15,2) + $D$15/POWER(Z26+273.15,3)),$F$21 * EXP($K$11 * (1/(Z26 + 273.15) - 1/298.15))) -> 29.24638231
C27: RNTCBIAS = | D27: 10 | E27: kΩ | F27: (this should usually be the value of the NTC at 25°C) | Z27: 0.4 | AB27: =IF(Hidden!$D$4=1,$F$21*EXP($D$12 + $D$13/(Z27+273.15) + $D$14/POWER(Z27+273.15,2) + $D$15/POWER(Z27+273.15,3)),$F$21 * EXP($K$11 * (1/(Z27 + 273.15) - 1/298.15))) -> 27.71778259
Z28: 1.6 | AB28: =IF(Hidden!$D$4=1,$F$21*EXP($D$12 + $D$13/(Z28+273.15) + $D$14/POWER(Z28+273.15,2) + $D$15/POWER(Z28+273.15,3)),$F$21 * EXP($K$11 * (1/(Z28 + 273.15) - 1/298.15))) -> 26.2793052
C29: RSERIES = | D29: 0 | E29: kΩ | Z29: 2.8 | AB29: =IF(Hidden!$D$4=1,$F$21*EXP($D$12 + $D$13/(Z29+273.15) + $D$14/POWER(Z29+273.15,2) + $D$15/POWER(Z29+273.15,3)),$F$21 * EXP($K$11 * (1/(Z29 + 273.15) - 1/298.15))) -> 24.92509566
C30: RPARALLEL = | D30: 999999999999 | E30: kΩ | Z30: 4 | AB30: =IF(Hidden!$D$4=1,$F$21*EXP($D$12 + $D$13/(Z30+273.15) + $D$14/POWER(Z30+273.15,2) + $D$15/POWER(Z30+273.15,3)),$F$21 * EXP($K$11 * (1/(Z30 + 273.15) - 1/298.15))) -> 23.64971193
Z31: 5.2 | AB31: =IF(Hidden!$D$4=1,$F$21*EXP($D$12 + $D$13/(Z31+273.15) + $D$14/POWER(Z31+273.15,2) + $D$15/POWER(Z31+273.15,3)),$F$21 * EXP($K$11 * (1/(Z31 + 273.15) - 1/298.15))) -> 22.44809331
Z32: 6.4 | AB32: =IF(Hidden!$D$4=1,$F$21*EXP($D$12 + $D$13/(Z32+273.15) + $D$14/POWER(Z32+273.15,2) + $D$15/POWER(Z32+273.15,3)),$F$21 * EXP($K$11 * (1/(Z32 + 273.15) - 1/298.15))) -> 21.31553173
Z33: 7.6 | AB33: =IF(Hidden!$D$4=1,$F$21*EXP($D$12 + $D$13/(Z33+273.15) + $D$14/POWER(Z33+273.15,2) + $D$15/POWER(Z33+273.15,3)),$F$21 * EXP($K$11 * (1/(Z33 + 273.15) - 1/298.15))) -> 20.24764545
Z34: 8.8 | AB34: =IF(Hidden!$D$4=1,$F$21*EXP($D$12 + $D$13/(Z34+273.15) + $D$14/POWER(Z34+273.15,2) + $D$15/POWER(Z34+273.15,3)),$F$21 * EXP($K$11 * (1/(Z34 + 273.15) - 1/298.15))) -> 19.24035474
Z35: 10 | AB35: =IF(Hidden!$D$4=1,$F$21*EXP($D$12 + $D$13/(Z35+273.15) + $D$14/POWER(Z35+273.15,2) + $D$15/POWER(Z35+273.15,3)),$F$21 * EXP($K$11 * (1/(Z35 + 273.15) - 1/298.15))) -> 18.28985958
Z36: 11.2 | AB36: =IF(Hidden!$D$4=1,$F$21*EXP($D$12 + $D$13/(Z36+273.15) + $D$14/POWER(Z36+273.15,2) + $D$15/POWER(Z36+273.15,3)),$F$21 * EXP($K$11 * (1/(Z36 + 273.15) - 1/298.15))) -> 17.39261902
I37: =($Z$110-$Z$10)/(ROW($Z$110)-ROW($Z$10)) -> 1.2 | Z37: 12.4 | AB37: =IF(Hidden!$D$4=1,$F$21*EXP($D$12 + $D$13/(Z37+273.15) + $D$14/POWER(Z37+273.15,2) + $D$15/POWER(Z37+273.15,3)),$F$21 * EXP($K$11 * (1/(Z37 + 273.15) - 1/298.15))) -> 16.54533222
S38: Plot from | T38: -20 | U38: °C to | V38: 100 | W38: °C | Z38: 13.6 | AB38: =IF(Hidden!$D$4=1,$F$21*EXP($D$12 + $D$13/(Z38+273.15) + $D$14/POWER(Z38+273.15,2) + $D$15/POWER(Z38+273.15,3)),$F$21 * EXP($K$11 * (1/(Z38 + 273.15) - 1/298.15))) -> 15.74492098
Z39: 14.8 | AB39: =IF(Hidden!$D$4=1,$F$21*EXP($D$12 + $D$13/(Z39+273.15) + $D$14/POWER(Z39+273.15,2) + $D$15/POWER(Z39+273.15,3)),$F$21 * EXP($K$11 * (1/(Z39 + 273.15) - 1/298.15))) -> 14.98851356
Z40: 16 | AB40: =IF(Hidden!$D$4=1,$F$21*EXP($D$12 + $D$13/(Z40+273.15) + $D$14/POWER(Z40+273.15,2) + $D$15/POWER(Z40+273.15,3)),$F$21 * EXP($K$11 * (1/(Z40 + 273.15) - 1/298.15))) -> 14.2734298
Z41: 17.2 | AB41: =IF(Hidden!$D$4=1,$F$21*EXP($D$12 + $D$13/(Z41+273.15) + $D$14/POWER(Z41+273.15,2) + $D$15/POWER(Z41+273.15,3)),$F$21 * EXP($K$11 * (1/(Z41 + 273.15) - 1/298.15))) -> 13.59716737
Z42: 18.4 | AB42: =IF(Hidden!$D$4=1,$F$21*EXP($D$12 + $D$13/(Z42+273.15) + $D$14/POWER(Z42+273.15,2) + $D$15/POWER(Z42+273.15,3)),$F$21 * EXP($K$11 * (1/(Z42 + 273.15) - 1/298.15))) -> 12.9573891
Z43: =Z42+$I$37 -> 19.6 | AB43: =IF(Hidden!$D$4=1,$F$21*EXP($D$12 + $D$13/(Z43+273.15) + $D$14/POWER(Z43+273.15,2) + $D$15/POWER(Z43+273.15,3)),$F$21 * EXP($K$11 * (1/(Z43 + 273.15) - 1/298.15))) -> 12.3519112
Z44: 20.8 | AB44: =IF(Hidden!$D$4=1,$F$21*EXP($D$12 + $D$13/(Z44+273.15) + $D$14/POWER(Z44+273.15,2) + $D$15/POWER(Z44+273.15,3)),$F$21 * EXP($K$11 * (1/(Z44 + 273.15) - 1/298.15))) -> 11.77869243
Z45: 22 | AB45: =IF(Hidden!$D$4=1,$F$21*EXP($D$12 + $D$13/(Z45+273.15) + $D$14/POWER(Z45+273.15,2) + $D$15/POWER(Z45+273.15,3)),$F$21 * EXP($K$11 * (1/(Z45 + 273.15) - 1/298.15))) -> 11.23582413
Z46: 23.2 | AB46: =IF(Hidden!$D$4=1,$F$21*EXP($D$12 + $D$13/(Z46+273.15) + $D$14/POWER(Z46+273.15,2) + $D$15/POWER(Z46+273.15,3)),$F$21 * EXP($K$11 * (1/(Z46 + 273.15) - 1/298.15))) -> 10.72152085
Z47: 24.4 | AB47: =IF(Hidden!$D$4=1,$F$21*EXP($D$12 + $D$13/(Z47+273.15) + $D$14/POWER(Z47+273.15,2) + $D$15/POWER(Z47+273.15,3)),$F$21 * EXP($K$11 * (1/(Z47 + 273.15) - 1/298.15))) -> 10.23411186
Z48: 25.6 | AB48: =IF(Hidden!$D$4=1,$F$21*EXP($D$12 + $D$13/(Z48+273.15) + $D$14/POWER(Z48+273.15,2) + $D$15/POWER(Z48+273.15,3)),$F$21 * EXP($K$11 * (1/(Z48 + 273.15) - 1/298.15))) -> 9.772033144
Z49: 26.8 | AB49: =IF(Hidden!$D$4=1,$F$21*EXP($D$12 + $D$13/(Z49+273.15) + $D$14/POWER(Z49+273.15,2) + $D$15/POWER(Z49+273.15,3)),$F$21 * EXP($K$11 * (1/(Z49 + 273.15) - 1/298.15))) -> 9.333820093
Z50: 28 | AB50: =IF(Hidden!$D$4=1,$F$21*EXP($D$12 + $D$13/(Z50+273.15) + $D$14/POWER(Z50+273.15,2) + $D$15/POWER(Z50+273.15,3)),$F$21 * EXP($K$11 * (1/(Z50 + 273.15) - 1/298.15))) -> 8.918100654
Z51: 29.2 | AB51: =IF(Hidden!$D$4=1,$F$21*EXP($D$12 + $D$13/(Z51+273.15) + $D$14/POWER(Z51+273.15,2) + $D$15/POWER(Z51+273.15,3)),$F$21 * EXP($K$11 * (1/(Z51 + 273.15) - 1/298.15))) -> 8.523589031
Z52: 30.4 | AB52: =IF(Hidden!$D$4=1,$F$21*EXP($D$12 + $D$13/(Z52+273.15) + $D$14/POWER(Z52+273.15,2) + $D$15/POWER(Z52+273.15,3)),$F$21 * EXP($K$11 * (1/(Z52 + 273.15) - 1/298.15))) -> 8.149079831
Z53: 31.6 | AB53: =IF(Hidden!$D$4=1,$F$21*EXP($D$12 + $D$13/(Z53+273.15) + $D$14/POWER(Z53+273.15,2) + $D$15/POWER(Z53+273.15,3)),$F$21 * EXP($K$11 * (1/(Z53 + 273.15) - 1/298.15))) -> 7.793442632
Z54: 32.8 | AB54: =IF(Hidden!$D$4=1,$F$21*EXP($D$12 + $D$13/(Z54+273.15) + $D$14/POWER(Z54+273.15,2) + $D$15/POWER(Z54+273.15,3)),$F$21 * EXP($K$11 * (1/(Z54 + 273.15) - 1/298.15))) -> 7.455616946
Z55: 34 | AB55: =IF(Hidden!$D$4=1,$F$21*EXP($D$12 + $D$13/(Z55+273.15) + $D$14/POWER(Z55+273.15,2) + $D$15/POWER(Z55+273.15,3)),$F$21 * EXP($K$11 * (1/(Z55 + 273.15) - 1/298.15))) -> 7.134607545
Z56: 35.2 | AB56: =IF(Hidden!$D$4=1,$F$21*EXP($D$12 + $D$13/(Z56+273.15) + $D$14/POWER(Z56+273.15,2) + $D$15/POWER(Z56+273.15,3)),$F$21 * EXP($K$11 * (1/(Z56 + 273.15) - 1/298.15))) -> 6.829480117
Z57: 36.4 | AB57: =IF(Hidden!$D$4=1,$F$21*EXP($D$12 + $D$13/(Z57+273.15) + $D$14/POWER(Z57+273.15,2) + $D$15/POWER(Z57+273.15,3)),$F$21 * EXP($K$11 * (1/(Z57 + 273.15) - 1/298.15))) -> 6.539357239
Z58: 37.6 | AB58: =IF(Hidden!$D$4=1,$F$21*EXP($D$12 + $D$13/(Z58+273.15) + $D$14/POWER(Z58+273.15,2) + $D$15/POWER(Z58+273.15,3)),$F$21 * EXP($K$11 * (1/(Z58 + 273.15) - 1/298.15))) -> 6.263414625
Z59: 38.8 | AB59: =IF(Hidden!$D$4=1,$F$21*EXP($D$12 + $D$13/(Z59+273.15) + $D$14/POWER(Z59+273.15,2) + $D$15/POWER(Z59+273.15,3)),$F$21 * EXP($K$11 * (1/(Z59 + 273.15) - 1/298.15))) -> 6.000877651
Z60: 40 | AB60: =IF(Hidden!$D$4=1,$F$21*EXP($D$12 + $D$13/(Z60+273.15) + $D$14/POWER(Z60+273.15,2) + $D$15/POWER(Z60+273.15,3)),$F$21 * EXP($K$11 * (1/(Z60 + 273.15) - 1/298.15))) -> 5.751018109
Z61: 41.2 | AB61: =IF(Hidden!$D$4=1,$F$21*EXP($D$12 + $D$13/(Z61+273.15) + $D$14/POWER(Z61+273.15,2) + $D$15/POWER(Z61+273.15,3)),$F$21 * EXP($K$11 * (1/(Z61 + 273.15) - 1/298.15))) -> 5.513151203
Z62: 42.4 | AB62: =IF(Hidden!$D$4=1,$F$21*EXP($D$12 + $D$13/(Z62+273.15) + $D$14/POWER(Z62+273.15,2) + $D$15/POWER(Z62+273.15,3)),$F$21 * EXP($K$11 * (1/(Z62 + 273.15) - 1/298.15))) -> 5.286632744
Z63: 43.6 | AB63: =IF(Hidden!$D$4=1,$F$21*EXP($D$12 + $D$13/(Z63+273.15) + $D$14/POWER(Z63+273.15,2) + $D$15/POWER(Z63+273.15,3)),$F$21 * EXP($K$11 * (1/(Z63 + 273.15) - 1/298.15))) -> 5.070856542
Z64: 44.8 | AB64: =IF(Hidden!$D$4=1,$F$21*EXP($D$12 + $D$13/(Z64+273.15) + $D$14/POWER(Z64+273.15,2) + $D$15/POWER(Z64+273.15,3)),$F$21 * EXP($K$11 * (1/(Z64 + 273.15) - 1/298.15))) -> 4.865251975
Z65: 46 | AB65: =IF(Hidden!$D$4=1,$F$21*EXP($D$12 + $D$13/(Z65+273.15) + $D$14/POWER(Z65+273.15,2) + $D$15/POWER(Z65+273.15,3)),$F$21 * EXP($K$11 * (1/(Z65 + 273.15) - 1/298.15))) -> 4.669281731
Z66: 47.2 | AB66: =IF(Hidden!$D$4=1,$F$21*EXP($D$12 + $D$13/(Z66+273.15) + $D$14/POWER(Z66+273.15,2) + $D$15/POWER(Z66+273.15,3)),$F$21 * EXP($K$11 * (1/(Z66 + 273.15) - 1/298.15))) -> 4.4824397
Z67: 48.4 | AB67: =IF(Hidden!$D$4=1,$F$21*EXP($D$12 + $D$13/(Z67+273.15) + $D$14/POWER(Z67+273.15,2) + $D$15/POWER(Z67+273.15,3)),$F$21 * EXP($K$11 * (1/(Z67 + 273.15) - 1/298.15))) -> 4.304249006
Z68: 49.6 | AB68: =IF(Hidden!$D$4=1,$F$21*EXP($D$12 + $D$13/(Z68+273.15) + $D$14/POWER(Z68+273.15,2) + $D$15/POWER(Z68+273.15,3)),$F$21 * EXP($K$11 * (1/(Z68 + 273.15) - 1/298.15))) -> 4.134260176
Z69: 50.8 | AB69: =IF(Hidden!$D$4=1,$F$21*EXP($D$12 + $D$13/(Z69+273.15) + $D$14/POWER(Z69+273.15,2) + $D$15/POWER(Z69+273.15,3)),$F$21 * EXP($K$11 * (1/(Z69 + 273.15) - 1/298.15))) -> 3.972049434
Z70: 52 | AB70: =IF(Hidden!$D$4=1,$F$21*EXP($D$12 + $D$13/(Z70+273.15) + $D$14/POWER(Z70+273.15,2) + $D$15/POWER(Z70+273.15,3)),$F$21 * EXP($K$11 * (1/(Z70 + 273.15) - 1/298.15))) -> 3.817217105
Z71: 53.2 | AB71: =IF(Hidden!$D$4=1,$F$21*EXP($D$12 + $D$13/(Z71+273.15) + $D$14/POWER(Z71+273.15,2) + $D$15/POWER(Z71+273.15,3)),$F$21 * EXP($K$11 * (1/(Z71 + 273.15) - 1/298.15))) -> 3.669386128
Z72: 54.4 | AB72: =IF(Hidden!$D$4=1,$F$21*EXP($D$12 + $D$13/(Z72+273.15) + $D$14/POWER(Z72+273.15,2) + $D$15/POWER(Z72+273.15,3)),$F$21 * EXP($K$11 * (1/(Z72 + 273.15) - 1/298.15))) -> 3.528200663
Z73: 55.6 | AB73: =IF(Hidden!$D$4=1,$F$21*EXP($D$12 + $D$13/(Z73+273.15) + $D$14/POWER(Z73+273.15,2) + $D$15/POWER(Z73+273.15,3)),$F$21 * EXP($K$11 * (1/(Z73 + 273.15) - 1/298.15))) -> 3.393324798
Z74: 56.8 | AB74: =IF(Hidden!$D$4=1,$F$21*EXP($D$12 + $D$13/(Z74+273.15) + $D$14/POWER(Z74+273.15,2) + $D$15/POWER(Z74+273.15,3)),$F$21 * EXP($K$11 * (1/(Z74 + 273.15) - 1/298.15))) -> 3.264441337
Z75: =Z74+$I$37 -> 58 | AB75: =IF(Hidden!$D$4=1,$F$21*EXP($D$12 + $D$13/(Z75+273.15) + $D$14/POWER(Z75+273.15,2) + $D$15/POWER(Z75+273.15,3)),$F$21 * EXP($K$11 * (1/(Z75 + 273.15) - 1/298.15))) -> 3.14125066
Z76: 59.2 | AB76: =IF(Hidden!$D$4=1,$F$21*EXP($D$12 + $D$13/(Z76+273.15) + $D$14/POWER(Z76+273.15,2) + $D$15/POWER(Z76+273.15,3)),$F$21 * EXP($K$11 * (1/(Z76 + 273.15) - 1/298.15))) -> 3.023469674
Z77: 60.4 | AB77: =IF(Hidden!$D$4=1,$F$21*EXP($D$12 + $D$13/(Z77+273.15) + $D$14/POWER(Z77+273.15,2) + $D$15/POWER(Z77+273.15,3)),$F$21 * EXP($K$11 * (1/(Z77 + 273.15) - 1/298.15))) -> 2.910830813
Z78: 61.6 | AB78: =IF(Hidden!$D$4=1,$F$21*EXP($D$12 + $D$13/(Z78+273.15) + $D$14/POWER(Z78+273.15,2) + $D$15/POWER(Z78+273.15,3)),$F$21 * EXP($K$11 * (1/(Z78 + 273.15) - 1/298.15))) -> 2.803081118
Z79: 62.8 | AB79: =IF(Hidden!$D$4=1,$F$21*EXP($D$12 + $D$13/(Z79+273.15) + $D$14/POWER(Z79+273.15,2) + $D$15/POWER(Z79+273.15,3)),$F$21 * EXP($K$11 * (1/(Z79 + 273.15) - 1/298.15))) -> 2.699981365
Z80: 64 | AB80: =IF(Hidden!$D$4=1,$F$21*EXP($D$12 + $D$13/(Z80+273.15) + $D$14/POWER(Z80+273.15,2) + $D$15/POWER(Z80+273.15,3)),$F$21 * EXP($K$11 * (1/(Z80 + 273.15) - 1/298.15))) -> 2.601305258
Z81: 65.2 | AB81: =IF(Hidden!$D$4=1,$F$21*EXP($D$12 + $D$13/(Z81+273.15) + $D$14/POWER(Z81+273.15,2) + $D$15/POWER(Z81+273.15,3)),$F$21 * EXP($K$11 * (1/(Z81 + 273.15) - 1/298.15))) -> 2.506838663
Z82: 66.4 | AB82: =IF(Hidden!$D$4=1,$F$21*EXP($D$12 + $D$13/(Z82+273.15) + $D$14/POWER(Z82+273.15,2) + $D$15/POWER(Z82+273.15,3)),$F$21 * EXP($K$11 * (1/(Z82 + 273.15) - 1/298.15))) -> 2.416378902
Z83: 67.6 | AB83: =IF(Hidden!$D$4=1,$F$21*EXP($D$12 + $D$13/(Z83+273.15) + $D$14/POWER(Z83+273.15,2) + $D$15/POWER(Z83+273.15,3)),$F$21 * EXP($K$11 * (1/(Z83 + 273.15) - 1/298.15))) -> 2.329734082
Z84: 68.8 | AB84: =IF(Hidden!$D$4=1,$F$21*EXP($D$12 + $D$13/(Z84+273.15) + $D$14/POWER(Z84+273.15,2) + $D$15/POWER(Z84+273.15,3)),$F$21 * EXP($K$11 * (1/(Z84 + 273.15) - 1/298.15))) -> 2.24672247
Z85: 70 | AB85: =IF(Hidden!$D$4=1,$F$21*EXP($D$12 + $D$13/(Z85+273.15) + $D$14/POWER(Z85+273.15,2) + $D$15/POWER(Z85+273.15,3)),$F$21 * EXP($K$11 * (1/(Z85 + 273.15) - 1/298.15))) -> 2.167171909
Z86: 71.2 | AB86: =IF(Hidden!$D$4=1,$F$21*EXP($D$12 + $D$13/(Z86+273.15) + $D$14/POWER(Z86+273.15,2) + $D$15/POWER(Z86+273.15,3)),$F$21 * EXP($K$11 * (1/(Z86 + 273.15) - 1/298.15))) -> 2.090919267
Z87: 72.4 | AB87: =IF(Hidden!$D$4=1,$F$21*EXP($D$12 + $D$13/(Z87+273.15) + $D$14/POWER(Z87+273.15,2) + $D$15/POWER(Z87+273.15,3)),$F$21 * EXP($K$11 * (1/(Z87 + 273.15) - 1/298.15))) -> 2.01780992
Z88: 73.6 | AB88: =IF(Hidden!$D$4=1,$F$21*EXP($D$12 + $D$13/(Z88+273.15) + $D$14/POWER(Z88+273.15,2) + $D$15/POWER(Z88+273.15,3)),$F$21 * EXP($K$11 * (1/(Z88 + 273.15) - 1/298.15))) -> 1.94769727
Z89: 74.8 | AB89: =IF(Hidden!$D$4=1,$F$21*EXP($D$12 + $D$13/(Z89+273.15) + $D$14/POWER(Z89+273.15,2) + $D$15/POWER(Z89+273.15,3)),$F$21 * EXP($K$11 * (1/(Z89 + 273.15) - 1/298.15))) -> 1.880442288
Z90: 76 | AB90: =IF(Hidden!$D$4=1,$F$21*EXP($D$12 + $D$13/(Z90+273.15) + $D$14/POWER(Z90+273.15,2) + $D$15/POWER(Z90+273.15,3)),$F$21 * EXP($K$11 * (1/(Z90 + 273.15) - 1/298.15))) -> 1.815913093
Z91: 77.2 | AB91: =IF(Hidden!$D$4=1,$F$21*EXP($D$12 + $D$13/(Z91+273.15) + $D$14/POWER(Z91+273.15,2) + $D$15/POWER(Z91+273.15,3)),$F$21 * EXP($K$11 * (1/(Z91 + 273.15) - 1/298.15))) -> 1.753984545
Z92: 78.4 | AB92: =IF(Hidden!$D$4=1,$F$21*EXP($D$12 + $D$13/(Z92+273.15) + $D$14/POWER(Z92+273.15,2) + $D$15/POWER(Z92+273.15,3)),$F$21 * EXP($K$11 * (1/(Z92 + 273.15) - 1/298.15))) -> 1.694537872
Z93: 79.6 | AB93: =IF(Hidden!$D$4=1,$F$21*EXP($D$12 + $D$13/(Z93+273.15) + $D$14/POWER(Z93+273.15,2) + $D$15/POWER(Z93+273.15,3)),$F$21 * EXP($K$11 * (1/(Z93 + 273.15) - 1/298.15))) -> 1.637460316
Z94: 80.8 | AB94: =IF(Hidden!$D$4=1,$F$21*EXP($D$12 + $D$13/(Z94+273.15) + $D$14/POWER(Z94+273.15,2) + $D$15/POWER(Z94+273.15,3)),$F$21 * EXP($K$11 * (1/(Z94 + 273.15) - 1/298.15))) -> 1.582644799
Z95: 82 | AB95: =IF(Hidden!$D$4=1,$F$21*EXP($D$12 + $D$13/(Z95+273.15) + $D$14/POWER(Z95+273.15,2) + $D$15/POWER(Z95+273.15,3)),$F$21 * EXP($K$11 * (1/(Z95 + 273.15) - 1/298.15))) -> 1.529989614
Z96: 83.2 | AB96: =IF(Hidden!$D$4=1,$F$21*EXP($D$12 + $D$13/(Z96+273.15) + $D$14/POWER(Z96+273.15,2) + $D$15/POWER(Z96+273.15,3)),$F$21 * EXP($K$11 * (1/(Z96 + 273.15) - 1/298.15))) -> 1.479398127
Z97: 84.4 | AB97: =IF(Hidden!$D$4=1,$F$21*EXP($D$12 + $D$13/(Z97+273.15) + $D$14/POWER(Z97+273.15,2) + $D$15/POWER(Z97+273.15,3)),$F$21 * EXP($K$11 * (1/(Z97 + 273.15) - 1/298.15))) -> 1.430778501
Z98: 85.6 | AB98: =IF(Hidden!$D$4=1,$F$21*EXP($D$12 + $D$13/(Z98+273.15) + $D$14/POWER(Z98+273.15,2) + $D$15/POWER(Z98+273.15,3)),$F$21 * EXP($K$11 * (1/(Z98 + 273.15) - 1/298.15))) -> 1.384043438
Z99: 86.8 | AB99: =IF(Hidden!$D$4=1,$F$21*EXP($D$12 + $D$13/(Z99+273.15) + $D$14/POWER(Z99+273.15,2) + $D$15/POWER(Z99+273.15,3)),$F$21 * EXP($K$11 * (1/(Z99 + 273.15) - 1/298.15))) -> 1.339109931
Z100: 88 | AB100: =IF(Hidden!$D$4=1,$F$21*EXP($D$12 + $D$13/(Z100+273.15) + $D$14/POWER(Z100+273.15,2) + $D$15/POWER(Z100+273.15,3)),$F$21 * EXP($K$11 * (1/(Z100 + 273.15) - 1/298.15))) -> 1.295899036
Z101: 89.2 | AB101: =IF(Hidden!$D$4=1,$F$21*EXP($D$12 + $D$13/(Z101+273.15) + $D$14/POWER(Z101+273.15,2) + $D$15/POWER(Z101+273.15,3)),$F$21 * EXP($K$11 * (1/(Z101 + 273.15) - 1/298.15))) -> 1.254335653
Z102: 90.4 | AB102: =IF(Hidden!$D$4=1,$F$21*EXP($D$12 + $D$13/(Z102+273.15) + $D$14/POWER(Z102+273.15,2) + $D$15/POWER(Z102+273.15,3)),$F$21 * EXP($K$11 * (1/(Z102 + 273.15) - 1/298.15))) -> 1.21434832
Z103: 91.6 | AB103: =IF(Hidden!$D$4=1,$F$21*EXP($D$12 + $D$13/(Z103+273.15) + $D$14/POWER(Z103+273.15,2) + $D$15/POWER(Z103+273.15,3)),$F$21 * EXP($K$11 * (1/(Z103 + 273.15) - 1/298.15))) -> 1.175869023
Z104: 92.8 | AB104: =IF(Hidden!$D$4=1,$F$21*EXP($D$12 + $D$13/(Z104+273.15) + $D$14/POWER(Z104+273.15,2) + $D$15/POWER(Z104+273.15,3)),$F$21 * EXP($K$11 * (1/(Z104 + 273.15) - 1/298.15))) -> 1.138833012
Z105: 94 | AB105: =IF(Hidden!$D$4=1,$F$21*EXP($D$12 + $D$13/(Z105+273.15) + $D$14/POWER(Z105+273.15,2) + $D$15/POWER(Z105+273.15,3)),$F$21 * EXP($K$11 * (1/(Z105 + 273.15) - 1/298.15))) -> 1.10317863
Z106: 95.2 | AB106: =IF(Hidden!$D$4=1,$F$21*EXP($D$12 + $D$13/(Z106+273.15) + $D$14/POWER(Z106+273.15,2) + $D$15/POWER(Z106+273.15,3)),$F$21 * EXP($K$11 * (1/(Z106 + 273.15) - 1/298.15))) -> 1.06884715
Z107: 96.4 | AB107: =IF(Hidden!$D$4=1,$F$21*EXP($D$12 + $D$13/(Z107+273.15) + $D$14/POWER(Z107+273.15,2) + $D$15/POWER(Z107+273.15,3)),$F$21 * EXP($K$11 * (1/(Z107 + 273.15) - 1/298.15))) -> 1.035782626
Z108: 97.6 | AB108: =IF(Hidden!$D$4=1,$F$21*EXP($D$12 + $D$13/(Z108+273.15) + $D$14/POWER(Z108+273.15,2) + $D$15/POWER(Z108+273.15,3)),$F$21 * EXP($K$11 * (1/(Z108 + 273.15) - 1/298.15))) -> 1.003931744
Z109: 98.8 | AB109: =IF(Hidden!$D$4=1,$F$21*EXP($D$12 + $D$13/(Z109+273.15) + $D$14/POWER(Z109+273.15,2) + $D$15/POWER(Z109+273.15,3)),$F$21 * EXP($K$11 * (1/(Z109 + 273.15) - 1/298.15))) -> 0.9732436907
Z110: =V38 -> 100 | AB110: =IF(Hidden!$D$4=1,$F$21*EXP($D$12 + $D$13/(Z110+273.15) + $D$14/POWER(Z110+273.15,2) + $D$15/POWER(Z110+273.15,3)),$F$21 * EXP($K$11 * (1/(Z110 + 273.15) - 1/298.15))) -> 0.9436700216

Sheet JEITA (Li-Ion)
B2: LTC4162-L
B3: Li-Ion JEITA Calculator
B7: RSNSB = | C7: 10 | D7: mOhms
B10: jeita_region | C10: vcharge_jeita | D10: Charge Voltage (V) | E10: icharge_jeita | F10: Charge Current (A) | G10: JEITA Temperature | H10: thermistor_voltage | I10: Network Resistance (kΩ) | J10: NTC Resistance (kΩ) | K10: Temperature
B11: R1 | C11: Charger Off | F11: 0
G12: jeita_t1 | H12: 16117 | I12: =('NTC Input'!$D$27*H12/(21829-H12)) -> 28.21603641 | J12: =(('NTC Input'!$D$29 * 'NTC Input'!$D$30) - I12 * ('NTC Input'!$D$29 + 'NTC Input'!$D$30)) / (I12 - 'NTC Input'!$D$30) -> 28.21603642 | K12: =IF(Hidden!$D$4=1,1 / ('NTC Input'!$G$12 + 'NTC Input'!$G$13*LN(J12/'NTC Input'!$F$21) + 'NTC Input'!$G$14*POWER(LN(J12/'NTC Input'!$F$21),2) + 'NTC Input'!$G$15*POWER(LN(J12/'NTC Input'!$F$21),3)) -273.15,'NTC Input'!$K$11 / (LN(J12 / ('NTC Input'!$F$21 * EXP(-'NTC Input'!$K$11 / 298.15)))) - 273.15) -> -0.02532240507
B13: R2 | C13: 31 | D13: =C13*0.0125 + 3.8125 -> 4.2 | E13: 15 | F13: =(E13+1)/$C$7 -> 1.6
G14: jeita_t2 | H14: 14113 | I14: =('NTC Input'!$D$27*H14/(21829-H14)) -> 18.29056506 | J14: =(('NTC Input'!$D$29 * 'NTC Input'!$D$30) - I14 * ('NTC Input'!$D$29 + 'NTC Input'!$D$30)) / (I14 - 'NTC Input'!$D$30) -> 18.29056506 | K14: =IF(Hidden!$D$4=1,1 / ('NTC Input'!$G$12 + 'NTC Input'!$G$13*LN(J14/'NTC Input'!$F$21) + 'NTC Input'!$G$14*POWER(LN(J14/'NTC Input'!$F$21),2) + 'NTC Input'!$G$15*POWER(LN(J14/'NTC Input'!$F$21),3)) -273.15,'NTC Input'!$K$11 / (LN(J14 / ('NTC Input'!$F$21 * EXP(-'NTC Input'!$K$11 / 298.15)))) - 273.15) -> 9.984145984
B15: R3 | C15: 31 | D15: =C15*0.0125 + 3.8125 -> 4.2 | E15: 31 | F15: =(E15+1)/$C$7 -> 3.2
G16: jeita_t3 | H16: 7970 | I16: =('NTC Input'!$D$27*H16/(21829-H16)) -> 5.750775669 | J16: =(('NTC Input'!$D$29 * 'NTC Input'!$D$30) - I16 * ('NTC Input'!$D$29 + 'NTC Input'!$D$30)) / (I16 - 'NTC Input'!$D$30) -> 5.750775669 | K16: =IF(Hidden!$D$4=1,1 / ('NTC Input'!$G$12 + 'NTC Input'!$G$13*LN(J16/'NTC Input'!$F$21) + 'NTC Input'!$G$14*POWER(LN(J16/'NTC Input'!$F$21),2) + 'NTC Input'!$G$15*POWER(LN(J16/'NTC Input'!$F$21),3)) -273.15,'NTC Input'!$K$11 / (LN(J16 / ('NTC Input'!$F$21 * EXP(-'NTC Input'!$K$11 / 298.15)))) - 273.15) -> 40.01048599
B17: R4 | C17: 23 | D17: =C17*0.0125 + 3.8125 -> 4.1 | E17: 31 | F17: =(E17+1)/$C$7 -> 3.2
G18: jeita_t4 | H18: 7112 | I18: =('NTC Input'!$D$27*H18/(21829-H18)) -> 4.832506625 | J18: =(('NTC Input'!$D$29 * 'NTC Input'!$D$30) - I18 * ('NTC Input'!$D$29 + 'NTC Input'!$D$30)) / (I18 - 'NTC Input'!$D$30) -> 4.832506625 | K18: =IF(Hidden!$D$4=1,1 / ('NTC Input'!$G$12 + 'NTC Input'!$G$13*LN(J18/'NTC Input'!$F$21) + 'NTC Input'!$G$14*POWER(LN(J18/'NTC Input'!$F$21),2) + 'NTC Input'!$G$15*POWER(LN(J18/'NTC Input'!$F$21),3)) -273.15,'NTC Input'!$K$11 / (LN(J18 / ('NTC Input'!$F$21 * EXP(-'NTC Input'!$K$11 / 298.15)))) - 273.15) -> 45.00745647
B19: R5 | C19: 23 | D19: =C19*0.0125 + 3.8125 -> 4.1 | E19: 15 | F19: =(E19+1)/$C$7 -> 1.6
G20: jeita_t5 | H20: 6325 | I20: =('NTC Input'!$D$27*H20/(21829-H20)) -> 4.079592363 | J20: =(('NTC Input'!$D$29 * 'NTC Input'!$D$30) - I20 * ('NTC Input'!$D$29 + 'NTC Input'!$D$30)) / (I20 - 'NTC Input'!$D$30) -> 4.079592363 | K20: =IF(Hidden!$D$4=1,1 / ('NTC Input'!$G$12 + 'NTC Input'!$G$13*LN(J20/'NTC Input'!$F$21) + 'NTC Input'!$G$14*POWER(LN(J20/'NTC Input'!$F$21),2) + 'NTC Input'!$G$15*POWER(LN(J20/'NTC Input'!$F$21),3)) -273.15,'NTC Input'!$K$11 / (LN(J20 / ('NTC Input'!$F$21 * EXP(-'NTC Input'!$K$11 / 298.15)))) - 273.15) -> 50.00997045
B21: R6 | C21: 19 | D21: =C21*0.0125 + 3.8125 -> 4.05 | E21: 15 | F21: =(E21+1)/$C$7 -> 1.6
G22: jeita_t6 | H22: 4970 | I22: =('NTC Input'!$D$27*H22/(21829-H22)) -> 2.947980307 | J22: =(('NTC Input'!$D$29 * 'NTC Input'!$D$30) - I22 * ('NTC Input'!$D$29 + 'NTC Input'!$D$30)) / (I22 - 'NTC Input'!$D$30) -> 2.947980307 | K22: =IF(Hidden!$D$4=1,1 / ('NTC Input'!$G$12 + 'NTC Input'!$G$13*LN(J22/'NTC Input'!$F$21) + 'NTC Input'!$G$14*POWER(LN(J22/'NTC Input'!$F$21),2) + 'NTC Input'!$G$15*POWER(LN(J22/'NTC Input'!$F$21),3)) -273.15,'NTC Input'!$K$11 / (LN(J22 / ('NTC Input'!$F$21 * EXP(-'NTC Input'!$K$11 / 298.15)))) - 273.15) -> 60.00982205
B23: R7 | C23: Charger Off | F23: 0

Sheet JEITA (LiFePO4)
B2: LTC4162-F
B3: LiFePO4 JEITA Calculator
B7: RSNSB = | C7: 10 | D7: mOhms
B10: jeita_region | C10: vcharge_jeita | D10: Charge Voltage (V) | E10: icharge_jeita | F10: Charge Current (A) | G10: JEITA Temperature | H10: thermistor_voltage | I10: Network Resistance (kΩ) | J10: NTC Resistance (kΩ) | K10: Temperature
B11: R1 | C11: Charger Off | F11: 0
G12: jeita_t1 | H12: 16117 | I12: =('NTC Input'!$D$27*H12/(21829-H12)) -> 28.21603641 | J12: =(('NTC Input'!$D$29 * 'NTC Input'!$D$30) - I12 * ('NTC Input'!$D$29 + 'NTC Input'!$D$30)) / (I12 - 'NTC Input'!$D$30) -> 28.21603642 | K12: =IF(Hidden!$D$4=1,1 / ('NTC Input'!$G$12 + 'NTC Input'!$G$13*LN(J12/'NTC Input'!$F$21) + 'NTC Input'!$G$14*POWER(LN(J12/'NTC Input'!$F$21),2) + 'NTC Input'!$G$15*POWER(LN(J12/'NTC Input'!$F$21),3)) -273.15,'NTC Input'!$K$11 / (LN(J12 / ('NTC Input'!$F$21 * EXP(-'NTC Input'!$K$11 / 298.15)))) - 273.15) -> -0.02532240507
B13: R2 | C13: 15 | D13: =C13*0.0125 + 3.4125 -> 3.6 | E13: 15 | F13: =(E13+1)/$C$7 -> 1.6
G14: jeita_t2 | H14: 14113 | I14: =('NTC Input'!$D$27*H14/(21829-H14)) -> 18.29056506 | J14: =(('NTC Input'!$D$29 * 'NTC Input'!$D$30) - I14 * ('NTC Input'!$D$29 + 'NTC Input'!$D$30)) / (I14 - 'NTC Input'!$D$30) -> 18.29056506 | K14: =IF(Hidden!$D$4=1,1 / ('NTC Input'!$G$12 + 'NTC Input'!$G$13*LN(J14/'NTC Input'!$F$21) + 'NTC Input'!$G$14*POWER(LN(J14/'NTC Input'!$F$21),2) + 'NTC Input'!$G$15*POWER(LN(J14/'NTC Input'!$F$21),3)) -273.15,'NTC Input'!$K$11 / (LN(J14 / ('NTC Input'!$F$21 * EXP(-'NTC Input'!$K$11 / 298.15)))) - 273.15) -> 9.984145984
B15: R3 | C15: 15 | D15: =C15*0.0125 + 3.4125 -> 3.6 | E15: 31 | F15: =(E15+1)/$C$7 -> 3.2
G16: jeita_t3 | H16: 7970 | I16: =('NTC Input'!$D$27*H16/(21829-H16)) -> 5.750775669 | J16: =(('NTC Input'!$D$29 * 'NTC Input'!$D$30) - I16 * ('NTC Input'!$D$29 + 'NTC Input'!$D$30)) / (I16 - 'NTC Input'!$D$30) -> 5.750775669 | K16: =IF(Hidden!$D$4=1,1 / ('NTC Input'!$G$12 + 'NTC Input'!$G$13*LN(J16/'NTC Input'!$F$21) + 'NTC Input'!$G$14*POWER(LN(J16/'NTC Input'!$F$21),2) + 'NTC Input'!$G$15*POWER(LN(J16/'NTC Input'!$F$21),3)) -273.15,'NTC Input'!$K$11 / (LN(J16 / ('NTC Input'!$F$21 * EXP(-'NTC Input'!$K$11 / 298.15)))) - 273.15) -> 40.01048599
B17: R4 | C17: 7 | D17: =C17*0.0125 + 3.4125 -> 3.5 | E17: 31 | F17: =(E17+1)/$C$7 -> 3.2
G18: jeita_t4 | H18: 7112 | I18: =('NTC Input'!$D$27*H18/(21829-H18)) -> 4.832506625 | J18: =(('NTC Input'!$D$29 * 'NTC Input'!$D$30) - I18 * ('NTC Input'!$D$29 + 'NTC Input'!$D$30)) / (I18 - 'NTC Input'!$D$30) -> 4.832506625 | K18: =IF(Hidden!$D$4=1,1 / ('NTC Input'!$G$12 + 'NTC Input'!$G$13*LN(J18/'NTC Input'!$F$21) + 'NTC Input'!$G$14*POWER(LN(J18/'NTC Input'!$F$21),2) + 'NTC Input'!$G$15*POWER(LN(J18/'NTC Input'!$F$21),3)) -273.15,'NTC Input'!$K$11 / (LN(J18 / ('NTC Input'!$F$21 * EXP(-'NTC Input'!$K$11 / 298.15)))) - 273.15) -> 45.00745647
B19: R5 | C19: 7 | D19: =C19*0.0125 + 3.4125 -> 3.5 | E19: 15 | F19: =(E19+1)/$C$7 -> 1.6
G20: jeita_t5 | H20: 6325 | I20: =('NTC Input'!$D$27*H20/(21829-H20)) -> 4.079592363 | J20: =(('NTC Input'!$D$29 * 'NTC Input'!$D$30) - I20 * ('NTC Input'!$D$29 + 'NTC Input'!$D$30)) / (I20 - 'NTC Input'!$D$30) -> 4.079592363 | K20: =IF(Hidden!$D$4=1,1 / ('NTC Input'!$G$12 + 'NTC Input'!$G$13*LN(J20/'NTC Input'!$F$21) + 'NTC Input'!$G$14*POWER(LN(J20/'NTC Input'!$F$21),2) + 'NTC Input'!$G$15*POWER(LN(J20/'NTC Input'!$F$21),3)) -273.15,'NTC Input'!$K$11 / (LN(J20 / ('NTC Input'!$F$21 * EXP(-'NTC Input'!$K$11 / 298.15)))) - 273.15) -> 50.00997045
B21: R6 | C21: 3 | D21: =C21*0.0125 + 3.4125 -> 3.45 | E21: 15 | F21: =(E21+1)/$C$7 -> 1.6
G22: jeita_t6 | H22: 4970 | I22: =('NTC Input'!$D$27*H22/(21829-H22)) -> 2.947980307 | J22: =(('NTC Input'!$D$29 * 'NTC Input'!$D$30) - I22 * ('NTC Input'!$D$29 + 'NTC Input'!$D$30)) / (I22 - 'NTC Input'!$D$30) -> 2.947980307 | K22: =IF(Hidden!$D$4=1,1 / ('NTC Input'!$G$12 + 'NTC Input'!$G$13*LN(J22/'NTC Input'!$F$21) + 'NTC Input'!$G$14*POWER(LN(J22/'NTC Input'!$F$21),2) + 'NTC Input'!$G$15*POWER(LN(J22/'NTC Input'!$F$21),3)) -273.15,'NTC Input'!$K$11 / (LN(J22 / ('NTC Input'!$F$21 * EXP(-'NTC Input'!$K$11 / 298.15)))) - 273.15) -> 60.00982205
B23: R7 | C23: Charger Off | F23: 0

Sheet Temp Comp (Lead-Acid)
B2: LTC4162-S
B3: Lead-Acid Temperature Compensation Calculator
J7: Average Slope (mV/°C/cell) | N7: Temperature (°C) | P7: Charge Voltage per Cell (V)
J8: CC/CV | K8: Absorb | L8: Equalize | P8: CC/CV | Q8: Absorb | R8: Equalize
J9: =Data!L154 -> -3.707828165 | K9: =Data!M154 -> -3.705758351 | L9: =Data!N154 -> -3.706814026 | N9: -50 | P9: =VLOOKUP($N9,Data!AG4:AH148,2,TRUE) -> 14.914242 | Q9: =VLOOKUP($N9,Data!AJ4:AK148,2,TRUE) -> 15.599946 | R9: =VLOOKUP($N9,Data!AM4:AN148,2,TRUE) -> 15.599946
N10: =N9+5 -> -45 | P10: =VLOOKUP($N10,Data!AG5:AH149,2,TRUE) -> 14.799958 | Q10: =VLOOKUP($N10,Data!AJ5:AK149,2,TRUE) -> 15.599946 | R10: =VLOOKUP($N10,Data!AM5:AN149,2,TRUE) -> 15.599946
J11: (this slope will change when series or parallel resistance is added) | N11: -40 | P11: =VLOOKUP($N11,Data!AG6:AH150,2,TRUE) -> 14.685674 | Q11: =VLOOKUP($N11,Data!AJ6:AK150,2,TRUE) -> 15.599946 | R11: =VLOOKUP($N11,Data!AM6:AN150,2,TRUE) -> 15.599946
N12: -35 | P12: =VLOOKUP($N12,Data!AG7:AH151,2,TRUE) -> 14.57139 | Q12: =VLOOKUP($N12,Data!AJ7:AK151,2,TRUE) -> 15.599946 | R12: =VLOOKUP($N12,Data!AM7:AN151,2,TRUE) -> 15.599946
N13: -30 | P13: =VLOOKUP($N13,Data!AG8:AH152,2,TRUE) -> 14.457106 | Q13: =VLOOKUP($N13,Data!AJ8:AK152,2,TRUE) -> 15.599946 | R13: =VLOOKUP($N13,Data!AM8:AN152,2,TRUE) -> 15.599946
N14: -25 | P14: =VLOOKUP($N14,Data!AG9:AH153,2,TRUE) -> 14.342822 | Q14: =VLOOKUP($N14,Data!AJ9:AK153,2,TRUE) -> 15.542804 | R14: =VLOOKUP($N14,Data!AM9:AN153,2,TRUE) -> 15.599946
N15: -20 | P15: =VLOOKUP($N15,Data!AG10:AH154,2,TRUE) -> 14.228538 | Q15: =VLOOKUP($N15,Data!AJ10:AK154,2,TRUE) -> 15.42852 | R15: =VLOOKUP($N15,Data!AM10:AN154,2,TRUE) -> 15.599946
N16: -15 | P16: =VLOOKUP($N16,Data!AG11:AH155,2,TRUE) -> 14.114254 | Q16: =VLOOKUP($N16,Data!AJ11:AK155,2,TRUE) -> 15.314236 | R16: =VLOOKUP($N16,Data!AM11:AN155,2,TRUE) -> 15.599946
N17: -10 | P17: =VLOOKUP($N17,Data!AG12:AH156,2,TRUE) -> 13.99997 | Q17: =VLOOKUP($N17,Data!AJ12:AK156,2,TRUE) -> 15.199952 | R17: =VLOOKUP($N17,Data!AM12:AN156,2,TRUE) -> 15.599946
N18: -5 | P18: =VLOOKUP($N18,Data!AG13:AH157,2,TRUE) -> 13.885686 | Q18: =VLOOKUP($N18,Data!AJ13:AK157,2,TRUE) -> 15.085668 | R18: =VLOOKUP($N18,Data!AM13:AN157,2,TRUE) -> 15.599946
N19: 0 | P19: =VLOOKUP($N19,Data!AG14:AH158,2,TRUE) -> 13.771402 | Q19: =VLOOKUP($N19,Data!AJ14:AK158,2,TRUE) -> 14.971384 | R19: =VLOOKUP($N19,Data!AM14:AN158,2,TRUE) -> 15.599946
N20: 5 | P20: =VLOOKUP($N20,Data!AG15:AH159,2,TRUE) -> 13.657118 | Q20: =VLOOKUP($N20,Data!AJ15:AK159,2,TRUE) -> 14.8571 | R20: =VLOOKUP($N20,Data!AM15:AN159,2,TRUE) -> 15.599946
N21: 10 | P21: =VLOOKUP($N21,Data!AG16:AH160,2,TRUE) -> 13.542834 | Q21: =VLOOKUP($N21,Data!AJ16:AK160,2,TRUE) -> 14.742816 | R21: =VLOOKUP($N21,Data!AM16:AN160,2,TRUE) -> 15.599946
N22: 15 | P22: =VLOOKUP($N22,Data!AG17:AH161,2,TRUE) -> 13.42855 | Q22: =VLOOKUP($N22,Data!AJ17:AK161,2,TRUE) -> 14.628532 | R22: =VLOOKUP($N22,Data!AM17:AN161,2,TRUE) -> 15.599946
N23: 20 | P23: =VLOOKUP($N23,Data!AG18:AH162,2,TRUE) -> 13.314266 | Q23: =VLOOKUP($N23,Data!AJ18:AK162,2,TRUE) -> 14.514248 | R23: =VLOOKUP($N23,Data!AM18:AN162,2,TRUE) -> 15.599946
N24: 25 | P24: =VLOOKUP($N24,Data!AG19:AH163,2,TRUE) -> 13.199982 | Q24: =VLOOKUP($N24,Data!AJ19:AK163,2,TRUE) -> 14.399964 | R24: =VLOOKUP($N24,Data!AM19:AN163,2,TRUE) -> 15.599946
N25: 30 | P25: =VLOOKUP($N25,Data!AG20:AH164,2,TRUE) -> 13.085698 | Q25: =VLOOKUP($N25,Data!AJ20:AK164,2,TRUE) -> 14.28568 | R25: =VLOOKUP($N25,Data!AM20:AN164,2,TRUE) -> 15.485662
N26: 35 | P26: =VLOOKUP($N26,Data!AG21:AH165,2,TRUE) -> 12.971414 | Q26: =VLOOKUP($N26,Data!AJ21:AK165,2,TRUE) -> 14.171396 | R26: =VLOOKUP($N26,Data!AM21:AN165,2,TRUE) -> 15.371378
N27: 40 | P27: =VLOOKUP($N27,Data!AG22:AH166,2,TRUE) -> 12.914272 | Q27: =VLOOKUP($N27,Data!AJ22:AK166,2,TRUE) -> 14.114254 | R27: =VLOOKUP($N27,Data!AM22:AN166,2,TRUE) -> 15.314236
N28: 45 | P28: =VLOOKUP($N28,Data!AG23:AH167,2,TRUE) -> 12.799988 | Q28: =VLOOKUP($N28,Data!AJ23:AK167,2,TRUE) -> 13.99997 | R28: =VLOOKUP($N28,Data!AM23:AN167,2,TRUE) -> 15.199952
N29: 50 | P29: =VLOOKUP($N29,Data!AG24:AH168,2,TRUE) -> 12.685704 | Q29: =VLOOKUP($N29,Data!AJ24:AK168,2,TRUE) -> 13.885686 | R29: =VLOOKUP($N29,Data!AM24:AN168,2,TRUE) -> 15.085668
G30: # Cells = | H30: 6 | N30: 55 | P30: =VLOOKUP($N30,Data!AG25:AH169,2,TRUE) -> 12.57142 | Q30: =VLOOKUP($N30,Data!AJ25:AK169,2,TRUE) -> 13.771402 | R30: =VLOOKUP($N30,Data!AM25:AN169,2,TRUE) -> 14.971384
N31: 60 | P31: =VLOOKUP($N31,Data!AG26:AH170,2,TRUE) -> 12.457136 | Q31: =VLOOKUP($N31,Data!AJ26:AK170,2,TRUE) -> 13.657118 | R31: =VLOOKUP($N31,Data!AM26:AN170,2,TRUE) -> 14.8571
N32: 65 | P32: =VLOOKUP($N32,Data!AG27:AH171,2,TRUE) -> 12.342852 | Q32: =VLOOKUP($N32,Data!AJ27:AK171,2,TRUE) -> 13.542834 | R32: =VLOOKUP($N32,Data!AM27:AN171,2,TRUE) -> 14.742816
N33: 70 | P33: =VLOOKUP($N33,Data!AG28:AH172,2,TRUE) -> 12.228568 | Q33: =VLOOKUP($N33,Data!AJ28:AK172,2,TRUE) -> 13.42855 | R33: =VLOOKUP($N33,Data!AM28:AN172,2,TRUE) -> 14.628532
N34: 75 | P34: =VLOOKUP($N34,Data!AG29:AH173,2,TRUE) -> 12.114284 | Q34: =VLOOKUP($N34,Data!AJ29:AK173,2,TRUE) -> 13.314266 | R34: =VLOOKUP($N34,Data!AM29:AN173,2,TRUE) -> 14.514248
N35: 80 | P35: =VLOOKUP($N35,Data!AG30:AH174,2,TRUE) -> 12 | Q35: =VLOOKUP($N35,Data!AJ30:AK174,2,TRUE) -> 13.199982 | R35: =VLOOKUP($N35,Data!AM30:AN174,2,TRUE) -> 14.399964
N36: 85 | P36: =VLOOKUP($N36,Data!AG31:AH175,2,TRUE) -> 12 | Q36: =VLOOKUP($N36,Data!AJ31:AK175,2,TRUE) -> 13.085698 | R36: =VLOOKUP($N36,Data!AM31:AN175,2,TRUE) -> 14.28568
N37: 90 | P37: =VLOOKUP($N37,Data!AG32:AH176,2,TRUE) -> 12 | Q37: =VLOOKUP($N37,Data!AJ32:AK176,2,TRUE) -> 12.971414 | R37: =VLOOKUP($N37,Data!AM32:AN176,2,TRUE) -> 14.171396
N38: 95 | P38: =VLOOKUP($N38,Data!AG33:AH177,2,TRUE) -> 12 | Q38: =VLOOKUP($N38,Data!AJ33:AK177,2,TRUE) -> 12.85713 | R38: =VLOOKUP($N38,Data!AM33:AN177,2,TRUE) -> 14.057112
N39: 100 | P39: =VLOOKUP($N39,Data!AG34:AH178,2,TRUE) -> 12 | Q39: =VLOOKUP($N39,Data!AJ34:AK178,2,TRUE) -> 12.742846 | R39: =VLOOKUP($N39,Data!AM34:AN178,2,TRUE) -> 13.942828
N40: 105 | P40: =VLOOKUP($N40,Data!AG35:AH179,2,TRUE) -> 12 | Q40: =VLOOKUP($N40,Data!AJ35:AK179,2,TRUE) -> 12.628562 | R40: =VLOOKUP($N40,Data!AM35:AN179,2,TRUE) -> 13.828544
N41: 110 | P41: =VLOOKUP($N41,Data!AG36:AH180,2,TRUE) -> 12 | Q41: =VLOOKUP($N41,Data!AJ36:AK180,2,TRUE) -> 12.514278 | R41: =VLOOKUP($N41,Data!AM36:AN180,2,TRUE) -> 13.71426
N42: 115 | P42: =VLOOKUP($N42,Data!AG37:AH181,2,TRUE) -> 12 | Q42: =VLOOKUP($N42,Data!AJ37:AK181,2,TRUE) -> 12.399994 | R42: =VLOOKUP($N42,Data!AM37:AN181,2,TRUE) -> 13.599976
N43: 120 | P43: =VLOOKUP($N43,Data!AG38:AH182,2,TRUE) -> 12 | Q43: =VLOOKUP($N43,Data!AJ38:AK182,2,TRUE) -> 12.28571 | R43: =VLOOKUP($N43,Data!AM38:AN182,2,TRUE) -> 13.485692
N44: 125 | P44: =VLOOKUP($N44,Data!AG39:AH183,2,TRUE) -> 12 | Q44: =VLOOKUP($N44,Data!AJ39:AK183,2,TRUE) -> 12.171426 | R44: =VLOOKUP($N44,Data!AM39:AN183,2,TRUE) -> 13.371408
N45: 130 | P45: =VLOOKUP($N45,Data!AG40:AH184,2,TRUE) -> 12 | Q45: =VLOOKUP($N45,Data!AJ40:AK184,2,TRUE) -> 12.114284 | R45: =VLOOKUP($N45,Data!AM40:AN184,2,TRUE) -> 13.314266
N46: 135 | P46: =VLOOKUP($N46,Data!AG41:AH185,2,TRUE) -> 12 | Q46: =VLOOKUP($N46,Data!AJ41:AK185,2,TRUE) -> 12 | R46: =VLOOKUP($N46,Data!AM41:AN185,2,TRUE) -> 13.199982
N47: 140 | P47: =VLOOKUP($N47,Data!AG42:AH186,2,TRUE) -> 12 | Q47: =VLOOKUP($N47,Data!AJ42:AK186,2,TRUE) -> 12 | R47: =VLOOKUP($N47,Data!AM42:AN186,2,TRUE) -> 13.199982
N48: 145 | P48: =VLOOKUP($N48,Data!AG43:AH187,2,TRUE) -> 12 | Q48: =VLOOKUP($N48,Data!AJ43:AK187,2,TRUE) -> 12 | R48: =VLOOKUP($N48,Data!AM43:AN187,2,TRUE) -> 13.199982
N49: 150 | P49: =VLOOKUP($N49,Data!AG44:AH188,2,TRUE) -> 12 | Q49: =VLOOKUP($N49,Data!AJ44:AK188,2,TRUE) -> 12 | R49: =VLOOKUP($N49,Data!AM44:AN188,2,TRUE) -> 13.199982

Sheet Hidden (hidden)
I2: Li-Ion
C4: Formula: | D4: 1 | J4: JEITA Voltage Plot Data
C6: 1 = steinhart-hart | J6: R2 | M6: R3 | P6: R4 | S6: R5 | V6: R6
C7: 2 = beta | J7: temp | K7: voltage | M7: temp | N7: voltage | P7: temp | Q7: voltage | S7: temp | T7: voltage | V7: temp | W7: voltage
J8: ='JEITA (Li-Ion)'!$K$12 -> -0.02532240507 | K8: ='JEITA (Li-Ion)'!$D$13 -> 4.2 | M8: ='JEITA (Li-Ion)'!K14 -> 9.984145984 | N8: ='JEITA (Li-Ion)'!D15 -> 4.2 | P8: ='JEITA (Li-Ion)'!K16 -> 40.01048599 | Q8: ='JEITA (Li-Ion)'!D17 -> 4.1 | S8: ='JEITA (Li-Ion)'!K18 -> 45.00745647 | T8: ='JEITA (Li-Ion)'!D19 -> 4.1 | V8: ='JEITA (Li-Ion)'!K20 -> 50.00997045 | W8: ='JEITA (Li-Ion)'!D21 -> 4.05
J9: ='JEITA (Li-Ion)'!$K$14 -> 9.984145984 | K9: =K8 -> 4.2 | M9: ='JEITA (Li-Ion)'!K16 -> 40.01048599 | N9: =N8 -> 4.2 | P9: ='JEITA (Li-Ion)'!K18 -> 45.00745647 | Q9: =Q8 -> 4.1 | S9: ='JEITA (Li-Ion)'!K20 -> 50.00997045 | T9: =T8 -> 4.1 | V9: ='JEITA (Li-Ion)'!K22 -> 60.00982205 | W9: =W8 -> 4.05
K11: jeita_t2 | N11: jeita_t3 | Q11: jeita_t4 | T11: jeita_t5
K12: temp | L12: voltage | N12: temp | O12: voltage | Q12: temp | R12: voltage | T12: temp | U12: voltage
K13: =J9 -> 9.984145984 | L13: =K9 -> 4.2 | N13: =M9 -> 40.01048599 | O13: =N9 -> 4.2 | Q13: =P9 -> 45.00745647 | R13: =Q9 -> 4.1 | T13: =S9 -> 50.00997045 | U13: =T9 -> 4.1
K14: =K13 -> 9.984145984 | L14: =N8 -> 4.2 | N14: =N13 -> 40.01048599 | O14: =Q8 -> 4.1 | Q14: =Q13 -> 45.00745647 | R14: =T8 -> 4.1 | T14: =T13 -> 50.00997045 | U14: =W8 -> 4.05
C16: Lead Acid Temp Comp
J17: JEITA Current Plot Data
C18: N = | D18: =IF(MOD('Temp Comp (Lead-Acid)'!H30,3)=0,'Temp Comp (Lead-Acid)'!H30/3,"ERR") -> 2
C19: DAC Resolution = | D19: 0.028571 | J19: R1 | M19: R2 | P19: R3 | S19: R4 | V19: R5 | Y19: R6 | AB19: R7
C20: Charge Voltage Offset = | D20: 6 | J20: temp | K20: current | M20: temp | N20: current | P20: temp | Q20: current | S20: temp | T20: current | V20: temp | W20: current | Y20: temp | Z20: current | AB20: temp | AC20: current
J21: -100 | K21: ='JEITA (Li-Ion)'!$F$11 -> 0 | M21: =J8 -> -0.02532240507 | N21: ='JEITA (Li-Ion)'!$F$13 -> 1.6 | P21: =M8 -> 9.984145984 | Q21: ='JEITA (Li-Ion)'!$F$15 -> 3.2 | S21: =P8 -> 40.01048599 | T21: ='JEITA (Li-Ion)'!$F$17 -> 3.2 | V21: =S8 -> 45.00745647 | W21: ='JEITA (Li-Ion)'!$F$19 -> 1.6 | Y21: =V8 -> 50.00997045 | Z21: ='JEITA (Li-Ion)'!$F$21 -> 1.6 | AB21: =Y22 -> 60.00982205 | AC21: ='JEITA (Li-Ion)'!$F$23 -> 0
J22: ='JEITA (Li-Ion)'!$K$12 -> -0.02532240507 | K22: =K21 -> 0 | M22: =J9 -> 9.984145984 | N22: =N21 -> 1.6 | P22: =M9 -> 40.01048599 | Q22: =Q21 -> 3.2 | S22: =P9 -> 45.00745647 | T22: =T21 -> 3.2 | V22: =S9 -> 50.00997045 | W22: =W21 -> 1.6 | Y22: =V9 -> 60.00982205 | Z22: =Z21 -> 1.6 | AB22: 200 | AC22: =AC21 -> 0
K24: jeita_t1 | N24: jeita_t2 | Q24: jeita_t3 | T24: jeita_t4 | W24: jeita_t5 | Z24: jeita_t6
K25: temp | L25: current | N25: temp | O25: current | Q25: temp | R25: current | T25: temp | U25: current | W25: temp | X25: current | Z25: temp | AA25: current
K26: =J22 -> -0.02532240507 | L26: =K22 -> 0 | N26: =M22 -> 9.984145984 | O26: =N22 -> 1.6 | Q26: =P22 -> 40.01048599 | R26: =Q22 -> 3.2 | T26: =S22 -> 45.00745647 | U26: =T22 -> 3.2 | W26: =V22 -> 50.00997045 | X26: =W22 -> 1.6 | Z26: =Y22 -> 60.00982205 | AA26: =Z22 -> 1.6
K27: =K26 -> -0.02532240507 | L27: =N21 -> 1.6 | N27: =N26 -> 9.984145984 | O27: =Q21 -> 3.2 | Q27: =Q26 -> 40.01048599 | R27: =T21 -> 3.2 | T27: =T26 -> 45.00745647 | U27: =W21 -> 1.6 | W27: =W26 -> 50.00997045 | X27: =Z21 -> 1.6 | Z27: =Z26 -> 60.00982205 | AA27: =AC21 -> 0
I31: LiFePO4
J33: JEITA Voltage Plot Data
J35: R2 | M35: R3 | P35: R4 | S35: R5 | V35: R6
J36: temp | K36: voltage | M36: temp | N36: voltage | P36: temp | Q36: voltage | S36: temp | T36: voltage | V36: temp | W36: voltage
J37: ='JEITA (LiFePO4)'!K12 -> -0.02532240507 | K37: ='JEITA (LiFePO4)'!D13 -> 3.6 | M37: ='JEITA (LiFePO4)'!K14 -> 9.984145984 | N37: ='JEITA (LiFePO4)'!D15 -> 3.6 | P37: ='JEITA (LiFePO4)'!K16 -> 40.01048599 | Q37: ='JEITA (LiFePO4)'!D17 -> 3.5 | S37: ='JEITA (LiFePO4)'!K18 -> 45.00745647 | T37: ='JEITA (LiFePO4)'!D19 -> 3.5 | V37: ='JEITA (LiFePO4)'!K20 -> 50.00997045 | W37: ='JEITA (LiFePO4)'!D21 -> 3.45
J38: ='JEITA (LiFePO4)'!K14 -> 9.984145984 | K38: =K37 -> 3.6 | M38: ='JEITA (LiFePO4)'!K16 -> 40.01048599 | N38: =N37 -> 3.6 | P38: ='JEITA (LiFePO4)'!K18 -> 45.00745647 | Q38: =Q37 -> 3.5 | S38: ='JEITA (LiFePO4)'!K20 -> 50.00997045 | T38: =T37 -> 3.5 | V38: ='JEITA (LiFePO4)'!K22 -> 60.00982205 | W38: =W37 -> 3.45
K40: jeita_t2 | N40: jeita_t3 | Q40: jeita_t4 | T40: jeita_t5
K41: temp | L41: voltage | N41: temp | O41: voltage | Q41: temp | R41: voltage | T41: temp | U41: voltage
K42: =J38 -> 9.984145984 | L42: =K38 -> 3.6 | N42: =M38 -> 40.01048599 | O42: =N38 -> 3.6 | Q42: =P38 -> 45.00745647 | R42: =Q38 -> 3.5 | T42: =S38 -> 50.00997045 | U42: =T38 -> 3.5
K43: =K42 -> 9.984145984 | L43: =N37 -> 3.6 | N43: =N42 -> 40.01048599 | O43: =Q37 -> 3.5 | Q43: =Q42 -> 45.00745647 | R43: =T37 -> 3.5 | T43: =T42 -> 50.00997045 | U43: =W37 -> 3.45
J46: JEITA Current Plot Data
J48: R1 | M48: R2 | P48: R3 | S48: R4 | V48: R5 | Y48: R6 | AB48: R7
J49: temp | K49: current | M49: temp | N49: current | P49: temp | Q49: current | S49: temp | T49: current | V49: temp | W49: current | Y49: temp | Z49: current | AB49: temp | AC49: current
J50: -100 | K50: ='JEITA (LiFePO4)'!F11 -> 0 | M50: ='JEITA (LiFePO4)'!K12 -> -0.02532240507 | N50: ='JEITA (LiFePO4)'!F13 -> 1.6 | P50: =M51 -> 9.984145984 | Q50: ='JEITA (LiFePO4)'!F15 -> 3.2 | S50: =P51 -> 40.01048599 | T50: ='JEITA (LiFePO4)'!F17 -> 3.2 | V50: =S51 -> 45.00745647 | W50: ='JEITA (LiFePO4)'!F19 -> 1.6 | Y50: =V51 -> 50.00997045 | Z50: ='JEITA (LiFePO4)'!F21 -> 1.6 | AB50: =Y51 -> 60.00982205 | AC50: ='JEITA (LiFePO4)'!F23 -> 0
J51: ='JEITA (LiFePO4)'!K12 -> -0.02532240507 | K51: =K50 -> 0 | M51: ='JEITA (LiFePO4)'!K14 -> 9.984145984 | N51: =N50 -> 1.6 | P51: ='JEITA (LiFePO4)'!K16 -> 40.01048599 | Q51: =Q50 -> 3.2 | S51: ='JEITA (LiFePO4)'!K18 -> 45.00745647 | T51: =T50 -> 3.2 | V51: ='JEITA (LiFePO4)'!K20 -> 50.00997045 | W51: =W50 -> 1.6 | Y51: ='JEITA (LiFePO4)'!K22 -> 60.00982205 | Z51: =Z50 -> 1.6 | AB51: 200 | AC51: =AC50 -> 0
K53: jeita_t1 | N53: jeita_t2 | Q53: jeita_t3 | T53: jeita_t4 | W53: jeita_t5 | Z53: jeita_t6
K54: temp | L54: current | N54: temp | O54: current | Q54: temp | R54: current | T54: temp | U54: current | W54: temp | X54: current | Z54: temp | AA54: current
K55: =J51 -> -0.02532240507 | L55: =K51 -> 0 | N55: =M51 -> 9.984145984 | O55: =N51 -> 1.6 | Q55: =P51 -> 40.01048599 | R55: =Q51 -> 3.2 | T55: =S51 -> 45.00745647 | U55: =T51 -> 3.2 | W55: =V51 -> 50.00997045 | X55: =W51 -> 1.6 | Z55: =Y51 -> 60.00982205 | AA55: =Z51 -> 1.6
K56: =K55 -> -0.02532240507 | L56: =N50 -> 1.6 | N56: =N55 -> 9.984145984 | O56: =Q50 -> 3.2 | Q56: =Q55 -> 40.01048599 | R56: =T50 -> 3.2 | T56: =T55 -> 45.00745647 | U56: =W50 -> 1.6 | W56: =W55 -> 50.00997045 | X56: =Z50 -> 1.6 | Z56: =Z55 -> 60.00982205 | AA56: =AC50 -> 0

Sheet Data (hidden)
A1: NTC_RATIO | B1: DAC CODE | E1: RNTC (of whole network) (kOhms) | F1: NTC Resistance (kOhms) | G1: Temperature (degC) | H1: Vetted Temperature (degC) | I1: Charge Voltage | L1: Local Slope (mV/degC/cell) | AK1: these are for VLOOKUP
B2: CC/CV | C2: ABSORB | D2: EQUALIZE | I2: CC/CV | J2: ABSORB | K2: EQUALIZE | L2: CC/CV | M2: ABSORB | N2: EQUALIZE | Y2: LTC4162 | AB2: LTC4015
A3: 50000 | B3: 51 | C3: 63 | D3: 63 | G3: -100 | H3: =IF(ISERROR(G4),NA(),G3) -> -100 | I3: =Hidden!$D$18 * (B3*Hidden!$D$19 + Hidden!$D$20) -> 14.914242 | J3: =Hidden!$D$18 * (C3*Hidden!$D$19 + Hidden!$D$20) -> 15.599946 | K3: =Hidden!$D$18 * (D3*Hidden!$D$19 + Hidden!$D$20) -> 15.599946 | L3: =(I4-I3)/(F4-F3)/'Temp Comp (Lead-Acid)'!$H$30*1000 -> 0 | M3: =(J4-J3)/(G4-G3)/'Temp Comp (Lead-Acid)'!$H$30*1000 -> 0 | N3: =(K4-K3)/(H4-H3)/'Temp Comp (Lead-Acid)'!$H$30*1000 -> 0 | AH3: CC/CV | AK3: ABSORB | AN3: EQUALIZE
A4: 21353 | B4: 51 | C4: 63 | D4: 63 | E4: ='NTC Input'!$D$27 * A4 / (21829 - A4) -> 448.592437 | F4: =1/((1/E4) - (1/'NTC Input'!$D$30)) - 'NTC Input'!$D$29 -> 448.5924372 | G4: =IF(Hidden!$D$4=1, 1 / ('NTC Input'!$G$12 + 'NTC Input'!$G$13*LN(F4/'NTC Input'!$F$21) + 'NTC Input'!$G$14*POWER(LN(F4/'NTC Input'!$F$21),2) + 'NTC Input'!$G$15*POWER(LN(F4/'NTC Input'!$F$21),3)) -273.15, 'NTC Input'!$K$11 / (LN(F4 / ('NTC Input'!$F$21 * EXP(-'NTC Input'!$K$11 / 298.15)))) - 273.15) -> -52.35720903 | H4: =IFERROR(G4,NA()) -> -52.35720903 | I4: =Hidden!$D$18 * (B4*Hidden!$D$19 + Hidden!$D$20) -> 14.914242 | J4: =Hidden!$D$18 * (C4*Hidden!$D$19 + Hidden!$D$20) -> 15.599946 | K4: =Hidden!$D$18 * (D4*Hidden!$D$19 + Hidden!$D$20) -> 15.599946 | L4: =(I6-I4)/($G6-$G4)/'Temp Comp (Lead-Acid)'!$H$30*1000 -> -3.745450183 | M4: =(J6-J4)/($G6-$G4)/'Temp Comp (Lead-Acid)'!$H$30*1000 -> 0 | N4: =(K6-K4)/($G6-$G4)/'Temp Comp (Lead-Acid)'!$H$30*1000 -> 0 | Y4: 21353 | AB4: 21367 | AG4: =H4 -> -52.35720903 | AH4: =I4 -> 14.914242 | AJ4: =H4 -> -52.35720903 | AK4: =J4 -> 15.599946 | AM4: =H4 -> -52.35720903 | AN4: =K4 -> 15.599946
G5: =G6 -> -49.81447953 | H5: =IFERROR(G5,NA()) -> -49.81447953 | I5: =I4 -> 14.914242 | J5: =J4 -> 15.599946 | K5: =K4 -> 15.599946 | AG5: =H5 -> -49.81447953 | AH5: =I5 -> 14.914242 | AJ5: =H5 -> -49.81447953 | AK5: =J5 -> 15.599946 | AM5: =H5 -> -49.81447953 | AN5: =K5 -> 15.599946
A6: 21274 | B6: 50 | C6: 63 | D6: 63 | E6: ='NTC Input'!$D$27 * A6 / (21829 - A6) -> 383.3153153 | F6: =1/((1/E6) - (1/'NTC Input'!$D$30)) - 'NTC Input'!$D$29 -> 383.3153155 | G6: =IF(Hidden!$D$4=1, 1 / ('NTC Input'!$G$12 + 'NTC Input'!$G$13*LN(F6/'NTC Input'!$F$21) + 'NTC Input'!$G$14*POWER(LN(F6/'NTC Input'!$F$21),2) + 'NTC Input'!$G$15*POWER(LN(F6/'NTC Input'!$F$21),3)) -273.15, 'NTC Input'!$K$11 / (LN(F6 / ('NTC Input'!$F$21 * EXP(-'NTC Input'!$K$11 / 298.15)))) - 273.15) -> -49.81447953 | H6: -49.81447953 | I6: =Hidden!$D$18 * (B6*Hidden!$D$19 + Hidden!$D$20) -> 14.8571 | J6: =Hidden!$D$18 * (C6*Hidden!$D$19 + Hidden!$D$20) -> 15.599946 | K6: =Hidden!$D$18 * (D6*Hidden!$D$19 + Hidden!$D$20) -> 15.599946 | L6: =(I8-I6)/($G8-$G6)/'Temp Comp (Lead-Acid)'!$H$30*1000 -> -3.708728192 | M6: =(J8-J6)/($G8-$G6)/'Temp Comp (Lead-Acid)'!$H$30*1000 -> 0 | N6: =(K8-K6)/($G8-$G6)/'Temp Comp (Lead-Acid)'!$H$30*1000 -> 0 | Y6: 21274 | AB6: 21288 | AG6: -49.81447953 | AH6: 14.8571 | AJ6: -49.81447953 | AK6: 15.599946 | AM6: -49.81447953 | AN6: 15.599946
G7: =G8 -> -47.24657318 | H7: -47.24657318 | I7: =I6 -> 14.8571 | J7: =J6 -> 15.599946 | K7: =K6 -> 15.599946 | AG7: -47.24657318 | AH7: 14.8571 | AJ7: -47.24657318 | AK7: 15.599946 | AM7: -47.24657318 | AN7: 15.599946
A8: 21183 | B8: 49 | C8: 63 | D8: 63 | E8: ='NTC Input'!$D$27 * A8 / (21829 - A8) -> 327.9102167 | F8: =1/((1/E8) - (1/'NTC Input'!$D$30)) - 'NTC Input'!$D$29 -> 327.9102168 | G8: =IF(Hidden!$D$4=1, 1 / ('NTC Input'!$G$12 + 'NTC Input'!$G$13*LN(F8/'NTC Input'!$F$21) + 'NTC Input'!$G$14*POWER(LN(F8/'NTC Input'!$F$21),2) + 'NTC Input'!$G$15*POWER(LN(F8/'NTC Input'!$F$21),3)) -273.15, 'NTC Input'!$K$11 / (LN(F8 / ('NTC Input'!$F$21 * EXP(-'NTC Input'!$K$11 / 298.15)))) - 273.15) -> -47.24657318 | H8: -47.24657318 | I8: =Hidden!$D$18 * (B8*Hidden!$D$19 + Hidden!$D$20) -> 14.799958 | J8: =Hidden!$D$18 * (C8*Hidden!$D$19 + Hidden!$D$20) -> 15.599946 | K8: =Hidden!$D$18 * (D8*Hidden!$D$19 + Hidden!$D$20) -> 15.599946 | L8: =(I10-I8)/($G10-$G8)/'Temp Comp (Lead-Acid)'!$H$30*1000 -> -3.724767893 | M8: =(J10-J8)/($G10-$G8)/'Temp Comp (Lead-Acid)'!$H$30*1000 -> 0 | N8: =(K10-K8)/($G10-$G8)/'Temp Comp (Lead-Acid)'!$H$30*1000 -> 0 | Y8: 21183 | AB8: 21198 | AG8: -47.24657318 | AH8: 14.799958 | AJ8: -47.24657318 | AK8: 15.599946 | AM8: -47.24657318 | AN8: 15.599946
G9: =G10 -> -44.68972482 | H9: -44.68972482 | I9: =I8 -> 14.799958 | J9: =J8 -> 15.599946 | K9: =K8 -> 15.599946 | AG9: -44.68972482 | AH9: 14.799958 | AJ9: -44.68972482 | AK9: 15.599946 | AM9: -44.68972482 | AN9: 15.599946
A10: 21080 | B10: 48 | C10: 63 | D10: 63 | E10: ='NTC Input'!$D$27 * A10 / (21829 - A10) -> 281.4419226 | F10: =1/((1/E10) - (1/'NTC Input'!$D$30)) - 'NTC Input'!$D$29 -> 281.4419226 | G10: =IF(Hidden!$D$4=1, 1 / ('NTC Input'!$G$12 + 'NTC Input'!$G$13*LN(F10/'NTC Input'!$F$21) + 'NTC Input'!$G$14*POWER(LN(F10/'NTC Input'!$F$21),2) + 'NTC Input'!$G$15*POWER(LN(F10/'NTC Input'!$F$21),3)) -273.15, 'NTC Input'!$K$11 / (LN(F10 / ('NTC Input'!$F$21 * EXP(-'NTC Input'!$K$11 / 298.15)))) - 273.15) -> -44.68972482 | H10: -44.68972482 | I10: =Hidden!$D$18 * (B10*Hidden!$D$19 + Hidden!$D$20) -> 14.742816 | J10: =Hidden!$D$18 * (C10*Hidden!$D$19 + Hidden!$D$20) -> 15.599946 | K10: =Hidden!$D$18 * (D10*Hidden!$D$19 + Hidden!$D$20) -> 15.599946 | L10: =(I12-I10)/($G12-$G10)/'Temp Comp (Lead-Acid)'!$H$30*1000 -> -3.743275316 | M10: =(J12-J10)/($G12-$G10)/'Temp Comp (Lead-Acid)'!$H$30*1000 -> 0 | N10: =(K12-K10)/($G12-$G10)/'Temp Comp (Lead-Acid)'!$H$30*1000 -> 0 | Y10: 21080 | AB10: 21095 | AG10: -44.68972482 | AH10: 14.742816 | AJ10: -44.68972482 | AK10: 15.599946 | AM10: -44.68972482 | AN10: 15.599946
G11: =G12 -> -42.14551798 | H11: -42.14551798 | I11: =I10 -> 14.742816 | J11: =J10 -> 15.599946 | K11: =K10 -> 15.599946 | AG11: -42.14551798 | AH11: 14.742816 | AJ11: -42.14551798 | AK11: 15.599946 | AM11: -42.14551798 | AN11: 15.599946
A12: 20964 | B12: 47 | C12: 63 | D12: 63 | E12: ='NTC Input'!$D$27 * A12 / (21829 - A12) -> 242.3583815 | F12: =1/((1/E12) - (1/'NTC Input'!$D$30)) - 'NTC Input'!$D$29 -> 242.3583816 | G12: =IF(Hidden!$D$4=1, 1 / ('NTC Input'!$G$12 + 'NTC Input'!$G$13*LN(F12/'NTC Input'!$F$21) + 'NTC Input'!$G$14*POWER(LN(F12/'NTC Input'!$F$21),2) + 'NTC Input'!$G$15*POWER(LN(F12/'NTC Input'!$F$21),3)) -273.15, 'NTC Input'!$K$11 / (LN(F12 / ('NTC Input'!$F$21 * EXP(-'NTC Input'!$K$11 / 298.15)))) - 273.15) -> -42.14551798 | H12: -42.14551798 | I12: =Hidden!$D$18 * (B12*Hidden!$D$19 + Hidden!$D$20) -> 14.685674 | J12: =Hidden!$D$18 * (C12*Hidden!$D$19 + Hidden!$D$20) -> 15.599946 | K12: =Hidden!$D$18 * (D12*Hidden!$D$19 + Hidden!$D$20) -> 15.599946 | L12: =(I14-I12)/($G14-$G12)/'Temp Comp (Lead-Acid)'!$H$30*1000 -> -3.709761488 | M12: =(J14-J12)/($G14-$G12)/'Temp Comp (Lead-Acid)'!$H$30*1000 -> 0 | N12: =(K14-K12)/($G14-$G12)/'Temp Comp (Lead-Acid)'!$H$30*1000 -> 0 | Y12: 20964 | AB12: 20978 | AG12: -42.14551798 | AH12: 14.685674 | AJ12: -42.14551798 | AK12: 15.599946 | AM12: -42.14551798 | AN12: 15.599946
G13: =G14 -> -39.57832688 | H13: -39.57832688 | I13: =I12 -> 14.685674 | J13: =J12 -> 15.599946 | K13: =K12 -> 15.599946 | AG13: -39.57832688 | AH13: 14.685674 | AJ13: -39.57832688 | AK13: 15.599946 | AM13: -39.57832688 | AN13: 15.599946
A14: 20832 | B14: 46 | C14: 63 | D14: 63 | E14: ='NTC Input'!$D$27 * A14 / (21829 - A14) -> 208.9468405 | F14: =1/((1/E14) - (1/'NTC Input'!$D$30)) - 'NTC Input'!$D$29 -> 208.9468406 | G14: =IF(Hidden!$D$4=1, 1 / ('NTC Input'!$G$12 + 'NTC Input'!$G$13*LN(F14/'NTC Input'!$F$21) + 'NTC Input'!$G$14*POWER(LN(F14/'NTC Input'!$F$21),2) + 'NTC Input'!$G$15*POWER(LN(F14/'NTC Input'!$F$21),3)) -273.15, 'NTC Input'!$K$11 / (LN(F14 / ('NTC Input'!$F$21 * EXP(-'NTC Input'!$K$11 / 298.15)))) - 273.15) -> -39.57832688 | H14: -39.57832688 | I14: =Hidden!$D$18 * (B14*Hidden!$D$19 + Hidden!$D$20) -> 14.628532 | J14: =Hidden!$D$18 * (C14*Hidden!$D$19 + Hidden!$D$20) -> 15.599946 | K14: =Hidden!$D$18 * (D14*Hidden!$D$19 + Hidden!$D$20) -> 15.599946 | L14: =(I16-I14)/($G16-$G14)/'Temp Comp (Lead-Acid)'!$H$30*1000 -> -3.741917055 | M14: =(J16-J14)/($G16-$G14)/'Temp Comp (Lead-Acid)'!$H$30*1000 -> 0 | N14: =(K16-K14)/($G16-$G14)/'Temp Comp (Lead-Acid)'!$H$30*1000 -> 0 | Y14: 20832 | AB14: 20847 | AG14: -39.57832688 | AH14: 14.628532 | AJ14: -39.57832688 | AK14: 15.599946 | AM14: -39.57832688 | AN14: 15.599946
G15: =G16 -> -37.03319653 | H15: -37.03319653 | I15: =I14 -> 14.628532 | J15: =J14 -> 15.599946 | K15: =K14 -> 15.599946 | AG15: -37.03319653 | AH15: 14.628532 | AJ15: -37.03319653 | AK15: 15.599946 | AM15: -37.03319653 | AN15: 15.599946
A16: 20685 | B16: 45 | C16: 63 | D16: 63 | E16: ='NTC Input'!$D$27 * A16 / (21829 - A16) -> 180.8129371 | F16: =1/((1/E16) - (1/'NTC Input'!$D$30)) - 'NTC Input'!$D$29 -> 180.8129371 | G16: =IF(Hidden!$D$4=1, 1 / ('NTC Input'!$G$12 + 'NTC Input'!$G$13*LN(F16/'NTC Input'!$F$21) + 'NTC Input'!$G$14*POWER(LN(F16/'NTC Input'!$F$21),2) + 'NTC Input'!$G$15*POWER(LN(F16/'NTC Input'!$F$21),3)) -273.15, 'NTC Input'!$K$11 / (LN(F16 / ('NTC Input'!$F$21 * EXP(-'NTC Input'!$K$11 / 298.15)))) - 273.15) -> -37.03319653 | H16: -37.03319653 | I16: =Hidden!$D$18 * (B16*Hidden!$D$19 + Hidden!$D$20) -> 14.57139 | J16: =Hidden!$D$18 * (C16*Hidden!$D$19 + Hidden!$D$20) -> 15.599946 | K16: =Hidden!$D$18 * (D16*Hidden!$D$19 + Hidden!$D$20) -> 15.599946 | L16: =(I18-I16)/($G18-$G16)/'Temp Comp (Lead-Acid)'!$H$30*1000 -> -3.707225791 | M16: =(J18-J16)/($G18-$G16)/'Temp Comp (Lead-Acid)'!$H$30*1000 -> 0 | N16: =(K18-K16)/($G18-$G16)/'Temp Comp (Lead-Acid)'!$H$30*1000 -> 0 | Y16: 20685 | AB16: 20699 | AG16: -37.03319653 | AH16: 14.57139 | AJ16: -37.03319653 | AK16: 15.599946 | AM16: -37.03319653 | AN16: 15.599946
G17: =G18 -> -34.46424951 | H17: -34.46424951 | I17: =I16 -> 14.57139 | J17: =J16 -> 15.599946 | K17: =K16 -> 15.599946 | AG17: -34.46424951 | AH17: 14.57139 | AJ17: -34.46424951 | AK17: 15.599946 | AM17: -34.46424951 | AN17: 15.599946
A18: 20519 | B18: 44 | C18: 63 | D18: 63 | E18: ='NTC Input'!$D$27 * A18 / (21829 - A18) -> 156.6335878 | F18: =1/((1/E18) - (1/'NTC Input'!$D$30)) - 'NTC Input'!$D$29 -> 156.6335878 | G18: =IF(Hidden!$D$4=1, 1 / ('NTC Input'!$G$12 + 'NTC Input'!$G$13*LN(F18/'NTC Input'!$F$21) + 'NTC Input'!$G$14*POWER(LN(F18/'NTC Input'!$F$21),2) + 'NTC Input'!$G$15*POWER(LN(F18/'NTC Input'!$F$21),3)) -273.15, 'NTC Input'!$K$11 / (LN(F18 / ('NTC Input'!$F$21 * EXP(-'NTC Input'!$K$11 / 298.15)))) - 273.15) -> -34.46424951 | H18: -34.46424951 | I18: =Hidden!$D$18 * (B18*Hidden!$D$19 + Hidden!$D$20) -> 14.514248 | J18: =Hidden!$D$18 * (C18*Hidden!$D$19 + Hidden!$D$20) -> 15.599946 | K18: =Hidden!$D$18 * (D18*Hidden!$D$19 + Hidden!$D$20) -> 15.599946 | L18: =(I20-I18)/($G20-$G18)/'Temp Comp (Lead-Acid)'!$H$30*1000 -> -3.707817815 | M18: =(J20-J18)/($G20-$G18)/'Temp Comp (Lead-Acid)'!$H$30*1000 -> 0 | N18: =(K20-K18)/($G20-$G18)/'Temp Comp (Lead-Acid)'!$H$30*1000 -> 0 | Y18: 20519 | AB18: 20533 | AG18: -34.46424951 | AH18: 14.514248 | AJ18: -34.46424951 | AK18: 15.599946 | AM18: -34.46424951 | AN18: 15.599946
G19: =G20 -> -31.89571266 | H19: -31.89571266 | I19: =I18 -> 14.514248 | J19: =J18 -> 15.599946 | K19: =K18 -> 15.599946 | AG19: -31.89571266 | AH19: 14.514248 | AJ19: -31.89571266 | AK19: 15.599946 | AM19: -31.89571266 | AN19: 15.599946
A20: 20334 | B20: 43 | C20: 63 | D20: 63 | E20: ='NTC Input'!$D$27 * A20 / (21829 - A20) -> 136.0133779 | F20: =1/((1/E20) - (1/'NTC Input'!$D$30)) - 'NTC Input'!$D$29 -> 136.0133779 | G20: =IF(Hidden!$D$4=1, 1 / ('NTC Input'!$G$12 + 'NTC Input'!$G$13*LN(F20/'NTC Input'!$F$21) + 'NTC Input'!$G$14*POWER(LN(F20/'NTC Input'!$F$21),2) + 'NTC Input'!$G$15*POWER(LN(F20/'NTC Input'!$F$21),3)) -273.15, 'NTC Input'!$K$11 / (LN(F20 / ('NTC Input'!$F$21 * EXP(-'NTC Input'!$K$11 / 298.15)))) - 273.15) -> -31.89571266 | H20: -31.89571266 | I20: =Hidden!$D$18 * (B20*Hidden!$D$19 + Hidden!$D$20) -> 14.457106 | J20: =Hidden!$D$18 * (C20*Hidden!$D$19 + Hidden!$D$20) -> 15.599946 | K20: =Hidden!$D$18 * (D20*Hidden!$D$19 + Hidden!$D$20) -> 15.599946 | L20: =(I22-I20)/($G22-$G20)/'Temp Comp (Lead-Acid)'!$H$30*1000 -> -3.713143254 | M20: =(J22-J20)/($G22-$G20)/'Temp Comp (Lead-Acid)'!$H$30*1000 -> 0 | N20: =(K22-K20)/($G22-$G20)/'Temp Comp (Lead-Acid)'!$H$30*1000 -> 0 | Y20: 20334 | AB20: 20348 | AG20: -31.89571266 | AH20: 14.457106 | AJ20: -31.89571266 | AK20: 15.599946 | AM20: -31.89571266 | AN20: 15.599946
G21: =G22 -> -29.33085965 | H21: -29.33085965 | I21: =I20 -> 14.457106 | J21: =J20 -> 15.599946 | K21: =K20 -> 15.599946 | AG21: -29.33085965 | AH21: 14.457106 | AJ21: -29.33085965 | AK21: 15.599946 | AM21: -29.33085965 | AN21: 15.599946
A22: 20129 | B22: 42 | C22: 63 | D22: 63 | E22: ='NTC Input'!$D$27 * A22 / (21829 - A22) -> 118.4058824 | F22: =1/((1/E22) - (1/'NTC Input'!$D$30)) - 'NTC Input'!$D$29 -> 118.4058824 | G22: =IF(Hidden!$D$4=1, 1 / ('NTC Input'!$G$12 + 'NTC Input'!$G$13*LN(F22/'NTC Input'!$F$21) + 'NTC Input'!$G$14*POWER(LN(F22/'NTC Input'!$F$21),2) + 'NTC Input'!$G$15*POWER(LN(F22/'NTC Input'!$F$21),3)) -273.15, 'NTC Input'!$K$11 / (LN(F22 / ('NTC Input'!$F$21 * EXP(-'NTC Input'!$K$11 / 298.15)))) - 273.15) -> -29.33085965 | H22: -29.33085965 | I22: =Hidden!$D$18 * (B22*Hidden!$D$19 + Hidden!$D$20) -> 14.399964 | J22: =Hidden!$D$18 * (C22*Hidden!$D$19 + Hidden!$D$20) -> 15.599946 | K22: =Hidden!$D$18 * (D22*Hidden!$D$19 + Hidden!$D$20) -> 15.599946 | L22: =(I24-I22)/($G24-$G22)/'Temp Comp (Lead-Acid)'!$H$30*1000 -> -3.720269935 | M22: =(J24-J22)/($G24-$G22)/'Temp Comp (Lead-Acid)'!$H$30*1000 -> -3.720269935 | N22: =(K24-K22)/($G24-$G22)/'Temp Comp (Lead-Acid)'!$H$30*1000 -> 0 | Y22: 20129 | AB22: 20143 | AG22: -29.33085965 | AH22: 14.399964 | AJ22: -29.33085965 | AK22: 15.599946 | AM22: -29.33085965 | AN22: 15.599946
G23: =G24 -> -26.77091996 | H23: -26.77091996 | I23: =I22 -> 14.399964 | J23: =J22 -> 15.599946 | K23: =K22 -> 15.599946 | AG23: -26.77091996 | AH23: 14.399964 | AJ23: -26.77091996 | AK23: 15.599946 | AM23: -26.77091996 | AN23: 15.599946
A24: 19903 | B24: 41 | C24: 62 | D24: 63 | E24: ='NTC Input'!$D$27 * A24 / (21829 - A24) -> 103.3385254 | F24: =1/((1/E24) - (1/'NTC Input'!$D$30)) - 'NTC Input'!$D$29 -> 103.3385255 | G24: =IF(Hidden!$D$4=1, 1 / ('NTC Input'!$G$12 + 'NTC Input'!$G$13*LN(F24/'NTC Input'!$F$21) + 'NTC Input'!$G$14*POWER(LN(F24/'NTC Input'!$F$21),2) + 'NTC Input'!$G$15*POWER(LN(F24/'NTC Input'!$F$21),3)) -273.15, 'NTC Input'!$K$11 / (LN(F24 / ('NTC Input'!$F$21 * EXP(-'NTC Input'!$K$11 / 298.15)))) - 273.15) -> -26.77091996 | H24: -26.77091996 | I24: =Hidden!$D$18 * (B24*Hidden!$D$19 + Hidden!$D$20) -> 14.342822 | J24: =Hidden!$D$18 * (C24*Hidden!$D$19 + Hidden!$D$20) -> 15.542804 | K24: =Hidden!$D$18 * (D24*Hidden!$D$19 + Hidden!$D$20) -> 15.599946 | L24: =(I26-I24)/($G26-$G24)/'Temp Comp (Lead-Acid)'!$H$30*1000 -> -3.698368795 | M24: =(J26-J24)/($G26-$G24)/'Temp Comp (Lead-Acid)'!$H$30*1000 -> -3.698368795 | N24: =(K26-K24)/($G26-$G24)/'Temp Comp (Lead-Acid)'!$H$30*1000 -> 0 | Y24: 19903 | AB24: 19916 | AG24: -26.77091996 | AH24: 14.342822 | AJ24: -26.77091996 | AK24: 15.542804 | AM24: -26.77091996 | AN24: 15.599946
G25: =G26 -> -24.19582072 | H25: -24.19582072 | I25: =I24 -> 14.342822 | J25: =J24 -> 15.542804 | K25: =K24 -> 15.599946 | AG25: -24.19582072 | AH25: 14.342822 | AJ25: -24.19582072 | AK25: 15.542804 | AM25: -24.19582072 | AN25: 15.599946
A26: 19653 | B26: 40 | C26: 61 | D26: 63 | E26: ='NTC Input'!$D$27 * A26 / (21829 - A26) -> 90.31709559 | F26: =1/((1/E26) - (1/'NTC Input'!$D$30)) - 'NTC Input'!$D$29 -> 90.3170956 | G26: =IF(Hidden!$D$4=1, 1 / ('NTC Input'!$G$12 + 'NTC Input'!$G$13*LN(F26/'NTC Input'!$F$21) + 'NTC Input'!$G$14*POWER(LN(F26/'NTC Input'!$F$21),2) + 'NTC Input'!$G$15*POWER(LN(F26/'NTC Input'!$F$21),3)) -273.15, 'NTC Input'!$K$11 / (LN(F26 / ('NTC Input'!$F$21 * EXP(-'NTC Input'!$K$11 / 298.15)))) - 273.15) -> -24.19582072 | H26: -24.19582072 | I26: =Hidden!$D$18 * (B26*Hidden!$D$19 + Hidden!$D$20) -> 14.28568 | J26: =Hidden!$D$18 * (C26*Hidden!$D$19 + Hidden!$D$20) -> 15.485662 | K26: =Hidden!$D$18 * (D26*Hidden!$D$19 + Hidden!$D$20) -> 15.599946 | L26: =(I28-I26)/($G28-$G26)/'Temp Comp (Lead-Acid)'!$H$30*1000 -> -3.707219005 | M26: =(J28-J26)/($G28-$G26)/'Temp Comp (Lead-Acid)'!$H$30*1000 -> -3.707219005 | N26: =(K28-K26)/($G28-$G26)/'Temp Comp (Lead-Acid)'!$H$30*1000 -> 0 | Y26: 19653 | AB26: 19667 | AG26: -24.19582072 | AH26: 14.28568 | AJ26: -24.19582072 | AK26: 15.485662 | AM26: -24.19582072 | AN26: 15.599946
G27: =G28 -> -21.62686899 | H27: -21.62686899 | I27: =I26 -> 14.28568 | J27: =J26 -> 15.485662 | K27: =K26 -> 15.599946 | AG27: -21.62686899 | AH27: 14.28568 | AJ27: -21.62686899 | AK27: 15.485662 | AM27: -21.62686899 | AN27: 15.599946
A28: 19380 | B28: 39 | C28: 60 | D28: 63 | E28: ='NTC Input'!$D$27 * A28 / (21829 - A28) -> 79.13434055 | F28: =1/((1/E28) - (1/'NTC Input'!$D$30)) - 'NTC Input'!$D$29 -> 79.13434055 | G28: =IF(Hidden!$D$4=1, 1 / ('NTC Input'!$G$12 + 'NTC Input'!$G$13*LN(F28/'NTC Input'!$F$21) + 'NTC Input'!$G$14*POWER(LN(F28/'NTC Input'!$F$21),2) + 'NTC Input'!$G$15*POWER(LN(F28/'NTC Input'!$F$21),3)) -273.15, 'NTC Input'!$K$11 / (LN(F28 / ('NTC Input'!$F$21 * EXP(-'NTC Input'!$K$11 / 298.15)))) - 273.15) -> -21.62686899 | H28: -21.62686899 | I28: =Hidden!$D$18 * (B28*Hidden!$D$19 + Hidden!$D$20) -> 14.228538 | J28: =Hidden!$D$18 * (C28*Hidden!$D$19 + Hidden!$D$20) -> 15.42852 | K28: =Hidden!$D$18 * (D28*Hidden!$D$19 + Hidden!$D$20) -> 15.599946 | L28: =(I30-I28)/($G30-$G28)/'Temp Comp (Lead-Acid)'!$H$30*1000 -> -3.711160118 | M28: =(J30-J28)/($G30-$G28)/'Temp Comp (Lead-Acid)'!$H$30*1000 -> -3.711160118 | N28: =(K30-K28)/($G30-$G28)/'Temp Comp (Lead-Acid)'!$H$30*1000 -> 0 | Y28: 19380 | AB28: 19394 | AG28: -21.62686899 | AH28: 14.228538 | AJ28: -21.62686899 | AK28: 15.42852 | AM28: -21.62686899 | AN28: 15.599946
G29: =G30 -> -19.0606454 | H29: -19.0606454 | I29: =I28 -> 14.228538 | J29: =J28 -> 15.42852 | K29: =K28 -> 15.599946 | AG29: -19.0606454 | AH29: 14.228538 | AJ29: -19.0606454 | AK29: 15.42852 | AM29: -19.0606454 | AN29: 15.599946
A30: 19083 | B30: 38 | C30: 59 | D30: 63 | E30: ='NTC Input'!$D$27 * A30 / (21829 - A30) -> 69.49380918 | F30: =1/((1/E30) - (1/'NTC Input'!$D$30)) - 'NTC Input'!$D$29 -> 69.49380918 | G30: =IF(Hidden!$D$4=1, 1 / ('NTC Input'!$G$12 + 'NTC Input'!$G$13*LN(F30/'NTC Input'!$F$21) + 'NTC Input'!$G$14*POWER(LN(F30/'NTC Input'!$F$21),2) + 'NTC Input'!$G$15*POWER(LN(F30/'NTC Input'!$F$21),3)) -273.15, 'NTC Input'!$K$11 / (LN(F30 / ('NTC Input'!$F$21 * EXP(-'NTC Input'!$K$11 / 298.15)))) - 273.15) -> -19.0606454 | H30: -19.0606454 | I30: =Hidden!$D$18 * (B30*Hidden!$D$19 + Hidden!$D$20) -> 14.171396 | J30: =Hidden!$D$18 * (C30*Hidden!$D$19 + Hidden!$D$20) -> 15.371378 | K30: =Hidden!$D$18 * (D30*Hidden!$D$19 + Hidden!$D$20) -> 15.599946 | L30: =(I32-I30)/($G32-$G30)/'Temp Comp (Lead-Acid)'!$H$30*1000 -> -3.709010701 | M30: =(J32-J30)/($G32-$G30)/'Temp Comp (Lead-Acid)'!$H$30*1000 -> -3.709010701 | N30: =(K32-K30)/($G32-$G30)/'Temp Comp (Lead-Acid)'!$H$30*1000 -> 0 | Y30: 19083 | AB30: 19096 | AG30: -19.0606454 | AH30: 14.171396 | AJ30: -19.0606454 | AK30: 15.371378 | AM30: -19.0606454 | AN30: 15.599946
G31: =G32 -> -16.49293464 | H31: -16.49293464 | I31: =I30 -> 14.171396 | J31: =J30 -> 15.371378 | K31: =K30 -> 15.599946 | AG31: -16.49293464 | AH31: 14.171396 | AJ31: -16.49293464 | AK31: 15.371378 | AM31: -16.49293464 | AN31: 15.599946
A32: 18761 | B32: 37 | C32: 58 | D32: 63 | E32: ='NTC Input'!$D$27 * A32 / (21829 - A32) -> 61.1505867 | F32: =1/((1/E32) - (1/'NTC Input'!$D$30)) - 'NTC Input'!$D$29 -> 61.15058671 | G32: =IF(Hidden!$D$4=1, 1 / ('NTC Input'!$G$12 + 'NTC Input'!$G$13*LN(F32/'NTC Input'!$F$21) + 'NTC Input'!$G$14*POWER(LN(F32/'NTC Input'!$F$21),2) + 'NTC Input'!$G$15*POWER(LN(F32/'NTC Input'!$F$21),3)) -273.15, 'NTC Input'!$K$11 / (LN(F32 / ('NTC Input'!$F$21 * EXP(-'NTC Input'!$K$11 / 298.15)))) - 273.15) -> -16.49293464 | H32: -16.49293464 | I32: =Hidden!$D$18 * (B32*Hidden!$D$19 + Hidden!$D$20) -> 14.114254 | J32: =Hidden!$D$18 * (C32*Hidden!$D$19 + Hidden!$D$20) -> 15.314236 | K32: =Hidden!$D$18 * (D32*Hidden!$D$19 + Hidden!$D$20) -> 15.599946 | L32: =(I34-I32)/($G34-$G32)/'Temp Comp (Lead-Acid)'!$H$30*1000 -> -3.699737664 | M32: =(J34-J32)/($G34-$G32)/'Temp Comp (Lead-Acid)'!$H$30*1000 -> -3.699737664 | N32: =(K34-K32)/($G34-$G32)/'Temp Comp (Lead-Acid)'!$H$30*1000 -> 0 | Y32: 18761 | AB32: 18773 | AG32: -16.49293464 | AH32: 14.114254 | AJ32: -16.49293464 | AK32: 15.314236 | AM32: -16.49293464 | AN32: 15.599946
G33: =G34 -> -13.91878817 | H33: -13.91878817 | I33: =I32 -> 14.114254 | J33: =J32 -> 15.314236 | K33: =K32 -> 15.599946 | AG33: -13.91878817 | AH33: 14.114254 | AJ33: -13.91878817 | AK33: 15.314236 | AM33: -13.91878817 | AN33: 15.599946
A34: 18413 | B34: 36 | C34: 57 | D34: 63 | E34: ='NTC Input'!$D$27 * A34 / (21829 - A34) -> 53.90222482 | F34: =1/((1/E34) - (1/'NTC Input'!$D$30)) - 'NTC Input'!$D$29 -> 53.90222483 | G34: =IF(Hidden!$D$4=1, 1 / ('NTC Input'!$G$12 + 'NTC Input'!$G$13*LN(F34/'NTC Input'!$F$21) + 'NTC Input'!$G$14*POWER(LN(F34/'NTC Input'!$F$21),2) + 'NTC Input'!$G$15*POWER(LN(F34/'NTC Input'!$F$21),3)) -273.15, 'NTC Input'!$K$11 / (LN(F34 / ('NTC Input'!$F$21 * EXP(-'NTC Input'!$K$11 / 298.15)))) - 273.15) -> -13.91878817 | H34: -13.91878817 | I34: =Hidden!$D$18 * (B34*Hidden!$D$19 + Hidden!$D$20) -> 14.057112 | J34: =Hidden!$D$18 * (C34*Hidden!$D$19 + Hidden!$D$20) -> 15.257094 | K34: =Hidden!$D$18 * (D34*Hidden!$D$19 + Hidden!$D$20) -> 15.599946 | L34: =(I36-I34)/($G36-$G34)/'Temp Comp (Lead-Acid)'!$H$30*1000 -> -3.701525072 | M34: =(J36-J34)/($G36-$G34)/'Temp Comp (Lead-Acid)'!$H$30*1000 -> -3.701525072 | N34: =(K36-K34)/($G36-$G34)/'Temp Comp (Lead-Acid)'!$H$30*1000 -> 0 | R34: slope = | S34: =(I106-I4)/(G106-G4)/'Temp Comp (Lead-Acid)'!H30*1000 -> -3.707798297 | T34: mV/degC/cell | Y34: 18413 | AB34: 18426 | AG34: -13.91878817 | AH34: 14.057112 | AJ34: -13.91878817 | AK34: 15.257094 | AM34: -13.91878817 | AN34: 15.599946
G35: =G36 -> -11.34588471 | H35: -11.34588471 | I35: =I34 -> 14.057112 | J35: =J34 -> 15.257094 | K35: =K34 -> 15.599946 | AG35: -11.34588471 | AH35: 14.057112 | AJ35: -11.34588471 | AK35: 15.257094 | AM35: -11.34588471 | AN35: 15.599946
A36: 18040 | B36: 35 | C36: 56 | D36: 63 | E36: ='NTC Input'!$D$27 * A36 / (21829 - A36) -> 47.61150699 | F36: =1/((1/E36) - (1/'NTC Input'!$D$30)) - 'NTC Input'!$D$29 -> 47.611507 | G36: =IF(Hidden!$D$4=1, 1 / ('NTC Input'!$G$12 + 'NTC Input'!$G$13*LN(F36/'NTC Input'!$F$21) + 'NTC Input'!$G$14*POWER(LN(F36/'NTC Input'!$F$21),2) + 'NTC Input'!$G$15*POWER(LN(F36/'NTC Input'!$F$21),3)) -273.15, 'NTC Input'!$K$11 / (LN(F36 / ('NTC Input'!$F$21 * EXP(-'NTC Input'!$K$11 / 298.15)))) - 273.15) -> -11.34588471 | H36: -11.34588471 | I36: =Hidden!$D$18 * (B36*Hidden!$D$19 + Hidden!$D$20) -> 13.99997 | J36: =Hidden!$D$18 * (C36*Hidden!$D$19 + Hidden!$D$20) -> 15.199952 | K36: =Hidden!$D$18 * (D36*Hidden!$D$19 + Hidden!$D$20) -> 15.599946 | L36: =(I38-I36)/($G38-$G36)/'Temp Comp (Lead-Acid)'!$H$30*1000 -> -3.708686793 | M36: =(J38-J36)/($G38-$G36)/'Temp Comp (Lead-Acid)'!$H$30*1000 -> -3.708686793 | N36: =(K38-K36)/($G38-$G36)/'Temp Comp (Lead-Acid)'!$H$30*1000 -> 0 | Y36: 18040 | AB36: 18053 | AG36: -11.34588471 | AH36: 13.99997 | AJ36: -11.34588471 | AK36: 15.199952 | AM36: -11.34588471 | AN36: 15.599946
G37: =G38 -> -8.777949694 | H37: -8.777949694 | I37: =I36 -> 13.99997 | J37: =J36 -> 15.199952 | K37: =K36 -> 15.599946 | AG37: -8.777949694 | AH37: 13.99997 | AJ37: -8.777949694 | AK37: 15.199952 | AM37: -8.777949694 | AN37: 15.599946
A38: 17643 | B38: 34 | C38: 55 | D38: 63 | E38: ='NTC Input'!$D$27 * A38 / (21829 - A38) -> 42.14763497 | F38: =1/((1/E38) - (1/'NTC Input'!$D$30)) - 'NTC Input'!$D$29 -> 42.14763498 | G38: =IF(Hidden!$D$4=1, 1 / ('NTC Input'!$G$12 + 'NTC Input'!$G$13*LN(F38/'NTC Input'!$F$21) + 'NTC Input'!$G$14*POWER(LN(F38/'NTC Input'!$F$21),2) + 'NTC Input'!$G$15*POWER(LN(F38/'NTC Input'!$F$21),3)) -273.15, 'NTC Input'!$K$11 / (LN(F38 / ('NTC Input'!$F$21 * EXP(-'NTC Input'!$K$11 / 298.15)))) - 273.15) -> -8.777949694 | H38: -8.777949694 | I38: =Hidden!$D$18 * (B38*Hidden!$D$19 + Hidden!$D$20) -> 13.942828 | J38: =Hidden!$D$18 * (C38*Hidden!$D$19 + Hidden!$D$20) -> 15.14281 | K38: =Hidden!$D$18 * (D38*Hidden!$D$19 + Hidden!$D$20) -> 15.599946 | L38: =(I40-I38)/($G40-$G38)/'Temp Comp (Lead-Acid)'!$H$30*1000 -> -3.699939313 | M38: =(J40-J38)/($G40-$G38)/'Temp Comp (Lead-Acid)'!$H$30*1000 -> -3.699939313 | N38: =(K40-K38)/($G40-$G38)/'Temp Comp (Lead-Acid)'!$H$30*1000 -> 0 | Y38: 17643 | AB38: 17655 | AG38: -8.777949694 | AH38: 13.942828 | AJ38: -8.777949694 | AK38: 15.14281 | AM38: -8.777949694 | AN38: 15.599946
G39: =G40 -> -6.203943512 | H39: -6.203943512 | I39: =I38 -> 13.942828 | J39: =J38 -> 15.14281 | K39: =K38 -> 15.599946 | AG39: -6.203943512 | AH39: 13.942828 | AJ39: -6.203943512 | AK39: 15.14281 | AM39: -6.203943512 | AN39: 15.599946
A40: 17221 | B40: 33 | C40: 54 | D40: 63 | E40: ='NTC Input'!$D$27 * A40 / (21829 - A40) -> 37.37196181 | F40: =1/((1/E40) - (1/'NTC Input'!$D$30)) - 'NTC Input'!$D$29 -> 37.37196181 | G40: =IF(Hidden!$D$4=1, 1 / ('NTC Input'!$G$12 + 'NTC Input'!$G$13*LN(F40/'NTC Input'!$F$21) + 'NTC Input'!$G$14*POWER(LN(F40/'NTC Input'!$F$21),2) + 'NTC Input'!$G$15*POWER(LN(F40/'NTC Input'!$F$21),3)) -273.15, 'NTC Input'!$K$11 / (LN(F40 / ('NTC Input'!$F$21 * EXP(-'NTC Input'!$K$11 / 298.15)))) - 273.15) -> -6.203943512 | H40: -6.203943512 | I40: =Hidden!$D$18 * (B40*Hidden!$D$19 + Hidden!$D$20) -> 13.885686 | J40: =Hidden!$D$18 * (C40*Hidden!$D$19 + Hidden!$D$20) -> 15.085668 | K40: =Hidden!$D$18 * (D40*Hidden!$D$19 + Hidden!$D$20) -> 15.599946 | L40: =(I42-I40)/($G42-$G40)/'Temp Comp (Lead-Acid)'!$H$30*1000 -> -3.699952411 | M40: =(J42-J40)/($G42-$G40)/'Temp Comp (Lead-Acid)'!$H$30*1000 -> -3.699952411 | N40: =(K42-K40)/($G42-$G40)/'Temp Comp (Lead-Acid)'!$H$30*1000 -> 0 | Y40: 17221 | AB40: 17233 | AG40: -6.203943512 | AH40: 13.885686 | AJ40: -6.203943512 | AK40: 15.085668 | AM40: -6.203943512 | AN40: 15.599946
G41: =G42 -> -3.629946441 | H41: -3.629946441 | I41: =I40 -> 13.885686 | J41: =J40 -> 15.085668 | K41: =K40 -> 15.599946 | AG41: -3.629946441 | AH41: 13.885686 | AJ41: -3.629946441 | AK41: 15.085668 | AM41: -3.629946441 | AN41: 15.599946
A42: 16776 | B42: 32 | C42: 53 | D42: 63 | E42: ='NTC Input'!$D$27 * A42 / (21829 - A42) -> 33.20007916 | F42: =1/((1/E42) - (1/'NTC Input'!$D$30)) - 'NTC Input'!$D$29 -> 33.20007916 | G42: =IF(Hidden!$D$4=1, 1 / ('NTC Input'!$G$12 + 'NTC Input'!$G$13*LN(F42/'NTC Input'!$F$21) + 'NTC Input'!$G$14*POWER(LN(F42/'NTC Input'!$F$21),2) + 'NTC Input'!$G$15*POWER(LN(F42/'NTC Input'!$F$21),3)) -273.15, 'NTC Input'!$K$11 / (LN(F42 / ('NTC Input'!$F$21 * EXP(-'NTC Input'!$K$11 / 298.15)))) - 273.15) -> -3.629946441 | H42: -3.629946441 | I42: =Hidden!$D$18 * (B42*Hidden!$D$19 + Hidden!$D$20) -> 13.828544 | J42: =Hidden!$D$18 * (C42*Hidden!$D$19 + Hidden!$D$20) -> 15.028526 | K42: =Hidden!$D$18 * (D42*Hidden!$D$19 + Hidden!$D$20) -> 15.599946 | L42: =(I44-I42)/($G44-$G42)/'Temp Comp (Lead-Acid)'!$H$30*1000 -> -3.704206547 | M42: =(J44-J42)/($G44-$G42)/'Temp Comp (Lead-Acid)'!$H$30*1000 -> -3.704206547 | N42: =(K44-K42)/($G44-$G42)/'Temp Comp (Lead-Acid)'!$H$30*1000 -> 0 | Y42: 16776 | AB42: 16788 | AG42: -3.629946441 | AH42: 13.828544 | AJ42: -3.629946441 | AK42: 15.028526 | AM42: -3.629946441 | AN42: 15.599946
G43: =G44 -> -1.058905505 | H43: -1.058905505 | I43: =I42 -> 13.828544 | J43: =J42 -> 15.028526 | K43: =K42 -> 15.599946 | AG43: -1.058905505 | AH43: 13.828544 | AJ43: -1.058905505 | AK43: 15.028526 | AM43: -1.058905505 | AN43: 15.599946
A44: 16310 | B44: 31 | C44: 52 | D44: 63 | E44: ='NTC Input'!$D$27 * A44 / (21829 - A44) -> 29.55245515 | F44: =1/((1/E44) - (1/'NTC Input'!$D$30)) - 'NTC Input'!$D$29 -> 29.55245516 | G44: =IF(Hidden!$D$4=1, 1 / ('NTC Input'!$G$12 + 'NTC Input'!$G$13*LN(F44/'NTC Input'!$F$21) + 'NTC Input'!$G$14*POWER(LN(F44/'NTC Input'!$F$21),2) + 'NTC Input'!$G$15*POWER(LN(F44/'NTC Input'!$F$21),3)) -273.15, 'NTC Input'!$K$11 / (LN(F44 / ('NTC Input'!$F$21 * EXP(-'NTC Input'!$K$11 / 298.15)))) - 273.15) -> -1.058905505 | H44: -1.058905505 | I44: =Hidden!$D$18 * (B44*Hidden!$D$19 + Hidden!$D$20) -> 13.771402 | J44: =Hidden!$D$18 * (C44*Hidden!$D$19 + Hidden!$D$20) -> 14.971384 | K44: =Hidden!$D$18 * (D44*Hidden!$D$19 + Hidden!$D$20) -> 15.599946 | L44: =(I46-I44)/($G46-$G44)/'Temp Comp (Lead-Acid)'!$H$30*1000 -> -3.701945962 | M44: =(J46-J44)/($G46-$G44)/'Temp Comp (Lead-Acid)'!$H$30*1000 -> -3.701945962 | N44: =(K46-K44)/($G46-$G44)/'Temp Comp (Lead-Acid)'!$H$30*1000 -> 0 | Y44: 16310 | AB44: 16321 | AG44: -1.058905505 | AH44: 13.771402 | AJ44: -1.058905505 | AK44: 14.971384 | AM44: -1.058905505 | AN44: 15.599946
G45: =G46 -> 1.513705431 | H45: 1.513705431 | I45: =I44 -> 13.771402 | J45: =J44 -> 14.971384 | K45: =K44 -> 15.599946 | AG45: 1.513705431 | AH45: 13.771402 | AJ45: 1.513705431 | AK45: 14.971384 | AM45: 1.513705431 | AN45: 15.599946
A46: 15824 | B46: 30 | C46: 51 | D46: 63 | E46: ='NTC Input'!$D$27 * A46 / (21829 - A46) -> 26.35137386 | F46: =1/((1/E46) - (1/'NTC Input'!$D$30)) - 'NTC Input'!$D$29 -> 26.35137386 | G46: =IF(Hidden!$D$4=1, 1 / ('NTC Input'!$G$12 + 'NTC Input'!$G$13*LN(F46/'NTC Input'!$F$21) + 'NTC Input'!$G$14*POWER(LN(F46/'NTC Input'!$F$21),2) + 'NTC Input'!$G$15*POWER(LN(F46/'NTC Input'!$F$21),3)) -273.15, 'NTC Input'!$K$11 / (LN(F46 / ('NTC Input'!$F$21 * EXP(-'NTC Input'!$K$11 / 298.15)))) - 273.15) -> 1.513705431 | H46: 1.513705431 | I46: =Hidden!$D$18 * (B46*Hidden!$D$19 + Hidden!$D$20) -> 13.71426 | J46: =Hidden!$D$18 * (C46*Hidden!$D$19 + Hidden!$D$20) -> 14.914242 | K46: =Hidden!$D$18 * (D46*Hidden!$D$19 + Hidden!$D$20) -> 15.599946 | L46: =(I48-I46)/($G48-$G46)/'Temp Comp (Lead-Acid)'!$H$30*1000 -> -3.698990369 | M46: =(J48-J46)/($G48-$G46)/'Temp Comp (Lead-Acid)'!$H$30*1000 -> -3.698990369 | N46: =(K48-K46)/($G48-$G46)/'Temp Comp (Lead-Acid)'!$H$30*1000 -> 0 | Y46: 15824 | AB46: 15834 | AG46: 1.513705431 | AH46: 13.71426 | AJ46: 1.513705431 | AK46: 14.914242 | AM46: 1.513705431 | AN46: 15.599946
G47: =G48 -> 4.088371952 | H47: 4.088371952 | I47: =I46 -> 13.71426 | J47: =J46 -> 14.914242 | K47: =K46 -> 15.599946 | AG47: 4.088371952 | AH47: 13.71426 | AJ47: 4.088371952 | AK47: 14.914242 | AM47: 4.088371952 | AN47: 15.599946
A48: 15320 | B48: 29 | C48: 50 | D48: 63 | E48: ='NTC Input'!$D$27 * A48 / (21829 - A48) -> 23.53664157 | F48: =1/((1/E48) - (1/'NTC Input'!$D$30)) - 'NTC Input'!$D$29 -> 23.53664157 | G48: =IF(Hidden!$D$4=1, 1 / ('NTC Input'!$G$12 + 'NTC Input'!$G$13*LN(F48/'NTC Input'!$F$21) + 'NTC Input'!$G$14*POWER(LN(F48/'NTC Input'!$F$21),2) + 'NTC Input'!$G$15*POWER(LN(F48/'NTC Input'!$F$21),3)) -273.15, 'NTC Input'!$K$11 / (LN(F48 / ('NTC Input'!$F$21 * EXP(-'NTC Input'!$K$11 / 298.15)))) - 273.15) -> 4.088371952 | H48: 4.088371952 | I48: =Hidden!$D$18 * (B48*Hidden!$D$19 + Hidden!$D$20) -> 13.657118 | J48: =Hidden!$D$18 * (C48*Hidden!$D$19 + Hidden!$D$20) -> 14.8571 | K48: =Hidden!$D$18 * (D48*Hidden!$D$19 + Hidden!$D$20) -> 15.599946 | L48: =(I50-I48)/($G50-$G48)/'Temp Comp (Lead-Acid)'!$H$30*1000 -> -3.700345976 | M48: =(J50-J48)/($G50-$G48)/'Temp Comp (Lead-Acid)'!$H$30*1000 -> -3.700345976 | N48: =(K50-K48)/($G50-$G48)/'Temp Comp (Lead-Acid)'!$H$30*1000 -> 0 | Y48: 15320 | AB48: 15330 | AG48: 4.088371952 | AH48: 13.657118 | AJ48: 4.088371952 | AK48: 14.8571 | AM48: 4.088371952 | AN48: 15.599946
G49: =G50 -> 6.662095255 | H49: 6.662095255 | I49: =I48 -> 13.657118 | J49: =J48 -> 14.8571 | K49: =K48 -> 15.599946 | AG49: 6.662095255 | AH49: 13.657118 | AJ49: 6.662095255 | AK49: 14.8571 | AM49: 6.662095255 | AN49: 15.599946
A50: 14801 | B50: 28 | C50: 49 | D50: 63 | E50: ='NTC Input'!$D$27 * A50 / (21829 - A50) -> 21.06004553 | F50: =1/((1/E50) - (1/'NTC Input'!$D$30)) - 'NTC Input'!$D$29 -> 21.06004553 | G50: =IF(Hidden!$D$4=1, 1 / ('NTC Input'!$G$12 + 'NTC Input'!$G$13*LN(F50/'NTC Input'!$F$21) + 'NTC Input'!$G$14*POWER(LN(F50/'NTC Input'!$F$21),2) + 'NTC Input'!$G$15*POWER(LN(F50/'NTC Input'!$F$21),3)) -273.15, 'NTC Input'!$K$11 / (LN(F50 / ('NTC Input'!$F$21 * EXP(-'NTC Input'!$K$11 / 298.15)))) - 273.15) -> 6.662095255 | H50: 6.662095255 | I50: =Hidden!$D$18 * (B50*Hidden!$D$19 + Hidden!$D$20) -> 13.599976 | J50: =Hidden!$D$18 * (C50*Hidden!$D$19 + Hidden!$D$20) -> 14.799958 | K50: =Hidden!$D$18 * (D50*Hidden!$D$19 + Hidden!$D$20) -> 15.599946 | L50: =(I52-I50)/($G52-$G50)/'Temp Comp (Lead-Acid)'!$H$30*1000 -> -3.703899247 | M50: =(J52-J50)/($G52-$G50)/'Temp Comp (Lead-Acid)'!$H$30*1000 -> -3.703899247 | N50: =(K52-K50)/($G52-$G50)/'Temp Comp (Lead-Acid)'!$H$30*1000 -> 0 | Y50: 14801 | AB50: 14811 | AG50: 6.662095255 | AH50: 13.599976 | AJ50: 6.662095255 | AK50: 14.799958 | AM50: 6.662095255 | AN50: 15.599946
G51: =G52 -> 9.233349501 | H51: 9.233349501 | I51: =I50 -> 13.599976 | J51: =J50 -> 14.799958 | K51: =K50 -> 15.599946 | AG51: 9.233349501 | AH51: 13.599976 | AJ51: 9.233349501 | AK51: 14.799958 | AM51: 9.233349501 | AN51: 15.599946
A52: 14270 | B52: 27 | C52: 48 | D52: 63 | E52: ='NTC Input'!$D$27 * A52 / (21829 - A52) -> 18.87815849 | F52: =1/((1/E52) - (1/'NTC Input'!$D$30)) - 'NTC Input'!$D$29 -> 18.87815849 | G52: =IF(Hidden!$D$4=1, 1 / ('NTC Input'!$G$12 + 'NTC Input'!$G$13*LN(F52/'NTC Input'!$F$21) + 'NTC Input'!$G$14*POWER(LN(F52/'NTC Input'!$F$21),2) + 'NTC Input'!$G$15*POWER(LN(F52/'NTC Input'!$F$21),3)) -273.15, 'NTC Input'!$K$11 / (LN(F52 / ('NTC Input'!$F$21 * EXP(-'NTC Input'!$K$11 / 298.15)))) - 273.15) -> 9.233349501 | H52: 9.233349501 | I52: =Hidden!$D$18 * (B52*Hidden!$D$19 + Hidden!$D$20) -> 13.542834 | J52: =Hidden!$D$18 * (C52*Hidden!$D$19 + Hidden!$D$20) -> 14.742816 | K52: =Hidden!$D$18 * (D52*Hidden!$D$19 + Hidden!$D$20) -> 15.599946 | L52: =(I54-I52)/($G54-$G52)/'Temp Comp (Lead-Acid)'!$H$30*1000 -> -3.701500771 | M52: =(J54-J52)/($G54-$G52)/'Temp Comp (Lead-Acid)'!$H$30*1000 -> -3.701500771 | N52: =(K54-K52)/($G54-$G52)/'Temp Comp (Lead-Acid)'!$H$30*1000 -> 0 | Y52: 14270 | AB52: 14280 | AG52: 9.233349501 | AH52: 13.542834 | AJ52: 9.233349501 | AK52: 14.742816 | AM52: 9.233349501 | AN52: 15.599946
G53: =G54 -> 11.80626985 | H53: 11.80626985 | I53: =I52 -> 13.542834 | J53: =J52 -> 14.742816 | K53: =K52 -> 15.599946 | AG53: 11.80626985 | AH53: 13.542834 | AJ53: 11.80626985 | AK53: 14.742816 | AM53: 11.80626985 | AN53: 15.599946
A54: 13729 | B54: 26 | C54: 47 | D54: 63 | E54: ='NTC Input'!$D$27 * A54 / (21829 - A54) -> 16.94938272 | F54: =1/((1/E54) - (1/'NTC Input'!$D$30)) - 'NTC Input'!$D$29 -> 16.94938272 | G54: =IF(Hidden!$D$4=1, 1 / ('NTC Input'!$G$12 + 'NTC Input'!$G$13*LN(F54/'NTC Input'!$F$21) + 'NTC Input'!$G$14*POWER(LN(F54/'NTC Input'!$F$21),2) + 'NTC Input'!$G$15*POWER(LN(F54/'NTC Input'!$F$21),3)) -273.15, 'NTC Input'!$K$11 / (LN(F54 / ('NTC Input'!$F$21 * EXP(-'NTC Input'!$K$11 / 298.15)))) - 273.15) -> 11.80626985 | H54: 11.80626985 | I54: =Hidden!$D$18 * (B54*Hidden!$D$19 + Hidden!$D$20) -> 13.485692 | J54: =Hidden!$D$18 * (C54*Hidden!$D$19 + Hidden!$D$20) -> 14.685674 | K54: =Hidden!$D$18 * (D54*Hidden!$D$19 + Hidden!$D$20) -> 15.599946 | L54: =(I56-I54)/($G56-$G54)/'Temp Comp (Lead-Acid)'!$H$30*1000 -> -3.699404078 | M54: =(J56-J54)/($G56-$G54)/'Temp Comp (Lead-Acid)'!$H$30*1000 -> -3.699404078 | N54: =(K56-K54)/($G56-$G54)/'Temp Comp (Lead-Acid)'!$H$30*1000 -> 0 | Y54: 13729 | AB54: 13738 | AG54: 11.80626985 | AH54: 13.485692 | AJ54: 11.80626985 | AK54: 14.685674 | AM54: 11.80626985 | AN54: 15.599946
G55: =G56 -> 14.38064845 | H55: 14.38064845 | I55: =I54 -> 13.485692 | J55: =J54 -> 14.685674 | K55: =K54 -> 15.599946 | AG55: 14.38064845 | AH55: 13.485692 | AJ55: 14.38064845 | AK55: 14.685674 | AM55: 14.38064845 | AN55: 15.599946
A56: 13181 | B56: 25 | C56: 46 | D56: 63 | E56: ='NTC Input'!$D$27 * A56 / (21829 - A56) -> 15.24167438 | F56: =1/((1/E56) - (1/'NTC Input'!$D$30)) - 'NTC Input'!$D$29 -> 15.24167438 | G56: =IF(Hidden!$D$4=1, 1 / ('NTC Input'!$G$12 + 'NTC Input'!$G$13*LN(F56/'NTC Input'!$F$21) + 'NTC Input'!$G$14*POWER(LN(F56/'NTC Input'!$F$21),2) + 'NTC Input'!$G$15*POWER(LN(F56/'NTC Input'!$F$21),3)) -273.15, 'NTC Input'!$K$11 / (LN(F56 / ('NTC Input'!$F$21 * EXP(-'NTC Input'!$K$11 / 298.15)))) - 273.15) -> 14.38064845 | H56: 14.38064845 | I56: =Hidden!$D$18 * (B56*Hidden!$D$19 + Hidden!$D$20) -> 13.42855 | J56: =Hidden!$D$18 * (C56*Hidden!$D$19 + Hidden!$D$20) -> 14.628532 | K56: =Hidden!$D$18 * (D56*Hidden!$D$19 + Hidden!$D$20) -> 15.599946 | L56: =(I58-I56)/($G58-$G56)/'Temp Comp (Lead-Acid)'!$H$30*1000 -> -3.703854492 | M56: =(J58-J56)/($G58-$G56)/'Temp Comp (Lead-Acid)'!$H$30*1000 -> -3.703854492 | N56: =(K58-K56)/($G58-$G56)/'Temp Comp (Lead-Acid)'!$H$30*1000 -> 0 | Y56: 13181 | AB56: 13190 | AG56: 14.38064845 | AH56: 13.42855 | AJ56: 14.38064845 | AK56: 14.628532 | AM56: 14.38064845 | AN56: 15.599946
G57: =G58 -> 16.95193376 | H57: 16.95193376 | I57: =I56 -> 13.42855 | J57: =J56 -> 14.628532 | K57: =K56 -> 15.599946 | AG57: 16.95193376 | AH57: 13.42855 | AJ57: 16.95193376 | AK57: 14.628532 | AM57: 16.95193376 | AN57: 15.599946
A58: 12630 | B58: 24 | C58: 45 | D58: 63 | E58: ='NTC Input'!$D$27 * A58 / (21829 - A58) -> 13.72975323 | F58: =1/((1/E58) - (1/'NTC Input'!$D$30)) - 'NTC Input'!$D$29 -> 13.72975323 | G58: =IF(Hidden!$D$4=1, 1 / ('NTC Input'!$G$12 + 'NTC Input'!$G$13*LN(F58/'NTC Input'!$F$21) + 'NTC Input'!$G$14*POWER(LN(F58/'NTC Input'!$F$21),2) + 'NTC Input'!$G$15*POWER(LN(F58/'NTC Input'!$F$21),3)) -273.15, 'NTC Input'!$K$11 / (LN(F58 / ('NTC Input'!$F$21 * EXP(-'NTC Input'!$K$11 / 298.15)))) - 273.15) -> 16.95193376 | H58: 16.95193376 | I58: =Hidden!$D$18 * (B58*Hidden!$D$19 + Hidden!$D$20) -> 13.371408 | J58: =Hidden!$D$18 * (C58*Hidden!$D$19 + Hidden!$D$20) -> 14.57139 | K58: =Hidden!$D$18 * (D58*Hidden!$D$19 + Hidden!$D$20) -> 15.599946 | L58: =(I60-I58)/($G60-$G58)/'Temp Comp (Lead-Acid)'!$H$30*1000 -> -3.701472446 | M58: =(J60-J58)/($G60-$G58)/'Temp Comp (Lead-Acid)'!$H$30*1000 -> -3.701472446 | N58: =(K60-K58)/($G60-$G58)/'Temp Comp (Lead-Acid)'!$H$30*1000 -> 0 | Y58: 12630 | AB58: 12638 | AG58: 16.95193376 | AH58: 13.371408 | AJ58: 16.95193376 | AK58: 14.57139 | AM58: 16.95193376 | AN58: 15.599946
G59: =G60 -> 19.5248738 | H59: 19.5248738 | I59: =I58 -> 13.371408 | J59: =J58 -> 14.57139 | K59: =K58 -> 15.599946 | AG59: 19.5248738 | AH59: 13.371408 | AJ59: 19.5248738 | AK59: 14.57139 | AM59: 19.5248738 | AN59: 15.599946
A60: 12078 | B60: 23 | C60: 44 | D60: 63 | E60: ='NTC Input'!$D$27 * A60 / (21829 - A60) -> 12.38642191 | F60: =1/((1/E60) - (1/'NTC Input'!$D$30)) - 'NTC Input'!$D$29 -> 12.38642191 | G60: =IF(Hidden!$D$4=1, 1 / ('NTC Input'!$G$12 + 'NTC Input'!$G$13*LN(F60/'NTC Input'!$F$21) + 'NTC Input'!$G$14*POWER(LN(F60/'NTC Input'!$F$21),2) + 'NTC Input'!$G$15*POWER(LN(F60/'NTC Input'!$F$21),3)) -273.15, 'NTC Input'!$K$11 / (LN(F60 / ('NTC Input'!$F$21 * EXP(-'NTC Input'!$K$11 / 298.15)))) - 273.15) -> 19.5248738 | H60: 19.5248738 | I60: =Hidden!$D$18 * (B60*Hidden!$D$19 + Hidden!$D$20) -> 13.314266 | J60: =Hidden!$D$18 * (C60*Hidden!$D$19 + Hidden!$D$20) -> 14.514248 | K60: =Hidden!$D$18 * (D60*Hidden!$D$19 + Hidden!$D$20) -> 15.599946 | L60: =(I62-I60)/($G62-$G60)/'Temp Comp (Lead-Acid)'!$H$30*1000 -> -3.69948937 | M60: =(J62-J60)/($G62-$G60)/'Temp Comp (Lead-Acid)'!$H$30*1000 -> -3.69948937 | N60: =(K62-K60)/($G62-$G60)/'Temp Comp (Lead-Acid)'!$H$30*1000 -> 0 | Y60: 12078 | AB60: 12086 | AG60: 19.5248738 | AH60: 13.314266 | AJ60: 19.5248738 | AK60: 14.514248 | AM60: 19.5248738 | AN60: 15.599946
G61: =G62 -> 22.09919304 | H61: 22.09919304 | I61: =I60 -> 13.314266 | J61: =J60 -> 14.514248 | K61: =K60 -> 15.599946 | AG61: 22.09919304 | AH61: 13.314266 | AJ61: 22.09919304 | AK61: 14.514248 | AM61: 22.09919304 | AN61: 15.599946
A62: 11528 | B62: 22 | C62: 43 | D62: 63 | E62: ='NTC Input'!$D$27 * A62 / (21829 - A62) -> 11.19114649 | F62: =1/((1/E62) - (1/'NTC Input'!$D$30)) - 'NTC Input'!$D$29 -> 11.19114649 | G62: =IF(Hidden!$D$4=1, 1 / ('NTC Input'!$G$12 + 'NTC Input'!$G$13*LN(F62/'NTC Input'!$F$21) + 'NTC Input'!$G$14*POWER(LN(F62/'NTC Input'!$F$21),2) + 'NTC Input'!$G$15*POWER(LN(F62/'NTC Input'!$F$21),3)) -273.15, 'NTC Input'!$K$11 / (LN(F62 / ('NTC Input'!$F$21 * EXP(-'NTC Input'!$K$11 / 298.15)))) - 273.15) -> 22.09919304 | H62: 22.09919304 | I62: =Hidden!$D$18 * (B62*Hidden!$D$19 + Hidden!$D$20) -> 13.257124 | J62: =Hidden!$D$18 * (C62*Hidden!$D$19 + Hidden!$D$20) -> 14.457106 | K62: =Hidden!$D$18 * (D62*Hidden!$D$19 + Hidden!$D$20) -> 15.599946 | L62: =(I64-I62)/($G64-$G62)/'Temp Comp (Lead-Acid)'!$H$30*1000 -> -3.705607951 | M62: =(J64-J62)/($G64-$G62)/'Temp Comp (Lead-Acid)'!$H$30*1000 -> -3.705607951 | N62: =(K64-K62)/($G64-$G62)/'Temp Comp (Lead-Acid)'!$H$30*1000 -> 0 | Y62: 11528 | AB62: 11536 | AG62: 22.09919304 | AH62: 13.257124 | AJ62: 22.09919304 | AK62: 14.457106 | AM62: 22.09919304 | AN62: 15.599946
G63: =G64 -> 24.66926165 | H63: 24.66926165 | I63: =I62 -> 13.257124 | J63: =J62 -> 14.457106 | K63: =K62 -> 15.599946 | AG63: 24.66926165 | AH63: 13.257124 | AJ63: 24.66926165 | AK63: 14.457106 | AM63: 24.66926165 | AN63: 15.599946
A64: 10984 | B64: 21 | C64: 42 | D64: =D66+1 -> 63 | E64: ='NTC Input'!$D$27 * A64 / (21829 - A64) -> 10.12816966 | F64: =1/((1/E64) - (1/'NTC Input'!$D$30)) - 'NTC Input'!$D$29 -> 10.12816966 | G64: =IF(Hidden!$D$4=1, 1 / ('NTC Input'!$G$12 + 'NTC Input'!$G$13*LN(F64/'NTC Input'!$F$21) + 'NTC Input'!$G$14*POWER(LN(F64/'NTC Input'!$F$21),2) + 'NTC Input'!$G$15*POWER(LN(F64/'NTC Input'!$F$21),3)) -273.15, 'NTC Input'!$K$11 / (LN(F64 / ('NTC Input'!$F$21 * EXP(-'NTC Input'!$K$11 / 298.15)))) - 273.15) -> 24.66926165 | H64: 24.66926165 | I64: =Hidden!$D$18 * (B64*Hidden!$D$19 + Hidden!$D$20) -> 13.199982 | J64: =Hidden!$D$18 * (C64*Hidden!$D$19 + Hidden!$D$20) -> 14.399964 | K64: =Hidden!$D$18 * (D64*Hidden!$D$19 + Hidden!$D$20) -> 15.599946 | L64: =(I66-I64)/($G66-$G64)/'Temp Comp (Lead-Acid)'!$H$30*1000 -> -3.70073005 | M64: =(J66-J64)/($G66-$G64)/'Temp Comp (Lead-Acid)'!$H$30*1000 -> -3.70073005 | N64: =(K66-K64)/($G66-$G64)/'Temp Comp (Lead-Acid)'!$H$30*1000 -> -3.70073005 | Y64: 10984 | AB64: 10991 | AG64: 24.66926165 | AH64: 13.199982 | AJ64: 24.66926165 | AK64: 14.399964 | AM64: 24.66926165 | AN64: 15.599946
G65: =G66 -> 27.24271784 | H65: 27.24271784 | I65: =I64 -> 13.199982 | J65: =J64 -> 14.399964 | K65: =K64 -> 15.599946 | AG65: 27.24271784 | AH65: 13.199982 | AJ65: 27.24271784 | AK65: 14.399964 | AM65: 27.24271784 | AN65: 15.599946
A66: 10447 | B66: 20 | C66: 41 | D66: =D68+1 -> 62 | E66: ='NTC Input'!$D$27 * A66 / (21829 - A66) -> 9.1785275 | F66: =1/((1/E66) - (1/'NTC Input'!$D$30)) - 'NTC Input'!$D$29 -> 9.1785275 | G66: =IF(Hidden!$D$4=1, 1 / ('NTC Input'!$G$12 + 'NTC Input'!$G$13*LN(F66/'NTC Input'!$F$21) + 'NTC Input'!$G$14*POWER(LN(F66/'NTC Input'!$F$21),2) + 'NTC Input'!$G$15*POWER(LN(F66/'NTC Input'!$F$21),3)) -273.15, 'NTC Input'!$K$11 / (LN(F66 / ('NTC Input'!$F$21 * EXP(-'NTC Input'!$K$11 / 298.15)))) - 273.15) -> 27.24271784 | H66: 27.24271784 | I66: =Hidden!$D$18 * (B66*Hidden!$D$19 + Hidden!$D$20) -> 13.14284 | J66: =Hidden!$D$18 * (C66*Hidden!$D$19 + Hidden!$D$20) -> 14.342822 | K66: =Hidden!$D$18 * (D66*Hidden!$D$19 + Hidden!$D$20) -> 15.542804 | L66: =(I68-I66)/($G68-$G66)/'Temp Comp (Lead-Acid)'!$H$30*1000 -> -3.707018129 | M66: =(J68-J66)/($G68-$G66)/'Temp Comp (Lead-Acid)'!$H$30*1000 -> -3.707018129 | N66: =(K68-K66)/($G68-$G66)/'Temp Comp (Lead-Acid)'!$H$30*1000 -> -3.707018129 | Y66: 10447 | AB66: 10454 | AG66: 27.24271784 | AH66: 13.14284 | AJ66: 27.24271784 | AK66: 14.342822 | AM66: 27.24271784 | AN66: 15.542804
G67: =G68 -> 29.81180878 | H67: 29.81180878 | I67: =I66 -> 13.14284 | J67: =J66 -> 14.342822 | K67: =K66 -> 15.542804 | AG67: 29.81180878 | AH67: 13.14284 | AJ67: 29.81180878 | AK67: 14.342822 | AM67: 29.81180878 | AN67: 15.542804
A68: 9921 | B68: 19 | C68: 40 | D68: =D70+1 -> 61 | E68: ='NTC Input'!$D$27 * A68 / (21829 - A68) -> 8.331373866 | F68: =1/((1/E68) - (1/'NTC Input'!$D$30)) - 'NTC Input'!$D$29 -> 8.331373866 | G68: =IF(Hidden!$D$4=1, 1 / ('NTC Input'!$G$12 + 'NTC Input'!$G$13*LN(F68/'NTC Input'!$F$21) + 'NTC Input'!$G$14*POWER(LN(F68/'NTC Input'!$F$21),2) + 'NTC Input'!$G$15*POWER(LN(F68/'NTC Input'!$F$21),3)) -273.15, 'NTC Input'!$K$11 / (LN(F68 / ('NTC Input'!$F$21 * EXP(-'NTC Input'!$K$11 / 298.15)))) - 273.15) -> 29.81180878 | H68: 29.81180878 | I68: =Hidden!$D$18 * (B68*Hidden!$D$19 + Hidden!$D$20) -> 13.085698 | J68: =Hidden!$D$18 * (C68*Hidden!$D$19 + Hidden!$D$20) -> 14.28568 | K68: =Hidden!$D$18 * (D68*Hidden!$D$19 + Hidden!$D$20) -> 15.485662 | L68: =(I70-I68)/($G70-$G68)/'Temp Comp (Lead-Acid)'!$H$30*1000 -> -3.698207029 | M68: =(J70-J68)/($G70-$G68)/'Temp Comp (Lead-Acid)'!$H$30*1000 -> -3.698207029 | N68: =(K70-K68)/($G70-$G68)/'Temp Comp (Lead-Acid)'!$H$30*1000 -> -3.698207029 | Y68: 9921 | AB68: 9927 | AG68: 29.81180878 | AH68: 13.085698 | AJ68: 29.81180878 | AK68: 14.28568 | AM68: 29.81180878 | AN68: 15.485662
G69: =G70 -> 32.38702066 | H69: =IFERROR(G69,NA()) -> 32.38702066 | I69: =I68 -> 13.085698 | J69: =J68 -> 14.28568 | K69: =K68 -> 15.485662 | AG69: =H69 -> 32.38702066 | AH69: =I69 -> 13.085698 | AJ69: =H69 -> 32.38702066 | AK69: =J69 -> 14.28568 | AM69: =H69 -> 32.38702066 | AN69: =K69 -> 15.485662
A70: 9406 | B70: 18 | C70: 39 | D70: =D72+1 -> 60 | E70: ='NTC Input'!$D$27 * A70 / (21829 - A70) -> 7.571440071 | F70: =1/((1/E70) - (1/'NTC Input'!$D$30)) - 'NTC Input'!$D$29 -> 7.571440071 | G70: =IF(Hidden!$D$4=1, 1 / ('NTC Input'!$G$12 + 'NTC Input'!$G$13*LN(F70/'NTC Input'!$F$21) + 'NTC Input'!$G$14*POWER(LN(F70/'NTC Input'!$F$21),2) + 'NTC Input'!$G$15*POWER(LN(F70/'NTC Input'!$F$21),3)) -273.15, 'NTC Input'!$K$11 / (LN(F70 / ('NTC Input'!$F$21 * EXP(-'NTC Input'!$K$11 / 298.15)))) - 273.15) -> 32.38702066 | H70: 32.38702066 | I70: =Hidden!$D$18 * (B70*Hidden!$D$19 + Hidden!$D$20) -> 13.028556 | J70: =Hidden!$D$18 * (C70*Hidden!$D$19 + Hidden!$D$20) -> 14.228538 | K70: =Hidden!$D$18 * (D70*Hidden!$D$19 + Hidden!$D$20) -> 15.42852 | L70: =(I72-I70)/($G72-$G70)/'Temp Comp (Lead-Acid)'!$H$30*1000 -> -3.704756263 | M70: =(J72-J70)/($G72-$G70)/'Temp Comp (Lead-Acid)'!$H$30*1000 -> -3.704756263 | N70: =(K72-K70)/($G72-$G70)/'Temp Comp (Lead-Acid)'!$H$30*1000 -> -3.704756263 | Y70: 9406 | AB70: 9413 | AG70: 32.38702066 | AH70: 13.028556 | AJ70: 32.38702066 | AK70: 14.228538 | AM70: 32.38702066 | AN70: 15.42852
G71: =G72 -> 34.9576801 | H71: 34.9576801 | I71: =I70 -> 13.028556 | J71: =J70 -> 14.228538 | K71: =K70 -> 15.42852 | AG71: 34.9576801 | AH71: 13.028556 | AJ71: 34.9576801 | AK71: 14.228538 | AM71: 34.9576801 | AN71: 15.42852
A72: 8906 | B72: 17 | C72: 38 | D72: =D74+1 -> 59 | E72: ='NTC Input'!$D$27 * A72 / (21829 - A72) -> 6.89158864 | F72: =1/((1/E72) - (1/'NTC Input'!$D$30)) - 'NTC Input'!$D$29 -> 6.89158864 | G72: =IF(Hidden!$D$4=1, 1 / ('NTC Input'!$G$12 + 'NTC Input'!$G$13*LN(F72/'NTC Input'!$F$21) + 'NTC Input'!$G$14*POWER(LN(F72/'NTC Input'!$F$21),2) + 'NTC Input'!$G$15*POWER(LN(F72/'NTC Input'!$F$21),3)) -273.15, 'NTC Input'!$K$11 / (LN(F72 / ('NTC Input'!$F$21 * EXP(-'NTC Input'!$K$11 / 298.15)))) - 273.15) -> 34.9576801 | H72: 34.9576801 | I72: =Hidden!$D$18 * (B72*Hidden!$D$19 + Hidden!$D$20) -> 12.971414 | J72: =Hidden!$D$18 * (C72*Hidden!$D$19 + Hidden!$D$20) -> 14.171396 | K72: =Hidden!$D$18 * (D72*Hidden!$D$19 + Hidden!$D$20) -> 15.371378 | L72: =(I74-I72)/($G74-$G72)/'Temp Comp (Lead-Acid)'!$H$30*1000 -> -3.707548673 | M72: =(J74-J72)/($G74-$G72)/'Temp Comp (Lead-Acid)'!$H$30*1000 -> -3.707548673 | N72: =(K74-K72)/($G74-$G72)/'Temp Comp (Lead-Acid)'!$H$30*1000 -> -3.707548673 | Y72: 8906 | AB72: 8912 | AG72: 34.9576801 | AH72: 12.971414 | AJ72: 34.9576801 | AK72: 14.171396 | AM72: 34.9576801 | AN72: 15.371378
G73: =G74 -> 37.5264034 | H73: 37.5264034 | I73: =I72 -> 12.971414 | J73: =J72 -> 14.171396 | K73: =K72 -> 15.371378 | AG73: 37.5264034 | AH73: 12.971414 | AJ73: 37.5264034 | AK73: 14.171396 | AM73: 37.5264034 | AN73: 15.371378
A74: 8422 | B74: 16 | C74: 37 | D74: =D76+1 -> 58 | E74: ='NTC Input'!$D$27 * A74 / (21829 - A74) -> 6.281793093 | F74: =1/((1/E74) - (1/'NTC Input'!$D$30)) - 'NTC Input'!$D$29 -> 6.281793093 | G74: =IF(Hidden!$D$4=1, 1 / ('NTC Input'!$G$12 + 'NTC Input'!$G$13*LN(F74/'NTC Input'!$F$21) + 'NTC Input'!$G$14*POWER(LN(F74/'NTC Input'!$F$21),2) + 'NTC Input'!$G$15*POWER(LN(F74/'NTC Input'!$F$21),3)) -273.15, 'NTC Input'!$K$11 / (LN(F74 / ('NTC Input'!$F$21 * EXP(-'NTC Input'!$K$11 / 298.15)))) - 273.15) -> 37.5264034 | H74: 37.5264034 | I74: =Hidden!$D$18 * (B74*Hidden!$D$19 + Hidden!$D$20) -> 12.914272 | J74: =Hidden!$D$18 * (C74*Hidden!$D$19 + Hidden!$D$20) -> 14.114254 | K74: =Hidden!$D$18 * (D74*Hidden!$D$19 + Hidden!$D$20) -> 15.314236 | L74: =(I76-I74)/($G76-$G74)/'Temp Comp (Lead-Acid)'!$H$30*1000 -> -3.700374026 | M74: =(J76-J74)/($G76-$G74)/'Temp Comp (Lead-Acid)'!$H$30*1000 -> -3.700374026 | N74: =(K76-K74)/($G76-$G74)/'Temp Comp (Lead-Acid)'!$H$30*1000 -> -3.700374026 | R74: vale = | S74: 18 | Y74: 8422 | AB74: 8427 | AG74: 37.5264034 | AH74: 12.914272 | AJ74: 37.5264034 | AK74: 14.114254 | AM74: 37.5264034 | AN74: 15.314236
G75: =G76 -> 40.10010719 | H75: 40.10010719 | I75: =I74 -> 12.914272 | J75: =J74 -> 14.114254 | K75: =K74 -> 15.314236 | AG75: 40.10010719 | AH75: 12.914272 | AJ75: 40.10010719 | AK75: 14.114254 | AM75: 40.10010719 | AN75: 15.314236
A76: 7954 | B76: 15 | C76: 36 | D76: =D78+1 -> 57 | E76: ='NTC Input'!$D$27 * A76 / (21829 - A76) -> 5.732612613 | F76: =1/((1/E76) - (1/'NTC Input'!$D$30)) - 'NTC Input'!$D$29 -> 5.732612613 | G76: =IF(Hidden!$D$4=1, 1 / ('NTC Input'!$G$12 + 'NTC Input'!$G$13*LN(F76/'NTC Input'!$F$21) + 'NTC Input'!$G$14*POWER(LN(F76/'NTC Input'!$F$21),2) + 'NTC Input'!$G$15*POWER(LN(F76/'NTC Input'!$F$21),3)) -273.15, 'NTC Input'!$K$11 / (LN(F76 / ('NTC Input'!$F$21 * EXP(-'NTC Input'!$K$11 / 298.15)))) - 273.15) -> 40.10010719 | H76: 40.10010719 | I76: =Hidden!$D$18 * (B76*Hidden!$D$19 + Hidden!$D$20) -> 12.85713 | J76: =Hidden!$D$18 * (C76*Hidden!$D$19 + Hidden!$D$20) -> 14.057112 | K76: =Hidden!$D$18 * (D76*Hidden!$D$19 + Hidden!$D$20) -> 15.257094 | L76: =(I78-I76)/($G78-$G76)/'Temp Comp (Lead-Acid)'!$H$30*1000 -> -3.709224719 | M76: =(J78-J76)/($G78-$G76)/'Temp Comp (Lead-Acid)'!$H$30*1000 -> -3.709224719 | N76: =(K78-K76)/($G78-$G76)/'Temp Comp (Lead-Acid)'!$H$30*1000 -> -3.709224719 | R76: =VLOOKUP(S74,$H$4:$I$146,2) + ((LOOKUP(S74,$H$4:$H$146,$I$5:$I$148)-VLOOKUP(S74,$H$4:$I$146,2)) * (S74-VLOOKUP(S74,$H$4:$I$146,1))/(LOOKUP(S74,$H$4:$H$146,$H$5:$H$148)-VLOOKUP(S74,$H$4:$I$146,1))) -> 13.371408 | Y76: 7954 | AB76: 7959 | AG76: 40.10010719 | AH76: 12.85713 | AJ76: 40.10010719 | AK76: 14.057112 | AM76: 40.10010719 | AN76: 15.257094
G77: =G78 -> 42.66766979 | H77: 42.66766979 | I77: =I76 -> 12.85713 | J77: =J76 -> 14.057112 | K77: =K76 -> 15.257094 | AG77: 42.66766979 | AH77: 12.85713 | AJ77: 42.66766979 | AK77: 14.057112 | AM77: 42.66766979 | AN77: 15.257094
A78: 7505 | B78: 14 | C78: 35 | D78: =D80+1 -> 56 | E78: ='NTC Input'!$D$27 * A78 / (21829 - A78) -> 5.239458252 | F78: =1/((1/E78) - (1/'NTC Input'!$D$30)) - 'NTC Input'!$D$29 -> 5.239458252 | G78: =IF(Hidden!$D$4=1, 1 / ('NTC Input'!$G$12 + 'NTC Input'!$G$13*LN(F78/'NTC Input'!$F$21) + 'NTC Input'!$G$14*POWER(LN(F78/'NTC Input'!$F$21),2) + 'NTC Input'!$G$15*POWER(LN(F78/'NTC Input'!$F$21),3)) -273.15, 'NTC Input'!$K$11 / (LN(F78 / ('NTC Input'!$F$21 * EXP(-'NTC Input'!$K$11 / 298.15)))) - 273.15) -> 42.66766979 | H78: 42.66766979 | I78: =Hidden!$D$18 * (B78*Hidden!$D$19 + Hidden!$D$20) -> 12.799988 | J78: =Hidden!$D$18 * (C78*Hidden!$D$19 + Hidden!$D$20) -> 13.99997 | K78: =Hidden!$D$18 * (D78*Hidden!$D$19 + Hidden!$D$20) -> 15.199952 | L78: =(I80-I78)/($G80-$G78)/'Temp Comp (Lead-Acid)'!$H$30*1000 -> -3.704111224 | M78: =(J80-J78)/($G80-$G78)/'Temp Comp (Lead-Acid)'!$H$30*1000 -> -3.704111224 | N78: =(K80-K78)/($G80-$G78)/'Temp Comp (Lead-Acid)'!$H$30*1000 -> -3.704111224 | Y78: 7505 | AB78: 7509 | AG78: 42.66766979 | AH78: 12.799988 | AJ78: 42.66766979 | AK78: 13.99997 | AM78: 42.66766979 | AN78: 15.199952
G79: =G80 -> 45.23877689 | H79: 45.23877689 | I79: =I78 -> 12.799988 | J79: =J78 -> 13.99997 | K79: =K78 -> 15.199952 | AG79: 45.23877689 | AH79: 12.799988 | AJ79: 45.23877689 | AK79: 13.99997 | AM79: 45.23877689 | AN79: 15.199952
A80: 7074 | B80: 13 | C80: 34 | D80: =D82+1 -> 55 | E80: ='NTC Input'!$D$27 * A80 / (21829 - A80) -> 4.794307015 | F80: =1/((1/E80) - (1/'NTC Input'!$D$30)) - 'NTC Input'!$D$29 -> 4.794307015 | G80: =IF(Hidden!$D$4=1, 1 / ('NTC Input'!$G$12 + 'NTC Input'!$G$13*LN(F80/'NTC Input'!$F$21) + 'NTC Input'!$G$14*POWER(LN(F80/'NTC Input'!$F$21),2) + 'NTC Input'!$G$15*POWER(LN(F80/'NTC Input'!$F$21),3)) -273.15, 'NTC Input'!$K$11 / (LN(F80 / ('NTC Input'!$F$21 * EXP(-'NTC Input'!$K$11 / 298.15)))) - 273.15) -> 45.23877689 | H80: 45.23877689 | I80: =Hidden!$D$18 * (B80*Hidden!$D$19 + Hidden!$D$20) -> 12.742846 | J80: =Hidden!$D$18 * (C80*Hidden!$D$19 + Hidden!$D$20) -> 13.942828 | K80: =Hidden!$D$18 * (D80*Hidden!$D$19 + Hidden!$D$20) -> 15.14281 | L80: =(I82-I80)/($G82-$G80)/'Temp Comp (Lead-Acid)'!$H$30*1000 -> -3.703162778 | M80: =(J82-J80)/($G82-$G80)/'Temp Comp (Lead-Acid)'!$H$30*1000 -> -3.703162778 | N80: =(K82-K80)/($G82-$G80)/'Temp Comp (Lead-Acid)'!$H$30*1000 -> -3.703162778 | Y80: 7074 | AB80: 7078 | AG80: 45.23877689 | AH80: 12.742846 | AJ80: 45.23877689 | AK80: 13.942828 | AM80: 45.23877689 | AN80: 15.14281
G81: =G82 -> 47.8105425 | H81: 47.8105425 | I81: =I80 -> 12.742846 | J81: =J80 -> 13.942828 | K81: =K80 -> 15.14281 | AG81: 47.8105425 | AH81: 12.742846 | AJ81: 47.8105425 | AK81: 13.942828 | AM81: 47.8105425 | AN81: 15.14281
A82: 6662 | B82: 12 | C82: 33 | D82: =D84+1 -> 54 | E82: ='NTC Input'!$D$27 * A82 / (21829 - A82) -> 4.392430936 | F82: =1/((1/E82) - (1/'NTC Input'!$D$30)) - 'NTC Input'!$D$29 -> 4.392430936 | G82: =IF(Hidden!$D$4=1, 1 / ('NTC Input'!$G$12 + 'NTC Input'!$G$13*LN(F82/'NTC Input'!$F$21) + 'NTC Input'!$G$14*POWER(LN(F82/'NTC Input'!$F$21),2) + 'NTC Input'!$G$15*POWER(LN(F82/'NTC Input'!$F$21),3)) -273.15, 'NTC Input'!$K$11 / (LN(F82 / ('NTC Input'!$F$21 * EXP(-'NTC Input'!$K$11 / 298.15)))) - 273.15) -> 47.8105425 | H82: 47.8105425 | I82: =Hidden!$D$18 * (B82*Hidden!$D$19 + Hidden!$D$20) -> 12.685704 | J82: =Hidden!$D$18 * (C82*Hidden!$D$19 + Hidden!$D$20) -> 13.885686 | K82: =Hidden!$D$18 * (D82*Hidden!$D$19 + Hidden!$D$20) -> 15.085668 | L82: =(I84-I82)/($G84-$G82)/'Temp Comp (Lead-Acid)'!$H$30*1000 -> -3.699732453 | M82: =(J84-J82)/($G84-$G82)/'Temp Comp (Lead-Acid)'!$H$30*1000 -> -3.699732453 | N82: =(K84-K82)/($G84-$G82)/'Temp Comp (Lead-Acid)'!$H$30*1000 -> -3.699732453 | R82: =VLOOKUP(S74,H4:I148,2,TRUE) -> 13.371408 | Y82: 6662 | AB82: 6666 | AG82: 47.8105425 | AH82: 12.685704 | AJ82: 47.8105425 | AK82: 13.885686 | AM82: 47.8105425 | AN82: 15.085668
G83: =G84 -> 50.3846926 | H83: 50.3846926 | I83: =I82 -> 12.685704 | J83: =J82 -> 13.885686 | K83: =K82 -> 15.085668 | AG83: 50.3846926 | AH83: 12.685704 | AJ83: 50.3846926 | AK83: 13.885686 | AM83: 50.3846926 | AN83: 15.085668
A84: 6269 | B84: 11 | C84: 32 | D84: =D86+1 -> 53 | E84: ='NTC Input'!$D$27 * A84 / (21829 - A84) -> 4.028920308 | F84: =1/((1/E84) - (1/'NTC Input'!$D$30)) - 'NTC Input'!$D$29 -> 4.028920308 | G84: =IF(Hidden!$D$4=1, 1 / ('NTC Input'!$G$12 + 'NTC Input'!$G$13*LN(F84/'NTC Input'!$F$21) + 'NTC Input'!$G$14*POWER(LN(F84/'NTC Input'!$F$21),2) + 'NTC Input'!$G$15*POWER(LN(F84/'NTC Input'!$F$21),3)) -273.15, 'NTC Input'!$K$11 / (LN(F84 / ('NTC Input'!$F$21 * EXP(-'NTC Input'!$K$11 / 298.15)))) - 273.15) -> 50.3846926 | H84: 50.3846926 | I84: =Hidden!$D$18 * (B84*Hidden!$D$19 + Hidden!$D$20) -> 12.628562 | J84: =Hidden!$D$18 * (C84*Hidden!$D$19 + Hidden!$D$20) -> 13.828544 | K84: =Hidden!$D$18 * (D84*Hidden!$D$19 + Hidden!$D$20) -> 15.028526 | L84: =(I86-I84)/($G86-$G84)/'Temp Comp (Lead-Acid)'!$H$30*1000 -> -3.705544975 | M84: =(J86-J84)/($G86-$G84)/'Temp Comp (Lead-Acid)'!$H$30*1000 -> -3.705544975 | N84: =(K86-K84)/($G86-$G84)/'Temp Comp (Lead-Acid)'!$H$30*1000 -> -3.705544975 | Y84: 6269 | AB84: 6273 | AG84: 50.3846926 | AH84: 12.628562 | AJ84: 50.3846926 | AK84: 13.828544 | AM84: 50.3846926 | AN84: 15.028526
G85: =G86 -> 52.95480489 | H85: 52.95480489 | I85: =I84 -> 12.628562 | J85: =J84 -> 13.828544 | K85: =K84 -> 15.028526 | AG85: 52.95480489 | AH85: 12.628562 | AJ85: 52.95480489 | AK85: 13.828544 | AM85: 52.95480489 | AN85: 15.028526
A86: 5896 | B86: 10 | C86: 31 | D86: =D88+1 -> 52 | E86: ='NTC Input'!$D$27 * A86 / (21829 - A86) -> 3.700495826 | F86: =1/((1/E86) - (1/'NTC Input'!$D$30)) - 'NTC Input'!$D$29 -> 3.700495826 | G86: =IF(Hidden!$D$4=1, 1 / ('NTC Input'!$G$12 + 'NTC Input'!$G$13*LN(F86/'NTC Input'!$F$21) + 'NTC Input'!$G$14*POWER(LN(F86/'NTC Input'!$F$21),2) + 'NTC Input'!$G$15*POWER(LN(F86/'NTC Input'!$F$21),3)) -273.15, 'NTC Input'!$K$11 / (LN(F86 / ('NTC Input'!$F$21 * EXP(-'NTC Input'!$K$11 / 298.15)))) - 273.15) -> 52.95480489 | H86: 52.95480489 | I86: =Hidden!$D$18 * (B86*Hidden!$D$19 + Hidden!$D$20) -> 12.57142 | J86: =Hidden!$D$18 * (C86*Hidden!$D$19 + Hidden!$D$20) -> 13.771402 | K86: =Hidden!$D$18 * (D86*Hidden!$D$19 + Hidden!$D$20) -> 14.971384 | L86: =(I88-I86)/($G88-$G86)/'Temp Comp (Lead-Acid)'!$H$30*1000 -> -3.713867002 | M86: =(J88-J86)/($G88-$G86)/'Temp Comp (Lead-Acid)'!$H$30*1000 -> -3.713867002 | N86: =(K88-K86)/($G88-$G86)/'Temp Comp (Lead-Acid)'!$H$30*1000 -> -3.713867002 | Y86: 5896 | AB86: 5900 | AG86: 52.95480489 | AH86: 12.57142 | AJ86: 52.95480489 | AK86: 13.771402 | AM86: 52.95480489 | AN86: 14.971384
G87: =G88 -> 55.51915807 | H87: 55.51915807 | I87: =I86 -> 12.57142 | J87: =J86 -> 13.771402 | K87: =K86 -> 14.971384 | AG87: 55.51915807 | AH87: 12.57142 | AJ87: 55.51915807 | AK87: 13.771402 | AM87: 55.51915807 | AN87: 14.971384
A88: 5543 | B88: 9 | C88: 30 | D88: =D90+1 -> 51 | E88: ='NTC Input'!$D$27 * A88 / (21829 - A88) -> 3.40353678 | F88: =1/((1/E88) - (1/'NTC Input'!$D$30)) - 'NTC Input'!$D$29 -> 3.40353678 | G88: =IF(Hidden!$D$4=1, 1 / ('NTC Input'!$G$12 + 'NTC Input'!$G$13*LN(F88/'NTC Input'!$F$21) + 'NTC Input'!$G$14*POWER(LN(F88/'NTC Input'!$F$21),2) + 'NTC Input'!$G$15*POWER(LN(F88/'NTC Input'!$F$21),3)) -273.15, 'NTC Input'!$K$11 / (LN(F88 / ('NTC Input'!$F$21 * EXP(-'NTC Input'!$K$11 / 298.15)))) - 273.15) -> 55.51915807 | H88: 55.51915807 | I88: =Hidden!$D$18 * (B88*Hidden!$D$19 + Hidden!$D$20) -> 12.514278 | J88: =Hidden!$D$18 * (C88*Hidden!$D$19 + Hidden!$D$20) -> 13.71426 | K88: =Hidden!$D$18 * (D88*Hidden!$D$19 + Hidden!$D$20) -> 14.914242 | L88: =(I90-I88)/($G90-$G88)/'Temp Comp (Lead-Acid)'!$H$30*1000 -> -3.704138852 | M88: =(J90-J88)/($G90-$G88)/'Temp Comp (Lead-Acid)'!$H$30*1000 -> -3.704138852 | N88: =(K90-K88)/($G90-$G88)/'Temp Comp (Lead-Acid)'!$H$30*1000 -> -3.704138852 | Y88: 5543 | AB88: 5546 | AG88: 55.51915807 | AH88: 12.514278 | AJ88: 55.51915807 | AK88: 13.71426 | AM88: 55.51915807 | AN88: 14.914242
G89: =G90 -> 58.09024599 | H89: 58.09024599 | I89: =I88 -> 12.514278 | J89: =J88 -> 13.71426 | K89: =K88 -> 14.914242 | AG89: 58.09024599 | AH89: 12.514278 | AJ89: 58.09024599 | AK89: 13.71426 | AM89: 58.09024599 | AN89: 14.914242
A90: 5208 | B90: 8 | C90: 29 | D90: =D92+1 -> 50 | E90: ='NTC Input'!$D$27 * A90 / (21829 - A90) -> 3.133385476 | F90: =1/((1/E90) - (1/'NTC Input'!$D$30)) - 'NTC Input'!$D$29 -> 3.133385476 | G90: =IF(Hidden!$D$4=1, 1 / ('NTC Input'!$G$12 + 'NTC Input'!$G$13*LN(F90/'NTC Input'!$F$21) + 'NTC Input'!$G$14*POWER(LN(F90/'NTC Input'!$F$21),2) + 'NTC Input'!$G$15*POWER(LN(F90/'NTC Input'!$F$21),3)) -273.15, 'NTC Input'!$K$11 / (LN(F90 / ('NTC Input'!$F$21 * EXP(-'NTC Input'!$K$11 / 298.15)))) - 273.15) -> 58.09024599 | H90: 58.09024599 | I90: =Hidden!$D$18 * (B90*Hidden!$D$19 + Hidden!$D$20) -> 12.457136 | J90: =Hidden!$D$18 * (C90*Hidden!$D$19 + Hidden!$D$20) -> 13.657118 | K90: =Hidden!$D$18 * (D90*Hidden!$D$19 + Hidden!$D$20) -> 14.8571 | L90: =(I92-I90)/($G92-$G90)/'Temp Comp (Lead-Acid)'!$H$30*1000 -> -3.709767145 | M90: =(J92-J90)/($G92-$G90)/'Temp Comp (Lead-Acid)'!$H$30*1000 -> -3.709767145 | N90: =(K92-K90)/($G92-$G90)/'Temp Comp (Lead-Acid)'!$H$30*1000 -> -3.709767145 | Y90: 5208 | AB90: 5211 | AG90: 58.09024599 | AH90: 12.457136 | AJ90: 58.09024599 | AK90: 13.657118 | AM90: 58.09024599 | AN90: 14.8571
G91: =G92 -> 60.65743317 | H91: 60.65743317 | I91: =I90 -> 12.457136 | J91: =J90 -> 13.657118 | K91: =K90 -> 14.8571 | AG91: 60.65743317 | AH91: 12.457136 | AJ91: 60.65743317 | AK91: 13.657118 | AM91: 60.65743317 | AN91: 14.8571
A92: 4892 | B92: 7 | C92: 28 | D92: =D94+1 -> 49 | E92: ='NTC Input'!$D$27 * A92 / (21829 - A92) -> 2.888350948 | F92: =1/((1/E92) - (1/'NTC Input'!$D$30)) - 'NTC Input'!$D$29 -> 2.888350948 | G92: =IF(Hidden!$D$4=1, 1 / ('NTC Input'!$G$12 + 'NTC Input'!$G$13*LN(F92/'NTC Input'!$F$21) + 'NTC Input'!$G$14*POWER(LN(F92/'NTC Input'!$F$21),2) + 'NTC Input'!$G$15*POWER(LN(F92/'NTC Input'!$F$21),3)) -273.15, 'NTC Input'!$K$11 / (LN(F92 / ('NTC Input'!$F$21 * EXP(-'NTC Input'!$K$11 / 298.15)))) - 273.15) -> 60.65743317 | H92: 60.65743317 | I92: =Hidden!$D$18 * (B92*Hidden!$D$19 + Hidden!$D$20) -> 12.399994 | J92: =Hidden!$D$18 * (C92*Hidden!$D$19 + Hidden!$D$20) -> 13.599976 | K92: =Hidden!$D$18 * (D92*Hidden!$D$19 + Hidden!$D$20) -> 14.799958 | L92: =(I94-I92)/($G94-$G92)/'Temp Comp (Lead-Acid)'!$H$30*1000 -> -3.697517901 | M92: =(J94-J92)/($G94-$G92)/'Temp Comp (Lead-Acid)'!$H$30*1000 -> -3.697517901 | N92: =(K94-K92)/($G94-$G92)/'Temp Comp (Lead-Acid)'!$H$30*1000 -> -3.697517901 | Y92: 4892 | AB92: 4895 | AG92: 60.65743317 | AH92: 12.399994 | AJ92: 60.65743317 | AK92: 13.599976 | AM92: 60.65743317 | AN92: 14.799958
G93: =G94 -> 63.23312501 | H93: 63.23312501 | I93: =I92 -> 12.399994 | J93: =J92 -> 13.599976 | K93: =K92 -> 14.799958 | AG93: 63.23312501 | AH93: 12.399994 | AJ93: 63.23312501 | AK93: 13.599976 | AM93: 63.23312501 | AN93: 14.799958
A94: 4593 | B94: 6 | C94: 27 | D94: =D96+1 -> 48 | E94: ='NTC Input'!$D$27 * A94 / (21829 - A94) -> 2.664771409 | F94: =1/((1/E94) - (1/'NTC Input'!$D$30)) - 'NTC Input'!$D$29 -> 2.664771409 | G94: =IF(Hidden!$D$4=1, 1 / ('NTC Input'!$G$12 + 'NTC Input'!$G$13*LN(F94/'NTC Input'!$F$21) + 'NTC Input'!$G$14*POWER(LN(F94/'NTC Input'!$F$21),2) + 'NTC Input'!$G$15*POWER(LN(F94/'NTC Input'!$F$21),3)) -273.15, 'NTC Input'!$K$11 / (LN(F94 / ('NTC Input'!$F$21 * EXP(-'NTC Input'!$K$11 / 298.15)))) - 273.15) -> 63.23312501 | H94: 63.23312501 | I94: =Hidden!$D$18 * (B94*Hidden!$D$19 + Hidden!$D$20) -> 12.342852 | J94: =Hidden!$D$18 * (C94*Hidden!$D$19 + Hidden!$D$20) -> 13.542834 | K94: =Hidden!$D$18 * (D94*Hidden!$D$19 + Hidden!$D$20) -> 14.742816 | L94: =(I96-I94)/($G96-$G94)/'Temp Comp (Lead-Acid)'!$H$30*1000 -> -3.704695125 | M94: =(J96-J94)/($G96-$G94)/'Temp Comp (Lead-Acid)'!$H$30*1000 -> -3.704695125 | N94: =(K96-K94)/($G96-$G94)/'Temp Comp (Lead-Acid)'!$H$30*1000 -> -3.704695125 | Y94: 4593 | AB94: 4596 | AG94: 63.23312501 | AH94: 12.342852 | AJ94: 63.23312501 | AK94: 13.542834 | AM94: 63.23312501 | AN94: 14.742816
G95: =G96 -> 65.80382687 | H95: 65.80382687 | I95: =I94 -> 12.342852 | J95: =J94 -> 13.542834 | K95: =K94 -> 14.742816 | AG95: 65.80382687 | AH95: 12.342852 | AJ95: 65.80382687 | AK95: 13.542834 | AM95: 65.80382687 | AN95: 14.742816
A96: 4312 | B96: 5 | C96: 26 | D96: =D98+1 -> 47 | E96: ='NTC Input'!$D$27 * A96 / (21829 - A96) -> 2.461608723 | F96: =1/((1/E96) - (1/'NTC Input'!$D$30)) - 'NTC Input'!$D$29 -> 2.461608723 | G96: =IF(Hidden!$D$4=1, 1 / ('NTC Input'!$G$12 + 'NTC Input'!$G$13*LN(F96/'NTC Input'!$F$21) + 'NTC Input'!$G$14*POWER(LN(F96/'NTC Input'!$F$21),2) + 'NTC Input'!$G$15*POWER(LN(F96/'NTC Input'!$F$21),3)) -273.15, 'NTC Input'!$K$11 / (LN(F96 / ('NTC Input'!$F$21 * EXP(-'NTC Input'!$K$11 / 298.15)))) - 273.15) -> 65.80382687 | H96: 65.80382687 | I96: =Hidden!$D$18 * (B96*Hidden!$D$19 + Hidden!$D$20) -> 12.28571 | J96: =Hidden!$D$18 * (C96*Hidden!$D$19 + Hidden!$D$20) -> 13.485692 | K96: =Hidden!$D$18 * (D96*Hidden!$D$19 + Hidden!$D$20) -> 14.685674 | L96: =(I98-I96)/($G98-$G96)/'Temp Comp (Lead-Acid)'!$H$30*1000 -> -3.708470936 | M96: =(J98-J96)/($G98-$G96)/'Temp Comp (Lead-Acid)'!$H$30*1000 -> -3.708470936 | N96: =(K98-K96)/($G98-$G96)/'Temp Comp (Lead-Acid)'!$H$30*1000 -> -3.708470936 | Y96: 4312 | AB96: 4315 | AG96: 65.80382687 | AH96: 12.28571 | AJ96: 65.80382687 | AK96: 13.485692 | AM96: 65.80382687 | AN96: 14.685674
G97: =G98 -> 68.37191136 | H97: 68.37191136 | I97: =I96 -> 12.28571 | J97: =J96 -> 13.485692 | K97: =K96 -> 14.685674 | AG97: 68.37191136 | AH97: 12.28571 | AJ97: 68.37191136 | AK97: 13.485692 | AM97: 68.37191136 | AN97: 14.685674
A98: 4048 | B98: 4 | C98: 25 | D98: =D100+1 -> 46 | E98: ='NTC Input'!$D$27 * A98 / (21829 - A98) -> 2.276587369 | F98: =1/((1/E98) - (1/'NTC Input'!$D$30)) - 'NTC Input'!$D$29 -> 2.276587369 | G98: =IF(Hidden!$D$4=1, 1 / ('NTC Input'!$G$12 + 'NTC Input'!$G$13*LN(F98/'NTC Input'!$F$21) + 'NTC Input'!$G$14*POWER(LN(F98/'NTC Input'!$F$21),2) + 'NTC Input'!$G$15*POWER(LN(F98/'NTC Input'!$F$21),3)) -273.15, 'NTC Input'!$K$11 / (LN(F98 / ('NTC Input'!$F$21 * EXP(-'NTC Input'!$K$11 / 298.15)))) - 273.15) -> 68.37191136 | H98: 68.37191136 | I98: =Hidden!$D$18 * (B98*Hidden!$D$19 + Hidden!$D$20) -> 12.228568 | J98: =Hidden!$D$18 * (C98*Hidden!$D$19 + Hidden!$D$20) -> 13.42855 | K98: =Hidden!$D$18 * (D98*Hidden!$D$19 + Hidden!$D$20) -> 14.628532 | L98: =(I100-I98)/($G100-$G98)/'Temp Comp (Lead-Acid)'!$H$30*1000 -> -3.708482097 | M98: =(J100-J98)/($G100-$G98)/'Temp Comp (Lead-Acid)'!$H$30*1000 -> -3.708482097 | N98: =(K100-K98)/($G100-$G98)/'Temp Comp (Lead-Acid)'!$H$30*1000 -> -3.708482097 | Y98: 4048 | AB98: 4051 | AG98: 68.37191136 | AH98: 12.228568 | AJ98: 68.37191136 | AK98: 13.42855 | AM98: 68.37191136 | AN98: 14.628532
G99: =G100 -> 70.93998811 | H99: 70.93998811 | I99: =I98 -> 12.228568 | J99: =J98 -> 13.42855 | K99: =K98 -> 14.628532 | AG99: 70.93998811 | AH99: 12.228568 | AJ99: 70.93998811 | AK99: 13.42855 | AM99: 70.93998811 | AN99: 14.628532
A100: 3800 | B100: 3 | C100: 24 | D100: =D102+1 -> 45 | E100: ='NTC Input'!$D$27 * A100 / (21829 - A100) -> 2.107715347 | F100: =1/((1/E100) - (1/'NTC Input'!$D$30)) - 'NTC Input'!$D$29 -> 2.107715348 | G100: =IF(Hidden!$D$4=1, 1 / ('NTC Input'!$G$12 + 'NTC Input'!$G$13*LN(F100/'NTC Input'!$F$21) + 'NTC Input'!$G$14*POWER(LN(F100/'NTC Input'!$F$21),2) + 'NTC Input'!$G$15*POWER(LN(F100/'NTC Input'!$F$21),3)) -273.15, 'NTC Input'!$K$11 / (LN(F100 / ('NTC Input'!$F$21 * EXP(-'NTC Input'!$K$11 / 298.15)))) - 273.15) -> 70.93998811 | H100: 70.93998811 | I100: =Hidden!$D$18 * (B100*Hidden!$D$19 + Hidden!$D$20) -> 12.171426 | J100: =Hidden!$D$18 * (C100*Hidden!$D$19 + Hidden!$D$20) -> 13.371408 | K100: =Hidden!$D$18 * (D100*Hidden!$D$19 + Hidden!$D$20) -> 14.57139 | L100: =(I102-I100)/($G102-$G100)/'Temp Comp (Lead-Acid)'!$H$30*1000 -> -3.704127239 | M100: =(J102-J100)/($G102-$G100)/'Temp Comp (Lead-Acid)'!$H$30*1000 -> -3.704127239 | N100: =(K102-K100)/($G102-$G100)/'Temp Comp (Lead-Acid)'!$H$30*1000 -> -3.704127239 | Y100: 3800 | AB100: 3802 | AG100: 70.93998811 | AH100: 12.171426 | AJ100: 70.93998811 | AK100: 13.371408 | AM100: 70.93998811 | AN100: 14.57139
G101: =G102 -> 73.51108409 | H101: 73.51108409 | I101: =I100 -> 12.171426 | J101: =J100 -> 13.371408 | K101: =K100 -> 14.57139 | AG101: 73.51108409 | AH101: 12.171426 | AJ101: 73.51108409 | AK101: 13.371408 | AM101: 73.51108409 | AN101: 14.57139
A102: 3567 | B102: 2 | C102: 23 | D102: =D104+1 -> 44 | E102: ='NTC Input'!$D$27 * A102 / (21829 - A102) -> 1.953236228 | F102: =1/((1/E102) - (1/'NTC Input'!$D$30)) - 'NTC Input'!$D$29 -> 1.953236228 | G102: =IF(Hidden!$D$4=1, 1 / ('NTC Input'!$G$12 + 'NTC Input'!$G$13*LN(F102/'NTC Input'!$F$21) + 'NTC Input'!$G$14*POWER(LN(F102/'NTC Input'!$F$21),2) + 'NTC Input'!$G$15*POWER(LN(F102/'NTC Input'!$F$21),3)) -273.15, 'NTC Input'!$K$11 / (LN(F102 / ('NTC Input'!$F$21 * EXP(-'NTC Input'!$K$11 / 298.15)))) - 273.15) -> 73.51108409 | H102: 73.51108409 | I102: =Hidden!$D$18 * (B102*Hidden!$D$19 + Hidden!$D$20) -> 12.114284 | J102: =Hidden!$D$18 * (C102*Hidden!$D$19 + Hidden!$D$20) -> 13.314266 | K102: =Hidden!$D$18 * (D102*Hidden!$D$19 + Hidden!$D$20) -> 14.514248 | L102: =(I104-I102)/($G104-$G102)/'Temp Comp (Lead-Acid)'!$H$30*1000 -> -3.712050951 | M102: =(J104-J102)/($G104-$G102)/'Temp Comp (Lead-Acid)'!$H$30*1000 -> -3.712050951 | N102: =(K104-K102)/($G104-$G102)/'Temp Comp (Lead-Acid)'!$H$30*1000 -> -3.712050951 | Y102: 3567 | AB102: 3569 | AG102: 73.51108409 | AH102: 12.114284 | AJ102: 73.51108409 | AK102: 13.314266 | AM102: 73.51108409 | AN102: 14.514248
G103: =G104 -> 76.07669184 | H103: 76.07669184 | I103: =I102 -> 12.114284 | J103: =J102 -> 13.314266 | K103: =K102 -> 14.514248 | AG103: 76.07669184 | AH103: 12.114284 | AJ103: 76.07669184 | AK103: 13.314266 | AM103: 76.07669184 | AN103: 14.514248
A104: 3349 | B104: 1 | C104: 22 | D104: =D106+1 -> 43 | E104: ='NTC Input'!$D$27 * A104 / (21829 - A104) -> 1.812229437 | F104: =1/((1/E104) - (1/'NTC Input'!$D$30)) - 'NTC Input'!$D$29 -> 1.812229437 | G104: =IF(Hidden!$D$4=1, 1 / ('NTC Input'!$G$12 + 'NTC Input'!$G$13*LN(F104/'NTC Input'!$F$21) + 'NTC Input'!$G$14*POWER(LN(F104/'NTC Input'!$F$21),2) + 'NTC Input'!$G$15*POWER(LN(F104/'NTC Input'!$F$21),3)) -273.15, 'NTC Input'!$K$11 / (LN(F104 / ('NTC Input'!$F$21 * EXP(-'NTC Input'!$K$11 / 298.15)))) - 273.15) -> 76.07669184 | H104: 76.07669184 | I104: =Hidden!$D$18 * (B104*Hidden!$D$19 + Hidden!$D$20) -> 12.057142 | J104: =Hidden!$D$18 * (C104*Hidden!$D$19 + Hidden!$D$20) -> 13.257124 | K104: =Hidden!$D$18 * (D104*Hidden!$D$19 + Hidden!$D$20) -> 14.457106 | L104: =(I106-I104)/($G106-$G104)/'Temp Comp (Lead-Acid)'!$H$30*1000 -> -3.717034849 | M104: =(J106-J104)/($G106-$G104)/'Temp Comp (Lead-Acid)'!$H$30*1000 -> -3.717034849 | N104: =(K106-K104)/($G106-$G104)/'Temp Comp (Lead-Acid)'!$H$30*1000 -> -3.717034849 | Y104: 3349 | AB104: 3351 | AG104: 76.07669184 | AH104: 12.057142 | AJ104: 76.07669184 | AK104: 13.257124 | AM104: 76.07669184 | AN104: 14.457106
G105: =G106 -> 78.63885955 | H105: 78.63885955 | I105: =I104 -> 12.057142 | J105: =J104 -> 13.257124 | K105: =K104 -> 14.457106 | AG105: 78.63885955 | AH105: 12.057142 | AJ105: 78.63885955 | AK105: 13.257124 | AM105: 78.63885955 | AN105: 14.457106
A106: 3145 | B106: 0 | C106: 21 | D106: 42 | E106: ='NTC Input'!$D$27 * A106 / (21829 - A106) -> 1.683258403 | F106: =1/((1/E106) - (1/'NTC Input'!$D$30)) - 'NTC Input'!$D$29 -> 1.683258403 | G106: =IF(Hidden!$D$4=1, 1 / ('NTC Input'!$G$12 + 'NTC Input'!$G$13*LN(F106/'NTC Input'!$F$21) + 'NTC Input'!$G$14*POWER(LN(F106/'NTC Input'!$F$21),2) + 'NTC Input'!$G$15*POWER(LN(F106/'NTC Input'!$F$21),3)) -273.15, 'NTC Input'!$K$11 / (LN(F106 / ('NTC Input'!$F$21 * EXP(-'NTC Input'!$K$11 / 298.15)))) - 273.15) -> 78.63885955 | H106: 78.63885955 | I106: =Hidden!$D$18 * (B106*Hidden!$D$19 + Hidden!$D$20) -> 12 | J106: =Hidden!$D$18 * (C106*Hidden!$D$19 + Hidden!$D$20) -> 13.199982 | K106: =Hidden!$D$18 * (D106*Hidden!$D$19 + Hidden!$D$20) -> 14.399964 | L106: =(I108-I106)/($G108-$G106)/'Temp Comp (Lead-Acid)'!$H$30*1000 -> 0 | M106: =(J108-J106)/($G108-$G106)/'Temp Comp (Lead-Acid)'!$H$30*1000 -> -3.697935588 | N106: =(K108-K106)/($G108-$G106)/'Temp Comp (Lead-Acid)'!$H$30*1000 -> -3.697935588 | Y106: 3145 | AB106: 3146 | AG106: 78.63885955 | AH106: 12 | AJ106: 78.63885955 | AK106: 13.199982 | AM106: 78.63885955 | AN106: 14.399964
G107: =G108 -> 81.21426046 | H107: 81.21426046 | I107: =I106 -> 12 | J107: =J106 -> 13.199982 | K107: =K106 -> 14.399964 | AG107: 81.21426046 | AH107: 12 | AJ107: 81.21426046 | AK107: 13.199982 | AM107: 81.21426046 | AN107: 14.399964
A108: 2953 | B108: 0 | C108: =C106-1 -> 20 | D108: =D106-1 -> 41 | E108: ='NTC Input'!$D$27 * A108 / (21829 - A108) -> 1.564420428 | F108: =1/((1/E108) - (1/'NTC Input'!$D$30)) - 'NTC Input'!$D$29 -> 1.564420428 | G108: =IF(Hidden!$D$4=1, 1 / ('NTC Input'!$G$12 + 'NTC Input'!$G$13*LN(F108/'NTC Input'!$F$21) + 'NTC Input'!$G$14*POWER(LN(F108/'NTC Input'!$F$21),2) + 'NTC Input'!$G$15*POWER(LN(F108/'NTC Input'!$F$21),3)) -273.15, 'NTC Input'!$K$11 / (LN(F108 / ('NTC Input'!$F$21 * EXP(-'NTC Input'!$K$11 / 298.15)))) - 273.15) -> 81.21426046 | H108: 81.21426046 | I108: =Hidden!$D$18 * (B108*Hidden!$D$19 + Hidden!$D$20) -> 12 | J108: =Hidden!$D$18 * (C108*Hidden!$D$19 + Hidden!$D$20) -> 13.14284 | K108: =Hidden!$D$18 * (D108*Hidden!$D$19 + Hidden!$D$20) -> 14.342822 | L108: =(I110-I108)/($G110-$G108)/'Temp Comp (Lead-Acid)'!$H$30*1000 -> 0 | M108: =(J110-J108)/($G110-$G108)/'Temp Comp (Lead-Acid)'!$H$30*1000 -> -3.711917675 | N108: =(K110-K108)/($G110-$G108)/'Temp Comp (Lead-Acid)'!$H$30*1000 -> -3.711917675 | Y108: 2953 | AB108: 2955 | AG108: 81.21426046 | AH108: 12 | AJ108: 81.21426046 | AK108: 13.14284 | AM108: 81.21426046 | AN108: 14.342822
G109: =G110 -> 83.77996032 | H109: 83.77996032 | I109: =I108 -> 12 | J109: =J108 -> 13.14284 | K109: =K108 -> 14.342822 | AG109: 83.77996032 | AH109: 12 | AJ109: 83.77996032 | AK109: 13.14284 | AM109: 83.77996032 | AN109: 14.342822
A110: 2774 | B110: 0 | C110: =C108-1 -> 19 | D110: =D108-1 -> 40 | E110: ='NTC Input'!$D$27 * A110 / (21829 - A110) -> 1.455785883 | F110: =1/((1/E110) - (1/'NTC Input'!$D$30)) - 'NTC Input'!$D$29 -> 1.455785883 | G110: =IF(Hidden!$D$4=1, 1 / ('NTC Input'!$G$12 + 'NTC Input'!$G$13*LN(F110/'NTC Input'!$F$21) + 'NTC Input'!$G$14*POWER(LN(F110/'NTC Input'!$F$21),2) + 'NTC Input'!$G$15*POWER(LN(F110/'NTC Input'!$F$21),3)) -273.15, 'NTC Input'!$K$11 / (LN(F110 / ('NTC Input'!$F$21 * EXP(-'NTC Input'!$K$11 / 298.15)))) - 273.15) -> 83.77996032 | H110: 83.77996032 | I110: =Hidden!$D$18 * (B110*Hidden!$D$19 + Hidden!$D$20) -> 12 | J110: =Hidden!$D$18 * (C110*Hidden!$D$19 + Hidden!$D$20) -> 13.085698 | K110: =Hidden!$D$18 * (D110*Hidden!$D$19 + Hidden!$D$20) -> 14.28568 | L110: =(I112-I110)/($G112-$G110)/'Temp Comp (Lead-Acid)'!$H$30*1000 -> 0 | M110: =(J112-J110)/($G112-$G110)/'Temp Comp (Lead-Acid)'!$H$30*1000 -> -3.699667355 | N110: =(K112-K110)/($G112-$G110)/'Temp Comp (Lead-Acid)'!$H$30*1000 -> -3.699667355 | Y110: 2774 | AB110: 2775 | AG110: 83.77996032 | AH110: 12 | AJ110: 83.77996032 | AK110: 13.085698 | AM110: 83.77996032 | AN110: 14.28568
G111: =G112 -> 86.35415571 | H111: 86.35415571 | I111: =I110 -> 12 | J111: =J110 -> 13.085698 | K111: =K110 -> 14.28568 | AG111: 86.35415571 | AH111: 12 | AJ111: 86.35415571 | AK111: 13.085698 | AM111: 86.35415571 | AN111: 14.28568
A112: 2606 | B112: 0 | C112: =C110-1 -> 18 | D112: =D110-1 -> 39 | E112: ='NTC Input'!$D$27 * A112 / (21829 - A112) -> 1.35566769 | F112: =1/((1/E112) - (1/'NTC Input'!$D$30)) - 'NTC Input'!$D$29 -> 1.35566769 | G112: =IF(Hidden!$D$4=1, 1 / ('NTC Input'!$G$12 + 'NTC Input'!$G$13*LN(F112/'NTC Input'!$F$21) + 'NTC Input'!$G$14*POWER(LN(F112/'NTC Input'!$F$21),2) + 'NTC Input'!$G$15*POWER(LN(F112/'NTC Input'!$F$21),3)) -273.15, 'NTC Input'!$K$11 / (LN(F112 / ('NTC Input'!$F$21 * EXP(-'NTC Input'!$K$11 / 298.15)))) - 273.15) -> 86.35415571 | H112: 86.35415571 | I112: =Hidden!$D$18 * (B112*Hidden!$D$19 + Hidden!$D$20) -> 12 | J112: =Hidden!$D$18 * (C112*Hidden!$D$19 + Hidden!$D$20) -> 13.028556 | K112: =Hidden!$D$18 * (D112*Hidden!$D$19 + Hidden!$D$20) -> 14.228538 | L112: =(I114-I112)/($G114-$G112)/'Temp Comp (Lead-Acid)'!$H$30*1000 -> 0 | M112: =(J114-J112)/($G114-$G112)/'Temp Comp (Lead-Acid)'!$H$30*1000 -> -3.701817937 | N112: =(K114-K112)/($G114-$G112)/'Temp Comp (Lead-Acid)'!$H$30*1000 -> -3.701817937 | Y112: 2606 | AB112: 2608 | AG112: 86.35415571 | AH112: 12 | AJ112: 86.35415571 | AK112: 13.028556 | AM112: 86.35415571 | AN112: 14.228538
G113: =G114 -> 88.92685562 | H113: 88.92685562 | I113: =I112 -> 12 | J113: =J112 -> 13.028556 | K113: =K112 -> 14.228538 | AG113: 88.92685562 | AH113: 12 | AJ113: 88.92685562 | AK113: 13.028556 | AM113: 88.92685562 | AN113: 14.228538
A114: 2449 | B114: 0 | C114: =C112-1 -> 17 | D114: =D112-1 -> 38 | E114: ='NTC Input'!$D$27 * A114 / (21829 - A114) -> 1.263673891 | F114: =1/((1/E114) - (1/'NTC Input'!$D$30)) - 'NTC Input'!$D$29 -> 1.263673891 | G114: =IF(Hidden!$D$4=1, 1 / ('NTC Input'!$G$12 + 'NTC Input'!$G$13*LN(F114/'NTC Input'!$F$21) + 'NTC Input'!$G$14*POWER(LN(F114/'NTC Input'!$F$21),2) + 'NTC Input'!$G$15*POWER(LN(F114/'NTC Input'!$F$21),3)) -273.15, 'NTC Input'!$K$11 / (LN(F114 / ('NTC Input'!$F$21 * EXP(-'NTC Input'!$K$11 / 298.15)))) - 273.15) -> 88.92685562 | H114: 88.92685562 | I114: =Hidden!$D$18 * (B114*Hidden!$D$19 + Hidden!$D$20) -> 12 | J114: =Hidden!$D$18 * (C114*Hidden!$D$19 + Hidden!$D$20) -> 12.971414 | K114: =Hidden!$D$18 * (D114*Hidden!$D$19 + Hidden!$D$20) -> 14.171396 | L114: =(I116-I114)/($G116-$G114)/'Temp Comp (Lead-Acid)'!$H$30*1000 -> 0 | M114: =(J116-J114)/($G116-$G114)/'Temp Comp (Lead-Acid)'!$H$30*1000 -> -3.722129124 | N114: =(K116-K114)/($G116-$G114)/'Temp Comp (Lead-Acid)'!$H$30*1000 -> -3.722129124 | Y114: 2449 | AB114: 2451 | AG114: 88.92685562 | AH114: 12 | AJ114: 88.92685562 | AK114: 12.971414 | AM114: 88.92685562 | AN114: 14.171396
G115: =G116 -> 91.48551663 | H115: 91.48551663 | I115: =I114 -> 12 | J115: =J114 -> 12.971414 | K115: =K114 -> 14.171396 | AG115: 91.48551663 | AH115: 12 | AJ115: 91.48551663 | AK115: 12.971414 | AM115: 91.48551663 | AN115: 14.171396
A116: 2303 | B116: 0 | C116: =C114-1 -> 16 | D116: =D114-1 -> 37 | E116: ='NTC Input'!$D$27 * A116 / (21829 - A116) -> 1.179453037 | F116: =1/((1/E116) - (1/'NTC Input'!$D$30)) - 'NTC Input'!$D$29 -> 1.179453037 | G116: =IF(Hidden!$D$4=1, 1 / ('NTC Input'!$G$12 + 'NTC Input'!$G$13*LN(F116/'NTC Input'!$F$21) + 'NTC Input'!$G$14*POWER(LN(F116/'NTC Input'!$F$21),2) + 'NTC Input'!$G$15*POWER(LN(F116/'NTC Input'!$F$21),3)) -273.15, 'NTC Input'!$K$11 / (LN(F116 / ('NTC Input'!$F$21 * EXP(-'NTC Input'!$K$11 / 298.15)))) - 273.15) -> 91.48551663 | H116: 91.48551663 | I116: =Hidden!$D$18 * (B116*Hidden!$D$19 + Hidden!$D$20) -> 12 | J116: =Hidden!$D$18 * (C116*Hidden!$D$19 + Hidden!$D$20) -> 12.914272 | K116: =Hidden!$D$18 * (D116*Hidden!$D$19 + Hidden!$D$20) -> 14.114254 | L116: =(I118-I116)/($G118-$G116)/'Temp Comp (Lead-Acid)'!$H$30*1000 -> 0 | M116: =(J118-J116)/($G118-$G116)/'Temp Comp (Lead-Acid)'!$H$30*1000 -> -3.708643458 | N116: =(K118-K116)/($G118-$G116)/'Temp Comp (Lead-Acid)'!$H$30*1000 -> -3.708643458 | Y116: 2303 | AB116: 2304 | AG116: 91.48551663 | AH116: 12 | AJ116: 91.48551663 | AK116: 12.914272 | AM116: 91.48551663 | AN116: 14.114254
G117: =G118 -> 94.05348165 | H117: 94.05348165 | I117: =I116 -> 12 | J117: =J116 -> 12.914272 | K117: =K116 -> 14.114254 | AG117: 94.05348165 | AH117: 12 | AJ117: 94.05348165 | AK117: 12.914272 | AM117: 94.05348165 | AN117: 14.114254
A118: 2166 | B118: 0 | C118: =C116-1 -> 15 | D118: =D116-1 -> 36 | E118: ='NTC Input'!$D$27 * A118 / (21829 - A118) -> 1.101561308 | F118: =1/((1/E118) - (1/'NTC Input'!$D$30)) - 'NTC Input'!$D$29 -> 1.101561308 | G118: =IF(Hidden!$D$4=1, 1 / ('NTC Input'!$G$12 + 'NTC Input'!$G$13*LN(F118/'NTC Input'!$F$21) + 'NTC Input'!$G$14*POWER(LN(F118/'NTC Input'!$F$21),2) + 'NTC Input'!$G$15*POWER(LN(F118/'NTC Input'!$F$21),3)) -273.15, 'NTC Input'!$K$11 / (LN(F118 / ('NTC Input'!$F$21 * EXP(-'NTC Input'!$K$11 / 298.15)))) - 273.15) -> 94.05348165 | H118: 94.05348165 | I118: =Hidden!$D$18 * (B118*Hidden!$D$19 + Hidden!$D$20) -> 12 | J118: =Hidden!$D$18 * (C118*Hidden!$D$19 + Hidden!$D$20) -> 12.85713 | K118: =Hidden!$D$18 * (D118*Hidden!$D$19 + Hidden!$D$20) -> 14.057112 | L118: =(I120-I118)/($G120-$G118)/'Temp Comp (Lead-Acid)'!$H$30*1000 -> 0 | M118: =(J120-J118)/($G120-$G118)/'Temp Comp (Lead-Acid)'!$H$30*1000 -> -3.710518792 | N118: =(K120-K118)/($G120-$G118)/'Temp Comp (Lead-Acid)'!$H$30*1000 -> -3.710518792 | Y118: 2166 | AB118: 2167 | AG118: 94.05348165 | AH118: 12 | AJ118: 94.05348165 | AK118: 12.85713 | AM118: 94.05348165 | AN118: 14.057112
G119: =G120 -> 96.62014879 | H119: 96.62014879 | I119: =I118 -> 12 | J119: =J118 -> 12.85713 | K119: =K118 -> 14.057112 | AG119: 96.62014879 | AH119: 12 | AJ119: 96.62014879 | AK119: 12.85713 | AM119: 96.62014879 | AN119: 14.057112
A120: 2038 | B120: 0 | C120: =C118-1 -> 14 | D120: =D118-1 -> 35 | E120: ='NTC Input'!$D$27 * A120 / (21829 - A120) -> 1.029761002 | F120: =1/((1/E120) - (1/'NTC Input'!$D$30)) - 'NTC Input'!$D$29 -> 1.029761002 | G120: =IF(Hidden!$D$4=1, 1 / ('NTC Input'!$G$12 + 'NTC Input'!$G$13*LN(F120/'NTC Input'!$F$21) + 'NTC Input'!$G$14*POWER(LN(F120/'NTC Input'!$F$21),2) + 'NTC Input'!$G$15*POWER(LN(F120/'NTC Input'!$F$21),3)) -273.15, 'NTC Input'!$K$11 / (LN(F120 / ('NTC Input'!$F$21 * EXP(-'NTC Input'!$K$11 / 298.15)))) - 273.15) -> 96.62014879 | H120: 96.62014879 | I120: =Hidden!$D$18 * (B120*Hidden!$D$19 + Hidden!$D$20) -> 12 | J120: =Hidden!$D$18 * (C120*Hidden!$D$19 + Hidden!$D$20) -> 12.799988 | K120: =Hidden!$D$18 * (D120*Hidden!$D$19 + Hidden!$D$20) -> 13.99997 | L120: =(I122-I120)/($G122-$G120)/'Temp Comp (Lead-Acid)'!$H$30*1000 -> 0 | M120: =(J122-J120)/($G122-$G120)/'Temp Comp (Lead-Acid)'!$H$30*1000 -> -3.699370375 | N120: =(K122-K120)/($G122-$G120)/'Temp Comp (Lead-Acid)'!$H$30*1000 -> -3.699370375 | Y120: 2038 | AB120: 2039 | AG120: 96.62014879 | AH120: 12 | AJ120: 96.62014879 | AK120: 12.799988 | AM120: 96.62014879 | AN120: 13.99997
G121: =G122 -> 99.19455084 | H121: 99.19455084 | I121: =I120 -> 12 | J121: =J120 -> 12.799988 | K121: =K120 -> 13.99997 | AG121: 99.19455084 | AH121: 12 | AJ121: 99.19455084 | AK121: 12.799988 | AM121: 99.19455084 | AN121: 13.99997
A122: 1918 | B122: 0 | C122: =C120-1 -> 13 | D122: =D120-1 -> 34 | E122: ='NTC Input'!$D$27 * A122 / (21829 - A122) -> 0.9632866255 | F122: =1/((1/E122) - (1/'NTC Input'!$D$30)) - 'NTC Input'!$D$29 -> 0.9632866255 | G122: =IF(Hidden!$D$4=1, 1 / ('NTC Input'!$G$12 + 'NTC Input'!$G$13*LN(F122/'NTC Input'!$F$21) + 'NTC Input'!$G$14*POWER(LN(F122/'NTC Input'!$F$21),2) + 'NTC Input'!$G$15*POWER(LN(F122/'NTC Input'!$F$21),3)) -273.15, 'NTC Input'!$K$11 / (LN(F122 / ('NTC Input'!$F$21 * EXP(-'NTC Input'!$K$11 / 298.15)))) - 273.15) -> 99.19455084 | H122: 99.19455084 | I122: =Hidden!$D$18 * (B122*Hidden!$D$19 + Hidden!$D$20) -> 12 | J122: =Hidden!$D$18 * (C122*Hidden!$D$19 + Hidden!$D$20) -> 12.742846 | K122: =Hidden!$D$18 * (D122*Hidden!$D$19 + Hidden!$D$20) -> 13.942828 | L122: =(I124-I122)/($G124-$G122)/'Temp Comp (Lead-Acid)'!$H$30*1000 -> 0 | M122: =(J124-J122)/($G124-$G122)/'Temp Comp (Lead-Acid)'!$H$30*1000 -> -3.704661879 | N122: =(K124-K122)/($G124-$G122)/'Temp Comp (Lead-Acid)'!$H$30*1000 -> -3.704661879 | Y122: 1918 | AB122: 1919 | AG122: 99.19455084 | AH122: 12 | AJ122: 99.19455084 | AK122: 12.742846 | AM122: 99.19455084 | AN122: 13.942828
G123: =G124 -> 101.7652758 | H123: 101.7652758 | I123: =I122 -> 12 | J123: =J122 -> 12.742846 | K123: =K122 -> 13.942828 | AG123: 101.7652758 | AH123: 12 | AJ123: 101.7652758 | AK123: 12.742846 | AM123: 101.7652758 | AN123: 13.942828
A124: 1806 | B124: 0 | C124: =C122-1 -> 12 | D124: =D122-1 -> 33 | E124: ='NTC Input'!$D$27 * A124 / (21829 - A124) -> 0.9019627428 | F124: =1/((1/E124) - (1/'NTC Input'!$D$30)) - 'NTC Input'!$D$29 -> 0.9019627428 | G124: =IF(Hidden!$D$4=1, 1 / ('NTC Input'!$G$12 + 'NTC Input'!$G$13*LN(F124/'NTC Input'!$F$21) + 'NTC Input'!$G$14*POWER(LN(F124/'NTC Input'!$F$21),2) + 'NTC Input'!$G$15*POWER(LN(F124/'NTC Input'!$F$21),3)) -273.15, 'NTC Input'!$K$11 / (LN(F124 / ('NTC Input'!$F$21 * EXP(-'NTC Input'!$K$11 / 298.15)))) - 273.15) -> 101.7652758 | H124: 101.7652758 | I124: =Hidden!$D$18 * (B124*Hidden!$D$19 + Hidden!$D$20) -> 12 | J124: =Hidden!$D$18 * (C124*Hidden!$D$19 + Hidden!$D$20) -> 12.685704 | K124: =Hidden!$D$18 * (D124*Hidden!$D$19 + Hidden!$D$20) -> 13.885686 | L124: =(I126-I124)/($G126-$G124)/'Temp Comp (Lead-Acid)'!$H$30*1000 -> 0 | M124: =(J126-J124)/($G126-$G124)/'Temp Comp (Lead-Acid)'!$H$30*1000 -> -3.693624558 | N124: =(K126-K124)/($G126-$G124)/'Temp Comp (Lead-Acid)'!$H$30*1000 -> -3.693624558 | Y124: 1806 | AB124: 1807 | AG124: 101.7652758 | AH124: 12 | AJ124: 101.7652758 | AK124: 12.685704 | AM124: 101.7652758 | AN124: 13.885686
G125: =G126 -> 104.3436826 | H125: 104.3436826 | I125: =I124 -> 12 | J125: =J124 -> 12.685704 | K125: =K124 -> 13.885686 | AG125: 104.3436826 | AH125: 12 | AJ125: 104.3436826 | AK125: 12.685704 | AM125: 104.3436826 | AN125: 13.885686
A126: 1701 | B126: 0 | C126: =C124-1 -> 11 | D126: =D124-1 -> 32 | E126: ='NTC Input'!$D$27 * A126 / (21829 - A126) -> 0.8450914149 | F126: =1/((1/E126) - (1/'NTC Input'!$D$30)) - 'NTC Input'!$D$29 -> 0.8450914149 | G126: =IF(Hidden!$D$4=1, 1 / ('NTC Input'!$G$12 + 'NTC Input'!$G$13*LN(F126/'NTC Input'!$F$21) + 'NTC Input'!$G$14*POWER(LN(F126/'NTC Input'!$F$21),2) + 'NTC Input'!$G$15*POWER(LN(F126/'NTC Input'!$F$21),3)) -273.15, 'NTC Input'!$K$11 / (LN(F126 / ('NTC Input'!$F$21 * EXP(-'NTC Input'!$K$11 / 298.15)))) - 273.15) -> 104.3436826 | H126: 104.3436826 | I126: =Hidden!$D$18 * (B126*Hidden!$D$19 + Hidden!$D$20) -> 12 | J126: =Hidden!$D$18 * (C126*Hidden!$D$19 + Hidden!$D$20) -> 12.628562 | K126: =Hidden!$D$18 * (D126*Hidden!$D$19 + Hidden!$D$20) -> 13.828544 | L126: =(I128-I126)/($G128-$G126)/'Temp Comp (Lead-Acid)'!$H$30*1000 -> 0 | M126: =(J128-J126)/($G128-$G126)/'Temp Comp (Lead-Acid)'!$H$30*1000 -> -3.738844706 | N126: =(K128-K126)/($G128-$G126)/'Temp Comp (Lead-Acid)'!$H$30*1000 -> -3.738844706 | Y126: 1701 | AB126: 1702 | AG126: 104.3436826 | AH126: 12 | AJ126: 104.3436826 | AK126: 12.628562 | AM126: 104.3436826 | AN126: 13.828544
G127: =G128 -> 106.8909044 | H127: 106.8909044 | I127: =I126 -> 12 | J127: =J126 -> 12.628562 | K127: =K126 -> 13.828544 | AG127: 106.8909044 | AH127: 12 | AJ127: 106.8909044 | AK127: 12.628562 | AM127: 106.8909044 | AN127: 13.828544
A128: 1604 | B128: 0 | C128: =C126-1 -> 10 | D128: =D126-1 -> 31 | E128: ='NTC Input'!$D$27 * A128 / (21829 - A128) -> 0.7930778739 | F128: =1/((1/E128) - (1/'NTC Input'!$D$30)) - 'NTC Input'!$D$29 -> 0.7930778739 | G128: =IF(Hidden!$D$4=1, 1 / ('NTC Input'!$G$12 + 'NTC Input'!$G$13*LN(F128/'NTC Input'!$F$21) + 'NTC Input'!$G$14*POWER(LN(F128/'NTC Input'!$F$21),2) + 'NTC Input'!$G$15*POWER(LN(F128/'NTC Input'!$F$21),3)) -273.15, 'NTC Input'!$K$11 / (LN(F128 / ('NTC Input'!$F$21 * EXP(-'NTC Input'!$K$11 / 298.15)))) - 273.15) -> 106.8909044 | H128: 106.8909044 | I128: =Hidden!$D$18 * (B128*Hidden!$D$19 + Hidden!$D$20) -> 12 | J128: =Hidden!$D$18 * (C128*Hidden!$D$19 + Hidden!$D$20) -> 12.57142 | K128: =Hidden!$D$18 * (D128*Hidden!$D$19 + Hidden!$D$20) -> 13.771402 | L128: =(I130-I128)/($G130-$G128)/'Temp Comp (Lead-Acid)'!$H$30*1000 -> 0 | M128: =(J130-J128)/($G130-$G128)/'Temp Comp (Lead-Acid)'!$H$30*1000 -> -3.686756521 | N128: =(K130-K128)/($G130-$G128)/'Temp Comp (Lead-Acid)'!$H$30*1000 -> -3.686756521 | Y128: 1604 | AB128: 1604 | AG128: 106.8909044 | AH128: 12 | AJ128: 106.8909044 | AK128: 12.57142 | AM128: 106.8909044 | AN128: 13.771402
G129: =G130 -> 109.4741144 | H129: 109.4741144 | I129: =I128 -> 12 | J129: =J128 -> 12.57142 | K129: =K128 -> 13.771402 | AG129: 109.4741144 | AH129: 12 | AJ129: 109.4741144 | AK129: 12.57142 | AM129: 109.4741144 | AN129: 13.771402
A130: 1512 | B130: 0 | C130: =C128-1 -> 9 | D130: =D128-1 -> 30 | E130: ='NTC Input'!$D$27 * A130 / (21829 - A130) -> 0.7442043609 | F130: =1/((1/E130) - (1/'NTC Input'!$D$30)) - 'NTC Input'!$D$29 -> 0.7442043609 | G130: =IF(Hidden!$D$4=1, 1 / ('NTC Input'!$G$12 + 'NTC Input'!$G$13*LN(F130/'NTC Input'!$F$21) + 'NTC Input'!$G$14*POWER(LN(F130/'NTC Input'!$F$21),2) + 'NTC Input'!$G$15*POWER(LN(F130/'NTC Input'!$F$21),3)) -273.15, 'NTC Input'!$K$11 / (LN(F130 / ('NTC Input'!$F$21 * EXP(-'NTC Input'!$K$11 / 298.15)))) - 273.15) -> 109.4741144 | H130: 109.4741144 | I130: =Hidden!$D$18 * (B130*Hidden!$D$19 + Hidden!$D$20) -> 12 | J130: =Hidden!$D$18 * (C130*Hidden!$D$19 + Hidden!$D$20) -> 12.514278 | K130: =Hidden!$D$18 * (D130*Hidden!$D$19 + Hidden!$D$20) -> 13.71426 | L130: =(I132-I130)/($G132-$G130)/'Temp Comp (Lead-Acid)'!$H$30*1000 -> 0 | M130: =(J132-J130)/($G132-$G130)/'Temp Comp (Lead-Acid)'!$H$30*1000 -> -3.732529986 | N130: =(K132-K130)/($G132-$G130)/'Temp Comp (Lead-Acid)'!$H$30*1000 -> -3.732529986 | Y130: 1512 | AB130: 1513 | AG130: 109.4741144 | AH130: 12 | AJ130: 109.4741144 | AK130: 12.514278 | AM130: 109.4741144 | AN130: 13.71426
G131: =G132 -> 112.0256456 | H131: 112.0256456 | I131: =I130 -> 12 | J131: =J130 -> 12.514278 | K131: =K130 -> 13.71426 | AG131: 112.0256456 | AH131: 12 | AJ131: 112.0256456 | AK131: 12.514278 | AM131: 112.0256456 | AN131: 13.71426
A132: 1427 | B132: 0 | C132: =C130-1 -> 8 | D132: =D130-1 -> 29 | E132: ='NTC Input'!$D$27 * A132 / (21829 - A132) -> 0.6994412313 | F132: =1/((1/E132) - (1/'NTC Input'!$D$30)) - 'NTC Input'!$D$29 -> 0.6994412313 | G132: =IF(Hidden!$D$4=1, 1 / ('NTC Input'!$G$12 + 'NTC Input'!$G$13*LN(F132/'NTC Input'!$F$21) + 'NTC Input'!$G$14*POWER(LN(F132/'NTC Input'!$F$21),2) + 'NTC Input'!$G$15*POWER(LN(F132/'NTC Input'!$F$21),3)) -273.15, 'NTC Input'!$K$11 / (LN(F132 / ('NTC Input'!$F$21 * EXP(-'NTC Input'!$K$11 / 298.15)))) - 273.15) -> 112.0256456 | H132: 112.0256456 | I132: =Hidden!$D$18 * (B132*Hidden!$D$19 + Hidden!$D$20) -> 12 | J132: =Hidden!$D$18 * (C132*Hidden!$D$19 + Hidden!$D$20) -> 12.457136 | K132: =Hidden!$D$18 * (D132*Hidden!$D$19 + Hidden!$D$20) -> 13.657118 | L132: =(I134-I132)/($G134-$G132)/'Temp Comp (Lead-Acid)'!$H$30*1000 -> 0 | M132: =(J134-J132)/($G134-$G132)/'Temp Comp (Lead-Acid)'!$H$30*1000 -> -3.663979412 | N132: =(K134-K132)/($G134-$G132)/'Temp Comp (Lead-Acid)'!$H$30*1000 -> -3.663979412 | Y132: 1427 | AB132: 1427 | AG132: 112.0256456 | AH132: 12 | AJ132: 112.0256456 | AK132: 12.457136 | AM132: 112.0256456 | AN132: 13.657118
G133: =G134 -> 114.6249142 | H133: =IFERROR(G133,NA()) -> 114.6249142 | I133: =I132 -> 12 | J133: =J132 -> 12.457136 | K133: =K132 -> 13.657118 | AG133: =H133 -> 114.6249142 | AH133: =I133 -> 12 | AJ133: =H133 -> 114.6249142 | AK133: =J133 -> 12.457136 | AM133: =H133 -> 114.6249142 | AN133: =K133 -> 13.657118
A134: 1346 | B134: 0 | C134: =C132-1 -> 7 | D134: =D132-1 -> 28 | E134: ='NTC Input'!$D$27 * A134 / (21829 - A134) -> 0.6571303032 | F134: =1/((1/E134) - (1/'NTC Input'!$D$30)) - 'NTC Input'!$D$29 -> 0.6571303032 | G134: =IF(Hidden!$D$4=1, 1 / ('NTC Input'!$G$12 + 'NTC Input'!$G$13*LN(F134/'NTC Input'!$F$21) + 'NTC Input'!$G$14*POWER(LN(F134/'NTC Input'!$F$21),2) + 'NTC Input'!$G$15*POWER(LN(F134/'NTC Input'!$F$21),3)) -273.15, 'NTC Input'!$K$11 / (LN(F134 / ('NTC Input'!$F$21 * EXP(-'NTC Input'!$K$11 / 298.15)))) - 273.15) -> 114.6249142 | H134: 114.6249142 | I134: =Hidden!$D$18 * (B134*Hidden!$D$19 + Hidden!$D$20) -> 12 | J134: =Hidden!$D$18 * (C134*Hidden!$D$19 + Hidden!$D$20) -> 12.399994 | K134: =Hidden!$D$18 * (D134*Hidden!$D$19 + Hidden!$D$20) -> 13.599976 | L134: =(I136-I134)/($G136-$G134)/'Temp Comp (Lead-Acid)'!$H$30*1000 -> 0 | M134: =(J136-J134)/($G136-$G134)/'Temp Comp (Lead-Acid)'!$H$30*1000 -> -3.753349877 | N134: =(K136-K134)/($G136-$G134)/'Temp Comp (Lead-Acid)'!$H$30*1000 -> -3.753349877 | Y134: 1346 | AB134: 1347 | AG134: 114.6249142 | AH134: 12 | AJ134: 114.6249142 | AK134: 12.399994 | AM134: 114.6249142 | AN134: 13.599976
G135: =G136 -> 117.162292 | H135: 117.162292 | I135: =I134 -> 12 | J135: =J134 -> 12.399994 | K135: =K134 -> 13.599976 | AG135: 117.162292 | AH135: 12 | AJ135: 117.162292 | AK135: 12.399994 | AM135: 117.162292 | AN135: 13.599976
A136: 1272 | B136: 0 | C136: =C134-1 -> 6 | D136: =D134-1 -> 27 | E136: ='NTC Input'!$D$27 * A136 / (21829 - A136) -> 0.6187673299 | F136: =1/((1/E136) - (1/'NTC Input'!$D$30)) - 'NTC Input'!$D$29 -> 0.6187673299 | G136: =IF(Hidden!$D$4=1, 1 / ('NTC Input'!$G$12 + 'NTC Input'!$G$13*LN(F136/'NTC Input'!$F$21) + 'NTC Input'!$G$14*POWER(LN(F136/'NTC Input'!$F$21),2) + 'NTC Input'!$G$15*POWER(LN(F136/'NTC Input'!$F$21),3)) -273.15, 'NTC Input'!$K$11 / (LN(F136 / ('NTC Input'!$F$21 * EXP(-'NTC Input'!$K$11 / 298.15)))) - 273.15) -> 117.162292 | H136: 117.162292 | I136: =Hidden!$D$18 * (B136*Hidden!$D$19 + Hidden!$D$20) -> 12 | J136: =Hidden!$D$18 * (C136*Hidden!$D$19 + Hidden!$D$20) -> 12.342852 | K136: =Hidden!$D$18 * (D136*Hidden!$D$19 + Hidden!$D$20) -> 13.542834 | L136: =(I138-I136)/($G138-$G136)/'Temp Comp (Lead-Acid)'!$H$30*1000 -> 0 | M136: =(J138-J136)/($G138-$G136)/'Temp Comp (Lead-Acid)'!$H$30*1000 -> -3.662206169 | N136: =(K138-K136)/($G138-$G136)/'Temp Comp (Lead-Acid)'!$H$30*1000 -> -3.662206169 | Y136: 1272 | AB136: 1272 | AG136: 117.162292 | AH136: 12 | AJ136: 117.162292 | AK136: 12.342852 | AM136: 117.162292 | AN136: 13.542834
G137: =G138 -> 119.7628192 | H137: 119.7628192 | I137: =I136 -> 12 | J137: =J136 -> 12.342852 | K137: =K136 -> 13.542834 | AG137: 119.7628192 | AH137: 12 | AJ137: 119.7628192 | AK137: 12.342852 | AM137: 119.7628192 | AN137: 13.542834
A138: 1201 | B138: 0 | C138: =C136-1 -> 5 | D138: =D136-1 -> 26 | E138: ='NTC Input'!$D$27 * A138 / (21829 - A138) -> 0.582218344 | F138: =1/((1/E138) - (1/'NTC Input'!$D$30)) - 'NTC Input'!$D$29 -> 0.582218344 | G138: =IF(Hidden!$D$4=1, 1 / ('NTC Input'!$G$12 + 'NTC Input'!$G$13*LN(F138/'NTC Input'!$F$21) + 'NTC Input'!$G$14*POWER(LN(F138/'NTC Input'!$F$21),2) + 'NTC Input'!$G$15*POWER(LN(F138/'NTC Input'!$F$21),3)) -273.15, 'NTC Input'!$K$11 / (LN(F138 / ('NTC Input'!$F$21 * EXP(-'NTC Input'!$K$11 / 298.15)))) - 273.15) -> 119.7628192 | H138: 119.7628192 | I138: =Hidden!$D$18 * (B138*Hidden!$D$19 + Hidden!$D$20) -> 12 | J138: =Hidden!$D$18 * (C138*Hidden!$D$19 + Hidden!$D$20) -> 12.28571 | K138: =Hidden!$D$18 * (D138*Hidden!$D$19 + Hidden!$D$20) -> 13.485692 | L138: =(I140-I138)/($G140-$G138)/'Temp Comp (Lead-Acid)'!$H$30*1000 -> 0 | M138: =(J140-J138)/($G140-$G138)/'Temp Comp (Lead-Acid)'!$H$30*1000 -> -3.745839754 | N138: =(K140-K138)/($G140-$G138)/'Temp Comp (Lead-Acid)'!$H$30*1000 -> -3.745839754 | Y138: 1201 | AB138: 1202 | AG138: 119.7628192 | AH138: 12 | AJ138: 119.7628192 | AK138: 12.28571 | AM138: 119.7628192 | AN138: 13.485692
G139: =G140 -> 122.3052843 | H139: 122.3052843 | I139: =I138 -> 12 | J139: =J138 -> 12.28571 | K139: =K138 -> 13.485692 | AG139: 122.3052843 | AH139: 12 | AJ139: 122.3052843 | AK139: 12.28571 | AM139: 122.3052843 | AN139: 13.485692
A140: 1136 | B140: 0 | C140: =C138-1 -> 4 | D140: =D138-1 -> 25 | E140: ='NTC Input'!$D$27 * A140 / (21829 - A140) -> 0.5489779152 | F140: =1/((1/E140) - (1/'NTC Input'!$D$30)) - 'NTC Input'!$D$29 -> 0.5489779152 | G140: =IF(Hidden!$D$4=1, 1 / ('NTC Input'!$G$12 + 'NTC Input'!$G$13*LN(F140/'NTC Input'!$F$21) + 'NTC Input'!$G$14*POWER(LN(F140/'NTC Input'!$F$21),2) + 'NTC Input'!$G$15*POWER(LN(F140/'NTC Input'!$F$21),3)) -273.15, 'NTC Input'!$K$11 / (LN(F140 / ('NTC Input'!$F$21 * EXP(-'NTC Input'!$K$11 / 298.15)))) - 273.15) -> 122.3052843 | H140: 122.3052843 | I140: =Hidden!$D$18 * (B140*Hidden!$D$19 + Hidden!$D$20) -> 12 | J140: =Hidden!$D$18 * (C140*Hidden!$D$19 + Hidden!$D$20) -> 12.228568 | K140: =Hidden!$D$18 * (D140*Hidden!$D$19 + Hidden!$D$20) -> 13.42855 | L140: =(I142-I140)/($G142-$G140)/'Temp Comp (Lead-Acid)'!$H$30*1000 -> 0 | M140: =(J142-J140)/($G142-$G140)/'Temp Comp (Lead-Acid)'!$H$30*1000 -> -3.679276899 | N140: =(K142-K140)/($G142-$G140)/'Temp Comp (Lead-Acid)'!$H$30*1000 -> -3.679276899 | Y140: 1136 | AB140: 1136 | AG140: 122.3052843 | AH140: 12 | AJ140: 122.3052843 | AK140: 12.228568 | AM140: 122.3052843 | AN140: 13.42855
G141: =G142 -> 124.8937458 | H141: 124.8937458 | I141: =I140 -> 12 | J141: =J140 -> 12.228568 | K141: =K140 -> 13.42855 | AG141: 124.8937458 | AH141: 12 | AJ141: 124.8937458 | AK141: 12.228568 | AM141: 124.8937458 | AN141: 13.42855
A142: 1074 | B142: 0 | C142: =C140-1 -> 3 | D142: =D140-1 -> 24 | E142: ='NTC Input'!$D$27 * A142 / (21829 - A142) -> 0.5174656709 | F142: =1/((1/E142) - (1/'NTC Input'!$D$30)) - 'NTC Input'!$D$29 -> 0.5174656709 | G142: =IF(Hidden!$D$4=1, 1 / ('NTC Input'!$G$12 + 'NTC Input'!$G$13*LN(F142/'NTC Input'!$F$21) + 'NTC Input'!$G$14*POWER(LN(F142/'NTC Input'!$F$21),2) + 'NTC Input'!$G$15*POWER(LN(F142/'NTC Input'!$F$21),3)) -273.15, 'NTC Input'!$K$11 / (LN(F142 / ('NTC Input'!$F$21 * EXP(-'NTC Input'!$K$11 / 298.15)))) - 273.15) -> 124.8937458 | H142: 124.8937458 | I142: =Hidden!$D$18 * (B142*Hidden!$D$19 + Hidden!$D$20) -> 12 | J142: =Hidden!$D$18 * (C142*Hidden!$D$19 + Hidden!$D$20) -> 12.171426 | K142: =Hidden!$D$18 * (D142*Hidden!$D$19 + Hidden!$D$20) -> 13.371408 | L142: =(I144-I142)/($G144-$G142)/'Temp Comp (Lead-Acid)'!$H$30*1000 -> 0 | M142: =(J144-J142)/($G144-$G142)/'Temp Comp (Lead-Acid)'!$H$30*1000 -> -3.684229425 | N142: =(K144-K142)/($G144-$G142)/'Temp Comp (Lead-Acid)'!$H$30*1000 -> -3.684229425 | Y142: 1074 | AB142: 1074 | AG142: 124.8937458 | AH142: 12 | AJ142: 124.8937458 | AK142: 12.171426 | AM142: 124.8937458 | AN142: 13.371408
G143: =G144 -> 127.4787278 | H143: 127.4787278 | I143: =I142 -> 12 | J143: =J142 -> 12.171426 | K143: =K142 -> 13.371408 | AG143: 127.4787278 | AH143: 12 | AJ143: 127.4787278 | AK143: 12.171426 | AM143: 127.4787278 | AN143: 13.371408
A144: 1016 | B144: 0 | C144: =C142-1 -> 2 | D144: =D142-1 -> 23 | E144: ='NTC Input'!$D$27 * A144 / (21829 - A144) -> 0.4881564407 | F144: =1/((1/E144) - (1/'NTC Input'!$D$30)) - 'NTC Input'!$D$29 -> 0.4881564407 | G144: =IF(Hidden!$D$4=1, 1 / ('NTC Input'!$G$12 + 'NTC Input'!$G$13*LN(F144/'NTC Input'!$F$21) + 'NTC Input'!$G$14*POWER(LN(F144/'NTC Input'!$F$21),2) + 'NTC Input'!$G$15*POWER(LN(F144/'NTC Input'!$F$21),3)) -273.15, 'NTC Input'!$K$11 / (LN(F144 / ('NTC Input'!$F$21 * EXP(-'NTC Input'!$K$11 / 298.15)))) - 273.15) -> 127.4787278 | H144: 127.4787278 | I144: =Hidden!$D$18 * (B144*Hidden!$D$19 + Hidden!$D$20) -> 12 | J144: =Hidden!$D$18 * (C144*Hidden!$D$19 + Hidden!$D$20) -> 12.114284 | K144: =Hidden!$D$18 * (D144*Hidden!$D$19 + Hidden!$D$20) -> 13.314266 | L144: =(I146-I144)/($G146-$G144)/'Temp Comp (Lead-Acid)'!$H$30*1000 -> 0 | M144: =(J146-J144)/($G146-$G144)/'Temp Comp (Lead-Acid)'!$H$30*1000 -> -3.709276612 | N144: =(K146-K144)/($G146-$G144)/'Temp Comp (Lead-Acid)'!$H$30*1000 -> -3.709276612 | Y144: 1016 | AB144: 1017 | AG144: 127.4787278 | AH144: 12 | AJ144: 127.4787278 | AK144: 12.114284 | AM144: 127.4787278 | AN144: 13.314266
G145: =G146 -> 130.0462545 | H145: 130.0462545 | I145: =I144 -> 12 | J145: =J144 -> 12.114284 | K145: =K144 -> 13.314266 | AG145: 130.0462545 | AH145: 12 | AJ145: 130.0462545 | AK145: 12.114284 | AM145: 130.0462545 | AN145: 13.314266
A146: 962 | B146: 0 | C146: =C144-1 -> 1 | D146: =D144-1 -> 22 | E146: ='NTC Input'!$D$27 * A146 / (21829 - A146) -> 0.4610149998 | F146: =1/((1/E146) - (1/'NTC Input'!$D$30)) - 'NTC Input'!$D$29 -> 0.4610149998 | G146: =IF(Hidden!$D$4=1, 1 / ('NTC Input'!$G$12 + 'NTC Input'!$G$13*LN(F146/'NTC Input'!$F$21) + 'NTC Input'!$G$14*POWER(LN(F146/'NTC Input'!$F$21),2) + 'NTC Input'!$G$15*POWER(LN(F146/'NTC Input'!$F$21),3)) -273.15, 'NTC Input'!$K$11 / (LN(F146 / ('NTC Input'!$F$21 * EXP(-'NTC Input'!$K$11 / 298.15)))) - 273.15) -> 130.0462545 | H146: 130.0462545 | I146: =Hidden!$D$18 * (B146*Hidden!$D$19 + Hidden!$D$20) -> 12 | J146: =Hidden!$D$18 * (C146*Hidden!$D$19 + Hidden!$D$20) -> 12.057142 | K146: =Hidden!$D$18 * (D146*Hidden!$D$19 + Hidden!$D$20) -> 13.257124 | L146: =(I148-I146)/($G148-$G146)/'Temp Comp (Lead-Acid)'!$H$30*1000 -> 0 | M146: =(J148-J146)/($G148-$G146)/'Temp Comp (Lead-Acid)'!$H$30*1000 -> -3.759050572 | N146: =(K148-K146)/($G148-$G146)/'Temp Comp (Lead-Acid)'!$H$30*1000 -> -3.759050572 | Y146: 962 | AB146: 963 | AG146: 130.0462545 | AH146: 12 | AJ146: 130.0462545 | AK146: 12.057142 | AM146: 130.0462545 | AN146: 13.257124
G147: =G148 -> 132.5797843 | H147: 132.5797843 | I147: =I146 -> 12 | J147: =J146 -> 12.057142 | K147: =K146 -> 13.257124 | AG147: 132.5797843 | AH147: 12 | AJ147: 132.5797843 | AK147: 12.057142 | AM147: 132.5797843 | AN147: 13.257124
A148: 912 | B148: 0 | C148: =C146-1 -> 0 | D148: =D146-1 -> 21 | E148: ='NTC Input'!$D$27 * A148 / (21829 - A148) -> 0.4360089879 | F148: =1/((1/E148) - (1/'NTC Input'!$D$30)) - 'NTC Input'!$D$29 -> 0.4360089879 | G148: =IF(Hidden!$D$4=1, 1 / ('NTC Input'!$G$12 + 'NTC Input'!$G$13*LN(F148/'NTC Input'!$F$21) + 'NTC Input'!$G$14*POWER(LN(F148/'NTC Input'!$F$21),2) + 'NTC Input'!$G$15*POWER(LN(F148/'NTC Input'!$F$21),3)) -273.15, 'NTC Input'!$K$11 / (LN(F148 / ('NTC Input'!$F$21 * EXP(-'NTC Input'!$K$11 / 298.15)))) - 273.15) -> 132.5797843 | H148: 132.5797843 | I148: =Hidden!$D$18 * (B148*Hidden!$D$19 + Hidden!$D$20) -> 12 | J148: =Hidden!$D$18 * (C148*Hidden!$D$19 + Hidden!$D$20) -> 12 | K148: =Hidden!$D$18 * (D148*Hidden!$D$19 + Hidden!$D$20) -> 13.199982 | Y148: 912 | AB148: 912 | AG148: 132.5797843 | AH148: 12 | AJ148: 132.5797843 | AK148: 12 | AM148: 132.5797843 | AN148: 13.199982
A149: 0 | B149: 0 | C149: 0 | D149: 21 | G149: 150 | H149: =IF(ISERROR(G148),NA(),G149) -> 150 | I149: =Hidden!$D$18 * (B149*Hidden!$D$19 + Hidden!$D$20) -> 12 | J149: =Hidden!$D$18 * (C149*Hidden!$D$19 + Hidden!$D$20) -> 12 | K149: =Hidden!$D$18 * (D149*Hidden!$D$19 + Hidden!$D$20) -> 13.199982
K152: #nonzero = | L152: =COUNTIF(L4:L146,"<>0")-COUNTIF(L4:L146,"") -> 51 | M152: =COUNTIF(M4:M146,"<>0")-COUNTIF(M4:M146,"") -> 63 | N152: =COUNTIF(N4:N146,"<>0")-COUNTIF(N4:N146,"") -> 42
K153: sum = | L153: =SUM(SUMIF(L4:L146,{"<0",">0"})) -> -189.0992364 | M153: =SUM(SUMIF(M4:M146,{"<0",">0"})) -> -233.4627761 | N153: =SUM(SUMIF(N4:N146,{"<0",">0"})) -> -155.6861891
K154: avg = | L154: =L153/L152 -> -3.707828165 | M154: =M153/M152 -> -3.705758351 | N154: =N153/N152 -> -3.706814026
